Department Family,Entity,Date of Payment,Expense Type,Expense Area,Supplier,Voluntary & Community Sector,SME Class,Sole Trader,D-U-N-S Number,Transaction number,PSPES Level 2,Narrative,Postal Code,Amount in Sterling,Grant?
Communities & Local Government,DCLG,03/02/2014,Agency Staff,Finance & Corporate Services,SQUARE ONE RESOURCES LTD,,Medium,,491410288,5106200719,Contingent Labour,SAP Support until closedown,EC2A 2AD,"2,858.82",
Communities & Local Government,DCLG,03/02/2014,Capital Grants to People Non Profit,Neighbourhoods,PHOENIX COMMUNITY HOUSING,,Micro,,,2100238933,,Payment to PCH to bring homes to Decent Homes Standard,BR1 1DE,"1,500,000.00",Yes
Communities & Local Government,DCLG,03/02/2014,Electronic Data Storage,Finance & Corporate Services,TNT UK LIMITED,,Large,,,5106200724,Warehousing and Storage,Visions electronic storage,BL10 9GR,"4,049.69",
Communities & Local Government,DCLG,03/02/2014,Fixed Maintenance,Finance & Corporate Services,BABCOCK CIVIL INFRASTRUCTURE LTD,,Large,,233110530,5106200327,Construction Service Providers,EM Castle Don Fixed Maintainance 2,NG15 0DR,"15,300.72",
Communities & Local Government,DCLG,03/02/2014,Fixed Maintenance,Finance & Corporate Services,BABCOCK CIVIL INFRASTRUCTURE LTD,,Large,,233110530,5106200382,Construction Service Providers,EoE Waterbeach Fixed Maintainanc 2,NG15 0DR,"15,300.72",
Communities & Local Government,DCLG,03/02/2014,Fixed Maintenance,Finance & Corporate Services,BABCOCK CIVIL INFRASTRUCTURE LTD,,Large,,233110530,5106200708,Construction Service Providers,SW Taunton Fixed Maintainance 2013,NG15 0DR,"15,300.72",
Communities & Local Government,DCLG,03/02/2014,Fixed Maintenance,Finance & Corporate Services,BABCOCK CIVIL INFRASTRUCTURE LTD,,Large,,233110530,5106200709,Construction Service Providers,WM Wolv Fixed Maintainance 2013-14,NG15 0DR,"15,300.72",
Communities & Local Government,DCLG,03/02/2014,Fixed Maintenance,Finance & Corporate Services,BABCOCK CIVIL INFRASTRUCTURE LTD,,Large,,233110530,5106200710,Construction Service Providers,Y&H Wakefield Fixed Maintainance2013-14,NG15 0DR,"15,300.72",
Communities & Local Government,DCLG,03/02/2014,IT - Software Maintenance,Finance & Corporate Services,METHODS CONSULTING LTD,,Medium,,505275578,5106200725,Managed / Outsourced Services,PIMS Application Support,WC2H 8AD,"24,000.00",
Communities & Local Government,DCLG,03/02/2014,Office Supplies,Finance & Corporate Services,BANNER BUSINESS SUPPLIES LTD,,Large,,236638362,5106200721,Office Supplies,DELWEEKLY Banner A4 Recycled Copier Pape,NR3 1PD,254.16,
Communities & Local Government,DCLG,03/02/2014,Office Supplies,Finance & Corporate Services,BANNER BUSINESS SUPPLIES LTD,,Large,,236638362,5106200721,Office Supplies,DELWEEKLY Banner A5 Recycled Notebook,NR3 1PD,9.57,
Communities & Local Government,DCLG,03/02/2014,Office Supplies,Finance & Corporate Services,BANNER BUSINESS SUPPLIES LTD,,Large,,236638362,5106200721,Office Supplies,DELWEEKLY Banner Rubber Grip Gel Ink Pen,NR3 1PD,4.37,
Communities & Local Government,DCLG,03/02/2014,Office Supplies,Localism,BANNER BUSINESS SUPPLIES LTD,,Large,,236638362,5106200675,Office Supplies,DELWEEKLY Banner A4 Recycled Copier Pape,NR3 1PD,381.24,
Communities & Local Government,DCLG,03/02/2014,Office Supplies,Localism,BANNER BUSINESS SUPPLIES LTD,,Large,,236638362,5106200675,Office Supplies,DELWEEKLY Banner Adhesive Putty 70g,NR3 1PD,2.16,
Communities & Local Government,DCLG,03/02/2014,Office Supplies,Localism,BANNER BUSINESS SUPPLIES LTD,,Large,,236638362,5106200675,Office Supplies,DELWEEKLY Banner Bar Tag 25mm Red,NR3 1PD,3.24,
Communities & Local Government,DCLG,03/02/2014,Office Supplies,Localism,BANNER BUSINESS SUPPLIES LTD,,Large,,236638362,5106200675,Office Supplies,DELWEEKLY Banner Easy Tear Adhesive Tape,NR3 1PD,5.11,
Communities & Local Government,DCLG,03/02/2014,Office Supplies,Localism,BANNER BUSINESS SUPPLIES LTD,,Large,,236638362,5106200675,Office Supplies,DELWEEKLY Banner Multi-Purpose Label 199,NR3 1PD,2.51,
Communities & Local Government,DCLG,03/02/2014,Office Supplies,Localism,BANNER BUSINESS SUPPLIES LTD,,Large,,236638362,5106200675,Office Supplies,DELWEEKLY Banner Polypropylene Adhesive,NR3 1PD,14.18,
Communities & Local Government,DCLG,03/02/2014,Office Supplies,Localism,BANNER BUSINESS SUPPLIES LTD,,Large,,236638362,5106200675,Office Supplies,DELWEEKLY Banner Recycled Casebound Book,NR3 1PD,9.6,
Communities & Local Government,DCLG,03/02/2014,Printing,"Strategy, Communications and Private Office",STATIONERY OFFICE LTD,,Large,,779375633,5106200718,Printing Services,Statutory Instruments  publication,NR3 1PD,160,
Communities & Local Government,DCLG,03/02/2014,Printing,"Strategy, Communications and Private Office",STATIONERY OFFICE LTD,,Large,,779375633,5106200718,Printing Services,VAT chargeable printing services,NR3 1PD,130,
Communities & Local Government,DCLG,03/02/2014,Professional services,Finance & Corporate Services,GVA GRIMLEY LTD,,Large,,210158990,5106200682,Accommodation Services,COM 95 - House Letting Fees,B1 2JB,780,
Communities & Local Government,DCLG,03/02/2014,Professional services,Neighbourhoods,MR R S MILNE,,,,,2100239113,Environmental Services,Production of weekly e newsletter via planning portal,,"1,133.00",
Communities & Local Government,DCLG,03/02/2014,Professional services,Neighbourhoods,MS E M COCHRANE,,,,,2100239116,Environmental Services,Production of weekly e newsletter via planning portal,,"1,359.60",
Communities & Local Government,DCLG,03/02/2014,Services provided by other Govt Orgs,Neighbourhoods,DEPARTMENT FOR WORK & PENSIONS,,,,,2100239117,Business and Commercial Services,Return of underspend to DWP for co-funded project,CF14 3UW,"24,000.00",Yes
Communities & Local Government,DCLG,03/02/2014,Steady State Service Provision,Localism,LOCALITY,,Medium,,347998312,5106200259,Business Process Outsourcing Services,Community Ownership of Assets - year 2,N1 6DR,"157,327.00",
Communities & Local Government,DCLG,03/02/2014,Training,Finance & Corporate Services,ARK GROUP LTD,,Large,,777785536,5106200723,Development and Training,Digital Copyright 29 Jan 14 - C Gibson,SW15 6QT,295,
Communities & Local Government,DCLG,03/02/2014,Training,Finance & Corporate Services,CAPITA BUSINESS SERVICES LTD,,Large,,215580993,5106200726,Development and Training,Commercial Capability Workshops,DL1 9HB,"1,951.22",
Communities & Local Government,DCLG,03/02/2014,Web Services,"Strategy, Communications and Private Office",DEXTROUS WEB LTD,,Micro,,211267270,5106200722,ICT Services,Hosting,N1 7NG,540,
Communities & Local Government,DCLG,03/02/2014,Work In Progress Pre-Cert 40373 Spend,Neighbourhoods,APEX LEICESTER PROJECT LTD,,Small,,,7600007705,,Revenue Grant To Be Paid,LE1 1FB,"9,809.78",Yes
Communities & Local Government,DCLG,03/02/2014,Work In Progress Pre-Cert 40373 Spend,Neighbourhoods,BROADWAY,,,,,7600007700,,Revenue Grant To Be Paid,N61 3AL,"6,073.88",Yes
Communities & Local Government,DCLG,03/02/2014,Work In Progress Pre-Cert 40373 Spend,Neighbourhoods,CORNWALL DEVELOPMENT COMPANY LTD,,,,,7600007699,,Revenue Grant To Be Paid,TR1 1EA,"30,885.37",Yes
Communities & Local Government,DCLG,03/02/2014,Work In Progress Pre-Cert 40373 Spend,Neighbourhoods,LEEDS CITY COUNCIL,,,,,7600007698,,Revenue Grant To Be Paid,LS1 1UR,"4,529.80",Yes
Communities & Local Government,DCLG,03/02/2014,Work In Progress Pre-Cert 40373 Spend,Neighbourhoods,LEEDS CITY COUNCIL,,,,,7600007697,,Revenue Grant To Be Paid,LS2 8BB,"17,623.83",Yes
Communities & Local Government,DCLG,03/02/2014,Work In Progress Pre-Cert 40373 Spend,Neighbourhoods,NORTH YORKSHIRE COUNTY COUNCIL,,Large,,,7600007704,,Revenue Grant To Be Paid,DL7 8AL,"41,050.57",Yes
Communities & Local Government,DCLG,03/02/2014,Work In Progress Pre-Cert 40373 Spend,Neighbourhoods,UNIVERSITY OF PLYMOUTH GENERAL A/C,,,,,7600007703,,Revenue Grant To Be Paid,PL4 8AA,"33,365.14",Yes
Communities & Local Government,DCLG,03/02/2014,Work In Progress Pre-Cert 40373 Spend,Neighbourhoods,YORKS & HUMBER PEOPLE UTD AGAINST C,,,,,7600007701,,Revenue Grant To Be Paid,S1 2AH,"21,773.19",Yes
Communities & Local Government,DCLG,03/02/2014,Work In Progress Pre-Cert 40373 Spend,Neighbourhoods,YORKS & HUMBER PEOPLE UTD AGAINST C,,,,,7600007702,,Revenue Grant To Be Paid,S1 2AH,"46,843.57",Yes
Communities & Local Government,DCLG,03/02/2014,Work In Progress Pre-Cert 40467 Spend,Neighbourhoods,CORNWALL DEVELOPMENT COMPANY LTD,,,,,7600007699,,Capital Grant To Be Paid,TR1 1EA,"66,710.85",Yes
Communities & Local Government,DCLG,03/02/2014,Work In Progress Pre-Cert 40467 Spend,Neighbourhoods,ISPACE INVESTMENTS LLP,,Micro,,,7600007696,,Capital Grant To Be Paid,YO43 4RW,"9,595.05",Yes
Communities & Local Government,DCLG,03/02/2014,Work In Progress Pre-Cert 40467 Spend,Neighbourhoods,ISPACE INVESTMENTS LLP,,Micro,,,7600007706,,Capital Grant To Be Paid,YO43 4RW,411.13,Yes
Communities & Local Government,DCLG,03/02/2014,Work In Progress Pre-Cert 40467 Spend,Neighbourhoods,NORTH YORKSHIRE COUNTY COUNCIL,,Large,,,7600007704,,Capital Grant To Be Paid,DL7 8AL,"8,223.50",Yes
Communities & Local Government,DCLG,03/02/2014,Work In Progress Pre-Cert 40467 Spend,Neighbourhoods,PENDENNIS SHIPYARD LTD,,,,,7600007707,,Capital Grant To Be Paid,TR11 4NR,"567,764.19",Yes
Communities & Local Government,DCLG,04/02/2014,Advertising,"Strategy, Communications and Private Office",ENTER HERE LLP,,Medium,,672098311,5106200746,Advertising,Fire Kills Viral Ad Network,EC1R 0JH,"3,000.00",
Communities & Local Government,DCLG,04/02/2014,Agency Staff,Neighbourhoods,REED EMPLOYMENT SERVICES,,Large,,292193364,5106200750,Contingent Labour,Temporary staff on a time limited project,SW20 0BA,809.1,
Communities & Local Government,DCLG,04/02/2014,Cap Grants to Local Authorities (DEL),Neighbourhoods,AMBER VALLEY BC,,,,,5000242110,,Disabled Facilities Capital,DE5 3WZ,"43,895.00",Yes
Communities & Local Government,DCLG,04/02/2014,Cap Grants to Local Authorities (DEL),Neighbourhoods,ASHFORD BC,,,,229467071,5000242108,,Disabled Facilities Capital,TN23 1PL,"23,862.00",Yes
Communities & Local Government,DCLG,04/02/2014,Cap Grants to Local Authorities (DEL),Neighbourhoods,GOSPORT BOROUGH COUNCIL,,,,239825078,5000242111,,Disabled Facilities Capital,PO12 1ED,"58,241.00",Yes
Communities & Local Government,DCLG,04/02/2014,Cap Grants to Local Authorities (DEL),Neighbourhoods,THANET DC,,,,232309369,5000242109,,Disabled Facilities Capital,CT8 1XZ,"53,069.00",Yes
Communities & Local Government,DCLG,04/02/2014,Current Grants to Non Profit Bodies,Neighbourhoods,CHARTERED INST OF HOUSING,,Medium,,,5000242112,,Supporting People Project 3,CV4 8JP,"30,941.00",Yes
Communities & Local Government,DCLG,04/02/2014,Current Grants to Non Profit Bodies,Neighbourhoods,ST BASILS CENTRE,,,,,5000242113,,Youth Homelessness Project,B9 4AX,"57,180.00",Yes
Communities & Local Government,DCLG,04/02/2014,Finance Consultancy,Finance & Corporate Services,PRICEWATERHOUSECOOPERS,,Large,,293540787,5106200758,Consultancy,Audit Services,BT1 3LR,"42,000.00",
Communities & Local Government,DCLG,04/02/2014,IT - Service Contracts,Finance & Corporate Services,SWIRRL IT LIMITED,,Micro,,211074993,5106200755,Managed / Outsourced Services,Open Data Communities ,FK7 7WT,"1,800.00",
Communities & Local Government,DCLG,04/02/2014,IT - Service Contracts,Finance & Corporate Services,SWIRRL IT LIMITED,,Micro,,211074993,5106200755,Managed / Outsourced Services,Open Data Communities ,FK7 7WT,"3,744.00",
Communities & Local Government,DCLG,04/02/2014,IT - Service Contracts,Finance & Corporate Services,VERIZON UK LTD,,Large,,346786171,5106200773,Managed / Outsourced Services,TESA common hosting 2013-2014,RG2 6DA,"20,720.64",
Communities & Local Government,DCLG,04/02/2014,IT - Service Contracts,Finance & Corporate Services,VERIZON UK LTD,,Large,,346786171,5106200774,Managed / Outsourced Services,TESA common hosting 2013-2014,RG2 6DA,"20,720.64",
Communities & Local Government,DCLG,04/02/2014,IT - Service Contracts,Finance & Corporate Services,VERIZON UK LTD,,Large,,346786171,5106200775,Managed / Outsourced Services,TESA common hosting 2013-2014,RG2 6DA,"20,720.64",
Communities & Local Government,DCLG,04/02/2014,IT - Service Contracts,Finance & Corporate Services,VERIZON UK LTD,,Large,,346786171,5106200776,Managed / Outsourced Services,TESA common hosting 2013-2014,RG2 6DA,"20,720.64",
Communities & Local Government,DCLG,04/02/2014,IT - Service Contracts,Localism,VERIZON UK LTD,,Large,,346786171,5106200773,Managed / Outsourced Services,Fire common hosting 2013-2014,RG2 6DA,"20,720.63",
Communities & Local Government,DCLG,04/02/2014,IT - Service Contracts,Localism,VERIZON UK LTD,,Large,,346786171,5106200774,Managed / Outsourced Services,Fire common hosting 2013-2014,RG2 6DA,"20,720.63",
Communities & Local Government,DCLG,04/02/2014,IT - Service Contracts,Localism,VERIZON UK LTD,,Large,,346786171,5106200775,Managed / Outsourced Services,Fire common hosting 2013-2014,RG2 6DA,"20,720.63",
Communities & Local Government,DCLG,04/02/2014,IT - Service Contracts,Localism,VERIZON UK LTD,,Large,,346786171,5106200776,Managed / Outsourced Services,Fire common hosting 2013-2014,RG2 6DA,"20,720.63",
Communities & Local Government,DCLG,04/02/2014,Printing,Localism,STATIONERY OFFICE LTD,,Large,,779375633,5106200757,Printing Services,Printing - Fire Service College reports,NR3 1PD,"1,280.72",
Communities & Local Government,DCLG,04/02/2014,Steady State Service Provision,Finance & Corporate Services,CGI IT UK LIMITED,,Large,,239881618,5106200742,Business Process Outsourcing Services,Payroll Services & Licences   13/14,CF31 9AP,"7,525.73",
Communities & Local Government,DCLG,04/02/2014,Steady State Service Provision,Localism,MOTT MACDONALD LTD,,Large,,225250398,5106200754,Business Process Outsourcing Services,Core Service Period 1 (Jun 13-May 15),BN1 4FY,"56,598.68",
Communities & Local Government,DCLG,04/02/2014,Steady State Service Provision,Neighbourhoods,NORTHUMBERLAND CC,,Large,,210308905,5106200772,Business Process Outsourcing Services,2013/14 expenses for RAWP secretarial services,NE61 2EF,"2,996.50",
Communities & Local Government,DCLG,04/02/2014,Subscriptions,Finance & Corporate Services,H M TREASURY,,Public Bodies,,233590996,5106200734,Subscriptions and Admissions,GESR Annual Conference,NR7 0HS,864,
Communities & Local Government,DCLG,04/02/2014,Training,Finance & Corporate Services,CAPITA BUSINESS SERVICES LTD,,Large,,215580993,5106200752,Development and Training,Macroeconomics Refresher course,DL1 9HB,299,
Communities & Local Government,DCLG,04/02/2014,Vehicle Maintenance,Localism,BABCOCK CRITICAL SERVICES LTD,,Large,,641006945,5106200745,Fleet Management,Unplanned Maintainance,NG15 0DR,"27,170.00",
Communities & Local Government,DCLG,04/02/2014,Water,Finance & Corporate Services,THAMES WATER UTILITIES,,Large,,238200323,5106200756,Operation of Water Supplies and Distribution,Eland House Water - 2013-14,SN38 8TU,"10,984.92",
Communities & Local Government,DCLG,04/02/2014,Work In Progress Pre-Cert 40373 Spend,Neighbourhoods,NORTH EAST BUSINESS & INNOV CENTRE,,Small,,,7600007709,,Revenue Grant To Be Paid,SR5 2TA,"10,785.63",Yes
Communities & Local Government,DCLG,04/02/2014,Work In Progress Pre-Cert 40373 Spend,Neighbourhoods,NORTH LINCOLNSHIRE COUNCIL,,Public Bodies,,,7600007712,,Revenue Grant To Be Paid,DN16 1AB,"21,216.80",Yes
Communities & Local Government,DCLG,04/02/2014,Work In Progress Pre-Cert 40373 Spend,Neighbourhoods,NORTH LINCOLNSHIRE COUNCIL,,Public Bodies,,,7600007713,,Revenue Grant To Be Paid,DN16 1AB,"21,497.37",Yes
Communities & Local Government,DCLG,04/02/2014,Work In Progress Pre-Cert 40373 Spend,Neighbourhoods,NORTH LINCOLNSHIRE COUNCIL,,Public Bodies,,,7600007714,,Revenue Grant To Be Paid,DN16 1AB,"24,374.75",Yes
Communities & Local Government,DCLG,04/02/2014,Work In Progress Pre-Cert 40373 Spend,Neighbourhoods,NORTHUMBERLAND COUNTY COUNCIL,,,,,7600007710,,Revenue Grant To Be Paid,NE61 2EF,"1,229.64",Yes
Communities & Local Government,DCLG,04/02/2014,Work In Progress Pre-Cert 40373 Spend,Neighbourhoods,NORTHUMBERLAND COUNTY COUNCIL,,,,,7600007711,,Revenue Grant To Be Paid,NE61 2EF,"2,256.92",Yes
Communities & Local Government,DCLG,04/02/2014,Work In Progress Pre-Cert 40373 Spend,Neighbourhoods,SERCO REGIONAL SERVICES LTD,,,,,7600007708,,Revenue Grant To Be Paid,PL6 8BT,"21,427.77",Yes
Communities & Local Government,DCLG,04/02/2014,Work In Progress Pre-Cert 40373 Spend,Neighbourhoods,YTKO LIMITED,,,,,7600007716,,Revenue Grant To Be Paid,CB4 2QH,"52,750.32",Yes
Communities & Local Government,DCLG,04/02/2014,Work In Progress Pre-Cert 40467 Spend,Neighbourhoods,ARMSTRONG PROPERTIES (NW) LTD,,Small,,,2300002097,,Recovery of irregular payment,M30 9HQ,"-21,736.24",Yes
Communities & Local Government,DCLG,04/02/2014,Work In Progress Pre-Cert 40467 Spend,Neighbourhoods,HEADCAST LTD,,Micro,,,7600007715,,Capital Grant To Be Paid,TR10 9TA,"9,314.55",Yes
Communities & Local Government,DCLG,04/02/2014,Work In Progress Pre-Cert 40467 Spend,Neighbourhoods,ISPACE INVESTMENTS LLP,,Micro,,,7600007718,,Capital Grant To Be Paid,YO43 4RW,"9,414.94",Yes
Communities & Local Government,DCLG,04/02/2014,Work In Progress Pre-Cert 40467 Spend,Neighbourhoods,JARRANG LTD,,,,,7600007717,,Capital Grant To Be Paid,TR11 4SZ,"4,464.68",Yes
Communities & Local Government,DCLG,04/02/2014,Work In Progress Pre-Cert 40467 Spend,Neighbourhoods,NORTH EAST BUSINESS & INNOV CENTRE,,Small,,,7600007709,,Capital Grant To Be Paid,SR5 2TA,"110,311.05",Yes
Communities & Local Government,DCLG,05/02/2014,Agency Staff,Finance & Corporate Services,CAPITA RESOURCING LTD,,Large,,215581006,5106200777,Contingent Labour,Interim Manager,SL6 1DP,"2,862.00",
Communities & Local Government,DCLG,05/02/2014,Agency Staff,Finance & Corporate Services,CAPITA RESOURCING LTD,,Large,,215581006,5106200778,Contingent Labour,Interim Manager (IAS),SL6 1DP,871.2,
Communities & Local Government,DCLG,05/02/2014,Agency Staff,Finance & Corporate Services,CAPITA RESOURCING LTD,,Large,,215581006,5106200789,Contingent Labour,CPD 0492030 Capita MSP,SL6 1DP,"7,946.10",
Communities & Local Government,DCLG,05/02/2014,Agency Staff,Finance & Corporate Services,CAPITA RESOURCING LTD,,Large,,215581006,5106200791,Contingent Labour,Interim Manager,SL6 1DP,"2,021.95",
Communities & Local Government,DCLG,05/02/2014,Agency Staff,Localism,CAPITA RESOURCING LTD,,Large,,215581006,5106200784,Contingent Labour,Interim Manager - Ext 02,SL6 1DP,"1,117.80",
Communities & Local Government,DCLG,05/02/2014,Agency Staff,Localism,CAPITA RESOURCING LTD,,Large,,215581006,5106200787,Contingent Labour,Interim Manager (Amendment of line 30),SL6 1DP,"2,981.58",
Communities & Local Government,DCLG,05/02/2014,Agency Staff,Neighbourhoods,CAPITA RESOURCING LTD,,Large,,215581006,5106200780,Contingent Labour,Contractor ERDF,SL6 1DP,918,
Communities & Local Government,DCLG,05/02/2014,Agency Staff,Neighbourhoods,CAPITA RESOURCING LTD,,Large,,215581006,5106200780,Contingent Labour,Contractor ERDF Expenses,SL6 1DP,38.68,
Communities & Local Government,DCLG,05/02/2014,Agency Staff,Neighbourhoods,CAPITA RESOURCING LTD,,Large,,215581006,5106200781,Contingent Labour,Interim Manager - Ext 01,SL6 1DP,475.19,
Communities & Local Government,DCLG,05/02/2014,Agency Staff,Neighbourhoods,CAPITA RESOURCING LTD,,Large,,215581006,5106200781,Contingent Labour,Interim Manager - Ext 02,SL6 1DP,"1,425.56",
Communities & Local Government,DCLG,05/02/2014,Agency Staff,Neighbourhoods,CAPITA RESOURCING LTD,,Large,,215581006,5106200782,Contingent Labour,Interim Manager,SL6 1DP,"1,848.00",
Communities & Local Government,DCLG,05/02/2014,Agency Staff,Neighbourhoods,CAPITA RESOURCING LTD,,Large,,215581006,5106200785,Contingent Labour,Expenses - Ext 01,SL6 1DP,535.32,
Communities & Local Government,DCLG,05/02/2014,Agency Staff,Neighbourhoods,CAPITA RESOURCING LTD,,Large,,215581006,5106200785,Contingent Labour,Interim Manager (Expenses),SL6 1DP,27.48,
Communities & Local Government,DCLG,05/02/2014,Agency Staff,Neighbourhoods,CAPITA RESOURCING LTD,,Large,,215581006,5106200785,Contingent Labour,Interim Manager - Ext 02,SL6 1DP,"1,912.50",
Communities & Local Government,DCLG,05/02/2014,Agency Staff,Neighbourhoods,CAPITA RESOURCING LTD,,Large,,215581006,5106200786,Contingent Labour,Interim Manager,SL6 1DP,"1,848.00",
Communities & Local Government,DCLG,05/02/2014,Agency Staff,Neighbourhoods,CAPITA RESOURCING LTD,,Large,,215581006,5106200786,Contingent Labour,Interim Manager - Expenses,SL6 1DP,167.76,
Communities & Local Government,DCLG,05/02/2014,Agency Staff,Neighbourhoods,CAPITA RESOURCING LTD,,Large,,215581006,5106200788,Contingent Labour,Interim Manager (PAV Review Officer),SL6 1DP,"1,799.88",
Communities & Local Government,DCLG,05/02/2014,Agency Staff,Neighbourhoods,CAPITA RESOURCING LTD,,Large,,215581006,5106200790,Contingent Labour,Interim Manager - Ext 01,SL6 1DP,931.5,
Communities & Local Government,DCLG,05/02/2014,Agency Staff,Neighbourhoods,CAPITA RESOURCING LTD,,Large,,215581006,5106200790,Contingent Labour,Interim Manager - Ext 02,SL6 1DP,"3,105.00",
Communities & Local Government,DCLG,05/02/2014,Catering,Finance & Corporate Services,INTERSERVE (FM) LTD (AUTOGRAPH),,Large,,213632537,2100239415,Catering,Consolidated monthly catering Nov 2013,BS32 4NH,25.6,
Communities & Local Government,DCLG,05/02/2014,Catering,Localism,INTERSERVE (FM) LTD (AUTOGRAPH),,Large,,213632537,2100239415,Catering,Consolidated monthly catering Nov 2013,BS32 4NH,26.4,
Communities & Local Government,DCLG,05/02/2014,Catering,Localism,INTERSERVE (FM) LTD (AUTOGRAPH),,Large,,213632537,2100239415,Catering,Consolidated monthly catering Nov 2013,BS32 4NH,48,
Communities & Local Government,DCLG,05/02/2014,Catering,Localism,INTERSERVE (FM) LTD (AUTOGRAPH),,Large,,213632537,2100239415,Catering,Consolidated monthly catering Nov 2013,BS32 4NH,2.8,
Communities & Local Government,DCLG,05/02/2014,Catering,Localism,INTERSERVE (FM) LTD (AUTOGRAPH),,Large,,213632537,2100239415,Catering,Consolidated monthly catering Nov 2013,BS32 4NH,10.2,
Communities & Local Government,DCLG,05/02/2014,Catering,Localism,INTERSERVE (FM) LTD (AUTOGRAPH),,Large,,213632537,2100239415,Catering,Consolidated monthly catering Nov 2013,BS32 4NH,215.6,
Communities & Local Government,DCLG,05/02/2014,Catering,Localism,INTERSERVE (FM) LTD (AUTOGRAPH),,Large,,213632537,2100239415,Catering,Consolidated monthly catering Nov 2013,BS32 4NH,31.3,
Communities & Local Government,DCLG,05/02/2014,Catering,Neighbourhoods,INTERSERVE (FM) LTD (AUTOGRAPH),,Large,,213632537,2100239415,Catering,This event never took place  was refunded later. ,BS32 4NH,82.5,
Communities & Local Government,DCLG,05/02/2014,Catering,Neighbourhoods,INTERSERVE (FM) LTD (AUTOGRAPH),,Large,,213632537,2100239415,Catering,Event costs for consultation with local authorities on future of the Planning Portal. ,BS32 4NH,147,
Communities & Local Government,DCLG,05/02/2014,Catering,Neighbourhoods,INTERSERVE (FM) LTD (AUTOGRAPH),,Large,,213632537,2100239415,Catering,Consolidated monthly catering Nov 2013,BS32 4NH,121.9,
Communities & Local Government,DCLG,05/02/2014,Catering,Neighbourhoods,INTERSERVE (FM) LTD (AUTOGRAPH),,Large,,213632537,2100239415,Catering,Consolidated monthly catering Nov 2013,BS32 4NH,166.4,
Communities & Local Government,DCLG,05/02/2014,Catering,Neighbourhoods,INTERSERVE (FM) LTD (AUTOGRAPH),,Large,,213632537,2100239415,Catering,Consolidated monthly catering Nov 2013,BS32 4NH,83.85,
Communities & Local Government,DCLG,05/02/2014,Catering,Neighbourhoods,INTERSERVE (FM) LTD (AUTOGRAPH),,Large,,213632537,2100239415,Catering,Consolidated monthly catering Nov 2013,BS32 4NH,211,
Communities & Local Government,DCLG,05/02/2014,Current Grants to Non Profit Bodies,Localism,SOCIAL INVESTMENT BUSINESS,,Small,,211067898,2100238751,,Resource Grants � Community Assets,WC1H 8AG,"300,000.00",Yes
Communities & Local Government,DCLG,05/02/2014,Current Grants to Non Profit Bodies,Localism,WALTHAM FOREST SOMALI WOMEN ASSCN,,Small,,215565181,2100239417,,Development Support Grant,E17 6QQ,"2,520.00",Yes
Communities & Local Government,DCLG,05/02/2014,Current Grants to Non Profit Bodies,Localism,YOUTH UNITED FOUNDATION,,Small,,,2100239065,,Funding to YU to open new units in target areas,TN13 2PT,"1,479,912.00",Yes
Communities & Local Government,DCLG,05/02/2014,Current Grants to Non Profit Bodies,Neighbourhoods,EARTH TENANT MANAGEMENT ORGANISATIO,,Small,,,5000242114,,Right to Manage,BS2 0BL,"3,236.00",Yes
Communities & Local Government,DCLG,05/02/2014,Grant in Aid to NDPBs (non budget),Neighbourhoods,HOMES & COMMUNITIES AGENCY,,Public Bodies,,215576860,2100239413,,HCA Monthly Grant In Aid Claim - Feb 2014,NE11 0NA,"126,004,754.00",Yes
Communities & Local Government,DCLG,05/02/2014,IT - Service Contracts,Finance & Corporate Services,COMPUTACENTER (UK) LTD,,Large,,226023463,5106200806,Managed / Outsourced Services,EVault circuit charges Oct13-Sep14,AL10 9TW,"1,666.80",
Communities & Local Government,DCLG,05/02/2014,IT - Service Contracts,Finance & Corporate Services,COMPUTACENTER (UK) LTD,,Large,,226023463,5106200808,Managed / Outsourced Services,EVault data storage Oct13-Sep14,AL10 9TW,"1,684.80",
Communities & Local Government,DCLG,05/02/2014,IT - Service Contracts,Localism,AIRWAVE SOLUTIONS LTD,,Large,,211461729,5106200818,Managed / Outsourced Services,Phase B England 2013/14,SL1 2EJ,"238,164.50",
Communities & Local Government,DCLG,05/02/2014,IT - Service Contracts,Localism,AIRWAVE SOLUTIONS LTD,,Large,,211461729,5106200819,Managed / Outsourced Services,Phase C England (MDT1A) 2013/14,SL1 2EJ,"94,406.92",
Communities & Local Government,DCLG,05/02/2014,IT - Service Contracts,Localism,AIRWAVE SOLUTIONS LTD,,Large,,211461729,5106200820,Managed / Outsourced Services,Phase B Scotland 2013/14,SL1 2EJ,"5,684.49",
Communities & Local Government,DCLG,05/02/2014,IT - Service Contracts,Localism,AIRWAVE SOLUTIONS LTD,,Large,,211461729,5106200821,Managed / Outsourced Services,Phase B Wales 2013/14,SL1 2EJ,"27,946.90",
Communities & Local Government,DCLG,05/02/2014,IT - Service Contracts,Localism,AIRWAVE SOLUTIONS LTD,,Large,,211461729,5106200822,Managed / Outsourced Services,Phase A England 2013/14,SL1 2EJ,"898,189.73",
Communities & Local Government,DCLG,05/02/2014,IT - Service Contracts,Localism,AIRWAVE SOLUTIONS LTD,,Large,,211461729,5106200823,Managed / Outsourced Services,Phase A Wales 2013/14,SL1 2EJ,"121,805.75",
Communities & Local Government,DCLG,05/02/2014,IT - Service Contracts,Localism,AIRWAVE SOLUTIONS LTD,,Large,,211461729,5106200824,Managed / Outsourced Services,Phase A Scotland 2013/14,SL1 2EJ,"159,768.23",
Communities & Local Government,DCLG,05/02/2014,IT - Service Contracts,Localism,AIRWAVE SOLUTIONS LTD,,Large,,211461729,5106200825,Managed / Outsourced Services,Phase A England 2013/14,SL1 2EJ,"193,648.00",
Communities & Local Government,DCLG,05/02/2014,IT - Service Contracts,Localism,AIRWAVE SOLUTIONS LTD,,Large,,211461729,5106200825,Managed / Outsourced Services,Phase A Wales 2013/14,SL1 2EJ,"22,108.37",
Communities & Local Government,DCLG,05/02/2014,IT - Service Contracts,Localism,AIRWAVE SOLUTIONS LTD,,Large,,211461729,5106200825,Managed / Outsourced Services,Phase A Scotland 2013/14,SL1 2EJ,"50,609.51",
Communities & Local Government,DCLG,05/02/2014,IT - Service Contracts,Neighbourhoods,LOCKHEED MARTIN BUSINESS TECH SOLUT,,Large,,399909910,5106200826,Managed / Outsourced Services,Database ERDF (development service),PA4 9LH,"35,700.00",
Communities & Local Government,DCLG,05/02/2014,IT - Service Contracts,Neighbourhoods,LOCKHEED MARTIN BUSINESS TECH SOLUT,,Large,,399909910,5106200827,Managed / Outsourced Services,Database ERDF (development service),PA4 9LH,"25,041.00",
Communities & Local Government,DCLG,05/02/2014,IT - Software Maintenance,Finance & Corporate Services,KAIZEN ASSOCIATES LTD,,Micro,,217482430,5106200828,Managed / Outsourced Services,SAP Application Support,SE1 6SW,"2,399.84",
Communities & Local Government,DCLG,05/02/2014,Legal Fees,Finance & Corporate Services,SIMMONS & SIMMONS,,Large,,216616279,5106200783,Legal,Legal Advice,EC2Y 9SS,"1,200.00",
Communities & Local Government,DCLG,05/02/2014,Office Supplies,Finance & Corporate Services,CONSERVATION BY DESIGN LTD,,Large,,771231693,5106200795,Office Supplies,Bespoke Tubes (TD9202),MK42 7AW,546,
Communities & Local Government,DCLG,05/02/2014,Office Supplies,Finance & Corporate Services,CONSERVATION BY DESIGN LTD,,Large,,771231693,5106200795,Office Supplies,Postage and packing,MK42 7AW,60,
Communities & Local Government,DCLG,05/02/2014,Office Supplies,Finance & Corporate Services,CONSERVATION BY DESIGN LTD,,Large,,771231693,5106200795,Office Supplies,SUMPAPB6584 Map/Banner Bag 1067mm x241.,MK42 7AW,570,
Communities & Local Government,DCLG,05/02/2014,Printing,"Strategy, Communications and Private Office",STATIONERY OFFICE LTD,,Large,,779375633,5106200804,Printing Services,Statutory Instruments  publication,NR3 1PD,160,
Communities & Local Government,DCLG,05/02/2014,Printing,"Strategy, Communications and Private Office",STATIONERY OFFICE LTD,,Large,,779375633,5106200804,Printing Services,VAT chargeable printing services,NR3 1PD,130,
Communities & Local Government,DCLG,05/02/2014,Printing,"Strategy, Communications and Private Office",STATIONERY OFFICE LTD,,Large,,779375633,5106200807,Printing Services,Statutory Instruments  publication,NR3 1PD,160,
Communities & Local Government,DCLG,05/02/2014,Printing,"Strategy, Communications and Private Office",STATIONERY OFFICE LTD,,Large,,779375633,5106200807,Printing Services,VAT chargeable printing services,NR3 1PD,130,
Communities & Local Government,DCLG,05/02/2014,Printing,"Strategy, Communications and Private Office",STATIONERY OFFICE LTD,,Large,,779375633,5106200809,Printing Services,Statutory Instruments  publication,NR3 1PD,243,
Communities & Local Government,DCLG,05/02/2014,Printing,"Strategy, Communications and Private Office",STATIONERY OFFICE LTD,,Large,,779375633,5106200809,Printing Services,VAT chargeable printing services,NR3 1PD,130,
Communities & Local Government,DCLG,05/02/2014,Professional services,Finance & Corporate Services,DAWES & FRASER CONSULTING LTD,,Small,,,5106200802,Business and Commercial Services,Contract and Technical support for IPC C,SE20 7BS,"6,636.00",
Communities & Local Government,DCLG,05/02/2014,Professional services,Finance & Corporate Services,DAWES & FRASER CONSULTING LTD,,Small,,,5106200802,Business and Commercial Services,Expenses,SE20 7BS,83.99,
Communities & Local Government,DCLG,05/02/2014,Publications,Finance & Corporate Services,JONES YARRELL LEADENHALL LTD,,Large,,211522354,5106200741,Learning and Development Materials,Journals supply 2013-14,E3 3JH,335.75,
Communities & Local Government,DCLG,05/02/2014,Publications,"Strategy, Communications and Private Office",JONES YARRELL LEADENHALL LTD,,Large,,211522354,5106200797,Learning and Development Materials,Newspaper and Journal susbcription,E3 3JH,591.26,
Communities & Local Government,DCLG,05/02/2014,Revenue Support grant payable,Localism,ADUR DC,,,,227472891,5000241349,,Grant Payable by Exchequer,BN43 6PR,"388,681.00",Yes
Communities & Local Government,DCLG,05/02/2014,Revenue Support grant payable,Localism,ALLERDALE BOROUGH COUNCIL,,,,230824120,5000241351,,Grant Payable by Exchequer,CA14 3YJ,"924,049.00",Yes
Communities & Local Government,DCLG,05/02/2014,Revenue Support grant payable,Localism,AMBER VALLEY BC,,,,,5000241353,,Grant Payable by Exchequer,DE5 3WZ,"761,638.00",Yes
Communities & Local Government,DCLG,05/02/2014,Revenue Support grant payable,Localism,ARUN DC,,,,211217668,5000241355,,Grant Payable by Exchequer,BN17 5LF,"806,921.00",Yes
Communities & Local Government,DCLG,05/02/2014,Revenue Support grant payable,Localism,ASHFIELD DC,,,,235415296,5000241357,,Grant Payable by Exchequer,NG17 8DA,"982,089.00",Yes
Communities & Local Government,DCLG,05/02/2014,Revenue Support grant payable,Localism,ASHFORD BC,,,,229467071,5000241359,,Grant Payable by Exchequer,TN23 1PL,"680,162.00",Yes
Communities & Local Government,DCLG,05/02/2014,Revenue Support grant payable,Localism,AVON FIRE AUTHORITY,,,,424872570,5000241361,,Grant Payable by Exchequer,BS1 6EU,"2,578,082.00",Yes
Communities & Local Government,DCLG,05/02/2014,Revenue Support grant payable,Localism,AYLESBURY VALE DC,,,,396710709,5000241363,,Grant Payable by Exchequer,HP20 1SD,"876,045.00",Yes
Communities & Local Government,DCLG,05/02/2014,Revenue Support grant payable,Localism,BABERGH DC,,,,232618405,5000241365,,Grant Payable by Exchequer,IP7 6SJ,"470,402.00",Yes
Communities & Local Government,DCLG,05/02/2014,Revenue Support grant payable,Localism,BARKING & DAGENHAM LB,,Public Bodies,,227419488,5000241367,,Grant Payable by Exchequer,RM10 7BY,"14,584,879.00",Yes
Communities & Local Government,DCLG,05/02/2014,Revenue Support grant payable,Localism,BARNET LBC,,,,211049507,5000241369,,Grant Payable by Exchequer,NW4 4BG,"10,218,503.00",Yes
Communities & Local Government,DCLG,05/02/2014,Revenue Support grant payable,Localism,BARNSLEY MBC,,Public Bodies,,211178595,5000241371,,Grant Payable by Exchequer,S70 2AQ,"13,457,182.00",Yes
Communities & Local Government,DCLG,05/02/2014,Revenue Support grant payable,Localism,BARROW BC,,,,295632913,5000241373,,Grant Payable by Exchequer,LA14 2LD,"791,056.00",Yes
Communities & Local Government,DCLG,05/02/2014,Revenue Support grant payable,Localism,BASILDON DC,,,,,5000241375,,Grant Payable by Exchequer,SS14 0DF,"1,254,027.00",Yes
Communities & Local Government,DCLG,05/02/2014,Revenue Support grant payable,Localism,BASINGSTOKE & DEANE BC,,,,228328506,5000241377,,Grant Payable by Exchequer,RG21 2AJ,"721,418.00",Yes
Communities & Local Government,DCLG,05/02/2014,Revenue Support grant payable,Localism,BASSETLAW DC,,,,230225054,5000241379,,Grant Payable by Exchequer,S80 2AH,"1,025,318.00",Yes
Communities & Local Government,DCLG,05/02/2014,Revenue Support grant payable,Localism,BATH & NORTH EAST SOMERSET DC,,,,214502499,5000241381,,Grant Payable by Exchequer,BA1 5AW,"3,032,847.00",Yes
Communities & Local Government,DCLG,05/02/2014,Revenue Support grant payable,Localism,BEDFORD BOROUGH COUNCIL,,,,211166889,5000241722,,Grant Payable by Exchequer,MK40 1SJ,"4,853,324.00",Yes
Communities & Local Government,DCLG,05/02/2014,Revenue Support grant payable,Localism,BEDS & LUTON FIRE & RESCUE SERVICE,,,,387821283,5000241383,,Grant Payable by Exchequer,MK42 7NR,"1,189,885.00",Yes
Communities & Local Government,DCLG,05/02/2014,Revenue Support grant payable,Localism,BEXLEY LB,,,,,5000241387,,Grant Payable by Exchequer,DA8 1TL,"7,339,570.00",Yes
Communities & Local Government,DCLG,05/02/2014,Revenue Support grant payable,Localism,BIRMINGHAM CITY CNCL,,,,213780559,5000241389,,Grant Payable by Exchequer,B3 3AB,"90,547,490.00",Yes
Communities & Local Government,DCLG,05/02/2014,Revenue Support grant payable,Localism,BLABY DC,,,,,5000241391,,Grant Payable by Exchequer,LE9 5EP,"490,537.00",Yes
Communities & Local Government,DCLG,05/02/2014,Revenue Support grant payable,Localism,BLACKBURN WITH DARWEN BC,,,,,5000241393,,Grant Payable by Exchequer,BB1 7DY,"10,533,749.00",Yes
Communities & Local Government,DCLG,05/02/2014,Revenue Support grant payable,Localism,BLACKPOOL BC,,,,,5000241395,,Grant Payable by Exchequer,FY1 1NA,"11,417,859.00",Yes
Communities & Local Government,DCLG,05/02/2014,Revenue Support grant payable,Localism,BOLSOVER DC,,Large,,235516523,5000241397,,Grant Payable by Exchequer,S44 6NF,"691,692.00",Yes
Communities & Local Government,DCLG,05/02/2014,Revenue Support grant payable,Localism,BOLTON MBC,,,,,5000241399,,Grant Payable by Exchequer,BL1 1RU,"16,110,036.00",Yes
Communities & Local Government,DCLG,05/02/2014,Revenue Support grant payable,Localism,BOSTON BC,,,,236417713,5000241401,,Grant Payable by Exchequer,PE21 8QR,"683,248.00",Yes
Communities & Local Government,DCLG,05/02/2014,Revenue Support grant payable,Localism,BOURNEMOUTH DC,,,,,5000241403,,Grant Payable by Exchequer,BH2 6EB,"6,329,337.00",Yes
Communities & Local Government,DCLG,05/02/2014,Revenue Support grant payable,Localism,BRACKNELL FOREST DC,,,,236184867,5000241405,,Grant Payable by Exchequer,RG12 1AQ,"2,928,559.00",Yes
Communities & Local Government,DCLG,05/02/2014,Revenue Support grant payable,Localism,BRADFORD MBC,,,,,5000241407,,Grant Payable by Exchequer,BD1 1HX,"35,200,975.00",Yes
Communities & Local Government,DCLG,05/02/2014,Revenue Support grant payable,Localism,BRAINTREE DC,,,,226941730,5000241409,,Grant Payable by Exchequer,CM7 6HB,"766,942.00",Yes
Communities & Local Government,DCLG,05/02/2014,Revenue Support grant payable,Localism,BRECKLAND DC,,,,232611384,5000241411,,Grant Payable by Exchequer,NR19 1EE,"1,000,844.00",Yes
Communities & Local Government,DCLG,05/02/2014,Revenue Support grant payable,Localism,BRENT LB,,,,,5000241413,,Grant Payable by Exchequer,HA9 9EZ,"22,325,418.00",Yes
Communities & Local Government,DCLG,05/02/2014,Revenue Support grant payable,Localism,BRENTWOOD BC,,,,227473188,5000241415,,Grant Payable by Exchequer,CM15 8AY,"364,947.00",Yes
Communities & Local Government,DCLG,05/02/2014,Revenue Support grant payable,Localism,BRIGHTON & HOVE CITY COUNCIL,,,,228455218,5000241417,,Grant Payable by Exchequer,BN3 2SR,"13,006,667.00",Yes
Communities & Local Government,DCLG,05/02/2014,Revenue Support grant payable,Localism,BRISTOL CITY CNCL,,,,211103882,5000241419,,Grant Payable by Exchequer,BS99 7BL,"22,434,388.00",Yes
Communities & Local Government,DCLG,05/02/2014,Revenue Support grant payable,Localism,BROADLAND DC,,,,219737785,5000241421,,Grant Payable by Exchequer,NR7 0DU,"679,670.00",Yes
Communities & Local Government,DCLG,05/02/2014,Revenue Support grant payable,Localism,BROMLEY LB,,,,211331954,5000241423,,Grant Payable by Exchequer,BR1 3UH,"5,809,829.00",Yes
Communities & Local Government,DCLG,05/02/2014,Revenue Support grant payable,Localism,BROMSGROVE DC,,,,236654745,5000241425,,Grant Payable by Exchequer,B60 1AA,"349,673.00",Yes
Communities & Local Government,DCLG,05/02/2014,Revenue Support grant payable,Localism,BROXBOURNE BOROUGH COUNCIL,,,,239931918,5000241427,,Grant Payable by Exchequer,EN8 9GX,"595,066.00",Yes
Communities & Local Government,DCLG,05/02/2014,Revenue Support grant payable,Localism,BROXTOWE BC,,,,239877640,5000241429,,Grant Payable by Exchequer,NG9 1AB,"684,854.00",Yes
Communities & Local Government,DCLG,05/02/2014,Revenue Support grant payable,Localism,BUCKS & MILTON KEYNES FIRE AUTH,,Public Bodies,,423679463,5000241431,,Grant Payable by Exchequer,HP20 1BD,"1,030,412.00",Yes
Communities & Local Government,DCLG,05/02/2014,Revenue Support grant payable,Localism,BURNLEY BC,,,,229413281,5000241433,,Grant Payable by Exchequer,BB11 1JA,"1,077,962.00",Yes
Communities & Local Government,DCLG,05/02/2014,Revenue Support grant payable,Localism,BURY MBC,,,,236491114,5000241435,,Grant Payable by Exchequer,BL9 0SP,"7,920,092.00",Yes
Communities & Local Government,DCLG,05/02/2014,Revenue Support grant payable,Localism,CALDERDALE MBC,,Public Bodies,,,5000241437,,Grant Payable by Exchequer,HX1 1YP,"9,288,076.00",Yes
Communities & Local Government,DCLG,05/02/2014,Revenue Support grant payable,Localism,CAMBRIDGE CITY COUNCIL,,,,210357534,5000241439,,Grant Payable by Exchequer,CB2 3NA,"1,079,804.00",Yes
Communities & Local Government,DCLG,05/02/2014,Revenue Support grant payable,Localism,CAMBRIDGESHIRE COUNTY CNCL,,,,219047347,5000241443,,Grant Payable by Exchequer,CB3 0AP,"9,874,880.00",Yes
Communities & Local Government,DCLG,05/02/2014,Revenue Support grant payable,Localism,CAMBS & PETERBOROUGH FIRE AUTHORITY,,,,235999737,5000241441,,Grant Payable by Exchequer,PE29 2NA,"1,345,098.00",Yes
Communities & Local Government,DCLG,05/02/2014,Revenue Support grant payable,Localism,CAMDEN LONDON BOROUGH,,,,,5000241445,,Grant Payable by Exchequer,WC1H 8NG,"23,125,612.00",Yes
Communities & Local Government,DCLG,05/02/2014,Revenue Support grant payable,Localism,CANNOCK CHASE DC,,,,215064770,5000241447,,Grant Payable by Exchequer,WS11 1BG,"719,856.00",Yes
Communities & Local Government,DCLG,05/02/2014,Revenue Support grant payable,Localism,CANTERBURY CITY CNCL,,,,,5000241449,,Grant Payable by Exchequer,CT1 1YW,"1,107,911.00",Yes
Communities & Local Government,DCLG,05/02/2014,Revenue Support grant payable,Localism,CARLISLE CITY CNCL,,,,227471059,5000241451,,Grant Payable by Exchequer,CA3 8QG,"843,053.00",Yes
Communities & Local Government,DCLG,05/02/2014,Revenue Support grant payable,Localism,CASTLE POINT BC,,Public Bodies,,228217931,5000241454,,Grant Payable by Exchequer,SS7 1TF,"497,794.00",Yes
Communities & Local Government,DCLG,05/02/2014,Revenue Support grant payable,Localism,CENTRAL BEDFORDSHIRE COUNCIL,,,,232624882,5000241714,,Grant Payable by Exchequer,SG17 5TQ,"4,858,426.00",Yes
Communities & Local Government,DCLG,05/02/2014,Revenue Support grant payable,Localism,CHARNWOOD BC,,,,,5000241456,,Grant Payable by Exchequer,LE11 2TU,"1,014,646.00",Yes
Communities & Local Government,DCLG,05/02/2014,Revenue Support grant payable,Localism,CHELMSFORD BC,,,,,5000241458,,Grant Payable by Exchequer,CM1 1JE,"749,613.00",Yes
Communities & Local Government,DCLG,05/02/2014,Revenue Support grant payable,Localism,CHELTENHAM BC,,,,,5000241460,,Grant Payable by Exchequer,GL50 1PW,"671,609.00",Yes
Communities & Local Government,DCLG,05/02/2014,Revenue Support grant payable,Localism,CHERWELL DC,,,,,5000241462,,Grant Payable by Exchequer,OX15 4AA,"902,628.00",Yes
Communities & Local Government,DCLG,05/02/2014,Revenue Support grant payable,Localism,CHESHIRE EAST COUNCIL,,,,293699450,5000241715,,Grant Payable by Exchequer,CH1 1SG,"9,355,792.00",Yes
Communities & Local Government,DCLG,05/02/2014,Revenue Support grant payable,Localism,CHESHIRE FIRE AUTHORITY,,,,424872737,5000241464,,Grant Payable by Exchequer,CW7 2FQ,"1,896,202.00",Yes
Communities & Local Government,DCLG,05/02/2014,Revenue Support grant payable,Localism,CHESHIRE WEST AND CHESTER,,Large,,215584383,5000241716,,Grant Payable by Exchequer,CH1 2NP,"12,516,014.00",Yes
Communities & Local Government,DCLG,05/02/2014,Revenue Support grant payable,Localism,CHESTERFIELD BC,,,,232102301,5000241466,,Grant Payable by Exchequer,S40 1LP,"852,745.00",Yes
Communities & Local Government,DCLG,05/02/2014,Revenue Support grant payable,Localism,CHICHESTER DC,,,,739800998,5000241468,,Grant Payable by Exchequer,PO19 1TY,"495,301.00",Yes
Communities & Local Government,DCLG,05/02/2014,Revenue Support grant payable,Localism,CHILTERN DC,,,,236183554,5000241470,,Grant Payable by Exchequer,HP6 5AW,"191,174.00",Yes
Communities & Local Government,DCLG,05/02/2014,Revenue Support grant payable,Localism,CHORLEY DC,,,,236415576,5000241472,,Grant Payable by Exchequer,PR7 1AL,"695,153.00",Yes
Communities & Local Government,DCLG,05/02/2014,Revenue Support grant payable,Localism,CHRISTCHURCH BC,,,,227415213,5000241474,,Grant Payable by Exchequer,BH23 1AZ,"218,952.00",Yes
Communities & Local Government,DCLG,05/02/2014,Revenue Support grant payable,Localism,CITY OF LINCOLN COUNCIL,,,,,5000241408,,Grant Payable by Exchequer,LN1 1DB,"964,136.00",Yes
Communities & Local Government,DCLG,05/02/2014,Revenue Support grant payable,Localism,CITY OF WAKEFIELD MDC,,,,,5000241677,,Grant Payable by Exchequer,WF1 2QW,"17,049,924.00",Yes
Communities & Local Government,DCLG,05/02/2014,Revenue Support grant payable,Localism,CLEVELAND FIRE AUTHORITY,,,,424872778,5000241479,,Grant Payable by Exchequer,TS25 5TB,"2,367,269.00",Yes
Communities & Local Government,DCLG,05/02/2014,Revenue Support grant payable,Localism,CO DURHAM & DARLINGTON FIRE AND RES,,,,424872851,5000241527,,Grant Payable by Exchequer,DH1 5UE,"1,566,681.00",Yes
Communities & Local Government,DCLG,05/02/2014,Revenue Support grant payable,Localism,COLCHESTER BC,,,,,5000241482,,Grant Payable by Exchequer,CO3 3WG,"1,022,717.00",Yes
Communities & Local Government,DCLG,05/02/2014,Revenue Support grant payable,Localism,COPELAND BC,,,,236414827,5000241484,,Grant Payable by Exchequer,CA28 7NY,"637,461.00",Yes
Communities & Local Government,DCLG,05/02/2014,Revenue Support grant payable,Localism,CORBY BC,,,,,5000241485,,Grant Payable by Exchequer,NN17 1GD,"534,502.00",Yes
Communities & Local Government,DCLG,05/02/2014,Revenue Support grant payable,Localism,CORNWALL COUNCIL,,,,211334404,5000241717,,Grant Payable by Exchequer,TR1 3AY,"22,455,314.00",Yes
Communities & Local Government,DCLG,05/02/2014,Revenue Support grant payable,Localism,CORPORATION OF LONDON,,,,225438175,5000241476,,Grant Payable by Exchequer,EC2P 2EJ,"4,378,953.00",Yes
Communities & Local Government,DCLG,05/02/2014,Revenue Support grant payable,Localism,COTSWOLD DC,,,,232462085,5000241488,,Grant Payable by Exchequer,GL7 1PX,"376,134.00",Yes
Communities & Local Government,DCLG,05/02/2014,Revenue Support grant payable,Localism,COVENTRY CITY CNCL,,,,210384802,5000241490,,Grant Payable by Exchequer,CV1 2QL,"19,112,952.00",Yes
Communities & Local Government,DCLG,05/02/2014,Revenue Support grant payable,Localism,CRAVEN DISTRICT COUNCIL,,,,215577851,5000241492,,Grant Payable by Exchequer,BD23 1PS,"326,740.00",Yes
Communities & Local Government,DCLG,05/02/2014,Revenue Support grant payable,Localism,CRAWLEY BC,,,,211222500,5000241494,,Grant Payable by Exchequer,RH10 1UZ,"920,844.00",Yes
Communities & Local Government,DCLG,05/02/2014,Revenue Support grant payable,Localism,CROYDON LB,,,,212419973,5000241495,,Grant Payable by Exchequer,CR9 3JS,"16,285,875.00",Yes
Communities & Local Government,DCLG,05/02/2014,Revenue Support grant payable,Localism,CUMBRIA COUNTY CNCL,,,,211316542,5000241497,,Grant Payable by Exchequer,CA3 8NA,"15,458,746.00",Yes
Communities & Local Government,DCLG,05/02/2014,Revenue Support grant payable,Localism,DACORUM BC,,,,236448643,5000241499,,Grant Payable by Exchequer,HP1 1HH,"713,136.00",Yes
Communities & Local Government,DCLG,05/02/2014,Revenue Support grant payable,Localism,DARLINGTON BC,,,,,5000241501,,Grant Payable by Exchequer,TS19 1JA,"5,038,312.00",Yes
Communities & Local Government,DCLG,05/02/2014,Revenue Support grant payable,Localism,DARTFORD BC,,,,225694942,5000241503,,Grant Payable by Exchequer,DA1 1DR,"641,937.00",Yes
Communities & Local Government,DCLG,05/02/2014,Revenue Support grant payable,Localism,DAVENTRY DC,,,,239859333,5000241505,,Grant Payable by Exchequer,NN11 5AF,"500,582.00",Yes
Communities & Local Government,DCLG,05/02/2014,Revenue Support grant payable,Localism,DERBY CITY CNCL,,,,229641378,5000241507,,Grant Payable by Exchequer,DE1 2FS,"13,642,924.00",Yes
Communities & Local Government,DCLG,05/02/2014,Revenue Support grant payable,Localism,DERBYSHIRE COUNTYCOUNCIL,,,,232152967,5000241511,,Grant Payable by Exchequer,DE4 3AH,"17,045,078.00",Yes
Communities & Local Government,DCLG,05/02/2014,Revenue Support grant payable,Localism,DERBYSHIRE DALES DC,,,,,5000241513,,Grant Payable by Exchequer,DE4 3NN,"368,436.00",Yes
Communities & Local Government,DCLG,05/02/2014,Revenue Support grant payable,Localism,DERBYSHIRE FIRE AUTHORITY,,,,424872935,5000241509,,Grant Payable by Exchequer,DE55 1RH,"1,975,829.00",Yes
Communities & Local Government,DCLG,05/02/2014,Revenue Support grant payable,Localism,DEVON & SOMERSET FIRE & RESCUE SERV,,,,424872976,5000241517,,Grant Payable by Exchequer,EX3 0NW,"3,189,985.00",Yes
Communities & Local Government,DCLG,05/02/2014,Revenue Support grant payable,Localism,DEVON COUNTY CNCL,,,,213754018,5000241515,,Grant Payable by Exchequer,EX2 4QJ,"13,142,317.00",Yes
Communities & Local Government,DCLG,05/02/2014,Revenue Support grant payable,Localism,DONCASTER MBC,,,,,5000241519,,Grant Payable by Exchequer,DN1 3QA,"18,050,162.00",Yes
Communities & Local Government,DCLG,05/02/2014,Revenue Support grant payable,Localism,DORSET FIRE AUTHORITY,,,,,5000241521,,Grant Payable by Exchequer,DT1 1FB,"1,145,816.00",Yes
Communities & Local Government,DCLG,05/02/2014,Revenue Support grant payable,Localism,DOVER DC,,,,,5000241523,,Grant Payable by Exchequer,CT16 3PD,"936,539.00",Yes
Communities & Local Government,DCLG,05/02/2014,Revenue Support grant payable,Localism,DUDLEY MBC,,,,,5000241525,,Grant Payable by Exchequer,DY1 1HF,"16,279,810.00",Yes
Communities & Local Government,DCLG,05/02/2014,Revenue Support grant payable,Localism,DURHAM COUNTY COUNCIL,,,,228453601,5000241718,,Grant Payable by Exchequer,DH1 5UE,"27,999,615.00",Yes
Communities & Local Government,DCLG,05/02/2014,Revenue Support grant payable,Localism,EALING LB,,,,,5000241529,,Grant Payable by Exchequer,W5 2BY,"18,224,684.00",Yes
Communities & Local Government,DCLG,05/02/2014,Revenue Support grant payable,Localism,EAST CAMBRIDGESHIRE DC,,,,236472023,5000241531,,Grant Payable by Exchequer,CB7 4PL,"582,893.00",Yes
Communities & Local Government,DCLG,05/02/2014,Revenue Support grant payable,Localism,EAST DEVON DC,,,,,5000241533,,Grant Payable by Exchequer,EX10 8HL,"586,671.00",Yes
Communities & Local Government,DCLG,05/02/2014,Revenue Support grant payable,Localism,EAST DORSET DC,,,,228470456,5000241535,,Grant Payable by Exchequer,BH21 4HN,"208,579.00",Yes
Communities & Local Government,DCLG,05/02/2014,Revenue Support grant payable,Localism,EAST HAMPSHIRE DC,,,,,5000241537,,Grant Payable by Exchequer,GU31 4EX,"379,620.00",Yes
Communities & Local Government,DCLG,05/02/2014,Revenue Support grant payable,Localism,EAST HERTFORDSHIRE DC,,,,236176954,5000241539,,Grant Payable by Exchequer,SG13 8EQ,"544,786.00",Yes
Communities & Local Government,DCLG,05/02/2014,Revenue Support grant payable,Localism,EAST LINDSEY DC,,,,,5000241541,,Grant Payable by Exchequer,LN11 8UP,"1,615,409.00",Yes
Communities & Local Government,DCLG,05/02/2014,Revenue Support grant payable,Localism,EAST NORTHAMPTONSHIRE COUNCIL,,,,227475290,5000241543,,Grant Payable by Exchequer,NN14 4LZ,"569,613.00",Yes
Communities & Local Government,DCLG,05/02/2014,Revenue Support grant payable,Localism,EAST RIDING OF YORKS,,,,,5000241545,,Grant Payable by Exchequer,HU17 9AB,"9,261,269.00",Yes
Communities & Local Government,DCLG,05/02/2014,Revenue Support grant payable,Localism,EAST STAFFORDSHIRE BC,,,,226778033,5000241547,,Grant Payable by Exchequer,DE14 2EB,"756,194.00",Yes
Communities & Local Government,DCLG,05/02/2014,Revenue Support grant payable,Localism,EAST SUSSEX COUNTY CNCL,,,,,5000241549,,Grant Payable by Exchequer,BN7 1SF,"6,160,545.00",Yes
Communities & Local Government,DCLG,05/02/2014,Revenue Support grant payable,Localism,EAST SUSSEX FIRE & RESCUE SERVICE,,,,424873057,5000241551,,Grant Payable by Exchequer,BN21 1EU,"1,350,777.00",Yes
Communities & Local Government,DCLG,05/02/2014,Revenue Support grant payable,Localism,EASTBOURNE BC,,,,229896428,5000241553,,Grant Payable by Exchequer,BN21 4TW,"863,237.00",Yes
Communities & Local Government,DCLG,05/02/2014,Revenue Support grant payable,Localism,EASTLEIGH BOROUGH COUNCIL,,,,232669911,5000241555,,Grant Payable by Exchequer,SO5 9YN,"568,260.00",Yes
Communities & Local Government,DCLG,05/02/2014,Revenue Support grant payable,Localism,EDEN DC,,,,,5000241557,,Grant Payable by Exchequer,CA11 7QF,"405,512.00",Yes
Communities & Local Government,DCLG,05/02/2014,Revenue Support grant payable,Localism,ELMBRIDGE BOROUGH COUNCIL,,,,236082442,5000241559,,Grant Payable by Exchequer,KT10 9SD,"351,599.00",Yes
Communities & Local Government,DCLG,05/02/2014,Revenue Support grant payable,Localism,ENFIELD LB,,,,,5000241561,,Grant Payable by Exchequer,EN1 3XF,"16,312,243.00",Yes
Communities & Local Government,DCLG,05/02/2014,Revenue Support grant payable,Localism,EPPING FOREST DC,,,,775876360,5000241563,,Grant Payable by Exchequer,CM16 4BZ,"732,486.00",Yes
Communities & Local Government,DCLG,05/02/2014,Revenue Support grant payable,Localism,EPSOM & EWELL BC,,,,225423094,5000241565,,Grant Payable by Exchequer,KT18 5BY,"312,265.00",Yes
Communities & Local Government,DCLG,05/02/2014,Revenue Support grant payable,Localism,EREWASH BC,,,,211209762,5000241567,,Grant Payable by Exchequer,DE7 5RP,"840,257.00",Yes
Communities & Local Government,DCLG,05/02/2014,Revenue Support grant payable,Localism,ESSEX COUNTY CNCL,,,,233572986,5000241569,,Grant Payable by Exchequer,CM1 1JZ,"17,395,870.00",Yes
Communities & Local Government,DCLG,05/02/2014,Revenue Support grant payable,Localism,ESSEX FIRE AUTHORITY,,,,345412402,5000241571,,Grant Payable by Exchequer,CM8 3HB,"3,307,988.00",Yes
Communities & Local Government,DCLG,05/02/2014,Revenue Support grant payable,Localism,EXETER CITY CNCL,,,,,5000241573,,Grant Payable by Exchequer,EX1 1JN,"1,084,647.00",Yes
Communities & Local Government,DCLG,05/02/2014,Revenue Support grant payable,Localism,FAREHAM BC,,,,228474144,5000241575,,Grant Payable by Exchequer,PO16 7PU,"424,194.00",Yes
Communities & Local Government,DCLG,05/02/2014,Revenue Support grant payable,Localism,FENLAND DC,,,,227476348,5000241577,,Grant Payable by Exchequer,PE15 8NQ,"874,983.00",Yes
Communities & Local Government,DCLG,05/02/2014,Revenue Support grant payable,Localism,FOREST HEATH DISTRICT COUNCIL,,,,236678116,5000241579,,Grant Payable by Exchequer,IP28 7EY,"506,588.00",Yes
Communities & Local Government,DCLG,05/02/2014,Revenue Support grant payable,Localism,FOREST OF DEAN DC,,,,211278890,5000241581,,Grant Payable by Exchequer,GL16 8HG,"612,691.00",Yes
Communities & Local Government,DCLG,05/02/2014,Revenue Support grant payable,Localism,FYLDE BC,,,,227479912,5000241583,,Grant Payable by Exchequer,FY8 1LW,"457,438.00",Yes
Communities & Local Government,DCLG,05/02/2014,Revenue Support grant payable,Localism,GATESHEAD MBC,,,,216116041,5000241585,,Grant Payable by Exchequer,NE8 1HH,"13,819,923.00",Yes
Communities & Local Government,DCLG,05/02/2014,Revenue Support grant payable,Localism,GEDLING BC,,,,236180337,5000241587,,Grant Payable by Exchequer,NG5 6LU,"777,651.00",Yes
Communities & Local Government,DCLG,05/02/2014,Revenue Support grant payable,Localism,GLOUCESTER CITY CNCL,,,,230841392,5000241591,,Grant Payable by Exchequer,GL1 2EQ,"936,415.00",Yes
Communities & Local Government,DCLG,05/02/2014,Revenue Support grant payable,Localism,GLOUCESTERSHIRE COUNTY CNCL,,,,211272067,5000241593,,Grant Payable by Exchequer,GL1 2TG,"9,700,680.00",Yes
Communities & Local Government,DCLG,05/02/2014,Revenue Support grant payable,Localism,GOSPORT BOROUGH COUNCIL,,,,239825078,5000241595,,Grant Payable by Exchequer,PO12 1ED,"592,071.00",Yes
Communities & Local Government,DCLG,05/02/2014,Revenue Support grant payable,Localism,GRAVESHAM BC,,,,236178612,5000241597,,Grant Payable by Exchequer,DA12 1AU,"749,433.00",Yes
Communities & Local Government,DCLG,05/02/2014,Revenue Support grant payable,Localism,GREAT YARMOUTH BC,,,,292697372,5000241599,,Grant Payable by Exchequer,NR30 2QG,"970,831.00",Yes
Communities & Local Government,DCLG,05/02/2014,Revenue Support grant payable,Localism,GREATER LONDON AUTHORITY,,Public Bodies,,232112404,5000241589,,Grant Payable by Exchequer,SE10 1AJ,"38,077,251.00",Yes
Communities & Local Government,DCLG,05/02/2014,Revenue Support grant payable,Localism,GREATER MANCHESTER FIRE,,,,,5000241424,,Grant Payable by Exchequer,M27 2US,"8,098,075.00",Yes
Communities & Local Government,DCLG,05/02/2014,Revenue Support grant payable,Localism,GREENWICH LB,,,,,5000241601,,Grant Payable by Exchequer,SE18 6RA,"21,103,437.00",Yes
Communities & Local Government,DCLG,05/02/2014,Revenue Support grant payable,Localism,GUILDFORD BC,,,,236663720,5000241603,,Grant Payable by Exchequer,GU2 5BB,"644,123.00",Yes
Communities & Local Government,DCLG,05/02/2014,Revenue Support grant payable,Localism,HALTON BC,,,,227959376,5000241607,,Grant Payable by Exchequer,WA8 7QF,"8,533,568.00",Yes
Communities & Local Government,DCLG,05/02/2014,Revenue Support grant payable,Localism,HAMBLETON DC,,Large,,503481319,5000241609,,Grant Payable by Exchequer,DL6 2UU,"527,701.00",Yes
Communities & Local Government,DCLG,05/02/2014,Revenue Support grant payable,Localism,HAMMERSMITH & FULHAM LB,,,,216929489,5000241611,,Grant Payable by Exchequer,W6 9JU,"15,635,680.00",Yes
Communities & Local Government,DCLG,05/02/2014,Revenue Support grant payable,Localism,HAMPSHIRE FIRE & RESCUE AUTHORITY,,,,211325832,5000241613,,Grant Payable by Exchequer,SO23 8UB,"2,917,080.00",Yes
Communities & Local Government,DCLG,05/02/2014,Revenue Support grant payable,Localism,HARBOROUGH DC,,Public Bodies,,232611962,5000241615,,Grant Payable by Exchequer,LE16 7AG,"389,434.00",Yes
Communities & Local Government,DCLG,05/02/2014,Revenue Support grant payable,Localism,HARINGEY LB,,,,217471767,5000241617,,Grant Payable by Exchequer,N22 7TR,"19,379,139.00",Yes
Communities & Local Government,DCLG,05/02/2014,Revenue Support grant payable,Localism,HARLOW COUNCIL,,,,239999055,5000241723,,Grant Payable by Exchequer,CM20 1WG,"737,020.00",Yes
Communities & Local Government,DCLG,05/02/2014,Revenue Support grant payable,Localism,HARROGATE BOROUGH COUNCIL,,,,236660031,5000241621,,Grant Payable by Exchequer,HG1 2SG,"823,166.00",Yes
Communities & Local Government,DCLG,05/02/2014,Revenue Support grant payable,Localism,HARROW LB,,,,,5000241623,,Grant Payable by Exchequer,HA1 2UZ,"6,903,089.00",Yes
Communities & Local Government,DCLG,05/02/2014,Revenue Support grant payable,Localism,HART DC,,,,229723895,5000241625,,Grant Payable by Exchequer,GU13 8AE,"208,703.00",Yes
Communities & Local Government,DCLG,05/02/2014,Revenue Support grant payable,Localism,HARTLEPOOL BOROUGH COUNCIL,,,,424291797,5000241627,,Grant Payable by Exchequer,TS24 7BT,"6,734,174.00",Yes
Communities & Local Government,DCLG,05/02/2014,Revenue Support grant payable,Localism,HASTINGS BC,,,,,5000241629,,Grant Payable by Exchequer,TN34 3WN,"965,482.00",Yes
Communities & Local Government,DCLG,05/02/2014,Revenue Support grant payable,Localism,HAVANT BC,,,,211047543,5000241631,,Grant Payable by Exchequer,PO9 2AX,"791,299.00",Yes
Communities & Local Government,DCLG,05/02/2014,Revenue Support grant payable,Localism,HAVERING LB,,,,211209770,5000241633,,Grant Payable by Exchequer,RM1 3BB,"5,218,523.00",Yes
Communities & Local Government,DCLG,05/02/2014,Revenue Support grant payable,Localism,HEREFORD & WORCESTER FIRE & RESCUE,,,,236425484,5000241635,,Grant Payable by Exchequer,WR5 1JR,"989,595.00",Yes
Communities & Local Government,DCLG,05/02/2014,Revenue Support grant payable,Localism,HEREFORDSHIRE DISTRICT COUNCIL,,,,211510826,5000241637,,Grant Payable by Exchequer,HR1 1SH,"5,679,140.00",Yes
Communities & Local Government,DCLG,05/02/2014,Revenue Support grant payable,Localism,HERTFORDSHIRE COUNTY CNCL,,,,,5000241639,,Grant Payable by Exchequer,SG13 9BD,"4,887,279.00",Yes
Communities & Local Government,DCLG,05/02/2014,Revenue Support grant payable,Localism,HERTSMERE BC,,,,237549253,5000241641,,Grant Payable by Exchequer,WD6 1WA,"643,559.00",Yes
Communities & Local Government,DCLG,05/02/2014,Revenue Support grant payable,Localism,HIGH PEAK BC,,,,239967771,5000241643,,Grant Payable by Exchequer,SK17 6EL,"559,638.00",Yes
Communities & Local Government,DCLG,05/02/2014,Revenue Support grant payable,Localism,HILLINGDON LB,,,,211198585,5000241645,,Grant Payable by Exchequer,UB8 1UW,"9,456,104.00",Yes
Communities & Local Government,DCLG,05/02/2014,Revenue Support grant payable,Localism,HINCKLEY & BOSWORTH BC,,,,211176144,5000241647,,Grant Payable by Exchequer,LE10 1BZ,"614,252.00",Yes
Communities & Local Government,DCLG,05/02/2014,Revenue Support grant payable,Localism,HORSHAM DC,,,,229776588,5000241350,,Grant Payable by Exchequer,RH12 1RL,"410,942.00",Yes
Communities & Local Government,DCLG,05/02/2014,Revenue Support grant payable,Localism,HOUNSLOW LB,,,,210388999,5000241352,,Grant Payable by Exchequer,TW3 4DN,"10,843,697.00",Yes
Communities & Local Government,DCLG,05/02/2014,Revenue Support grant payable,Localism,HULL CITY COUNCIL,,,,217460984,5000241378,,Grant Payable by Exchequer,HU1 2AA,"20,621,840.00",Yes
Communities & Local Government,DCLG,05/02/2014,Revenue Support grant payable,Localism,HUMBERSIDE FIRE & RESCUE SERVICE,,,,229832563,5000241354,,Grant Payable by Exchequer,HU4 7BB,"3,021,614.00",Yes
Communities & Local Government,DCLG,05/02/2014,Revenue Support grant payable,Localism,HUNTINGDONSHIRE DC,,,,235999216,5000241356,,Grant Payable by Exchequer,PE18 6TN,"1,083,385.00",Yes
Communities & Local Government,DCLG,05/02/2014,Revenue Support grant payable,Localism,HYNDBURN BC,,,,,5000241358,,Grant Payable by Exchequer,BB5 1EZ,"910,174.00",Yes
Communities & Local Government,DCLG,05/02/2014,Revenue Support grant payable,Localism,IPSWICH BC,,,,226861391,5000241362,,Grant Payable by Exchequer,IP1 2EE,"958,364.00",Yes
Communities & Local Government,DCLG,05/02/2014,Revenue Support grant payable,Localism,ISLE OF WIGHT CNCL,,,,236431730,5000241360,,Grant Payable by Exchequer,PO30 1UD,"6,562,238.00",Yes
Communities & Local Government,DCLG,05/02/2014,Revenue Support grant payable,Localism,ISLES OF SCILLY COUNCIL,,,,214146040,5000241364,,Grant Payable by Exchequer,TR21 0LW,"385,334.00",Yes
Communities & Local Government,DCLG,05/02/2014,Revenue Support grant payable,Localism,ISLINGTON LB,,,,225716729,5000241366,,Grant Payable by Exchequer,N1 1XR,"21,550,116.00",Yes
Communities & Local Government,DCLG,05/02/2014,Revenue Support grant payable,Localism,KENT & MEDWAY TOWNS FIRE AUTHORITY,,,,423679414,5000241372,,Grant Payable by Exchequer,ME15 6XB,"2,984,368.00",Yes
Communities & Local Government,DCLG,05/02/2014,Revenue Support grant payable,Localism,KENT COUNTY CNCL,,,,211334420,5000241370,,Grant Payable by Exchequer,ME14 1XQ,"24,056,460.00",Yes
Communities & Local Government,DCLG,05/02/2014,Revenue Support grant payable,Localism,KETTERING BC,,,,211271796,5000241374,,Grant Payable by Exchequer,NN15 7QX,"596,657.00",Yes
Communities & Local Government,DCLG,05/02/2014,Revenue Support grant payable,Localism,KINGS LYNN & WEST NORFOLK BC,,,,236417671,5000241376,,Grant Payable by Exchequer,PE30 1EX,"1,388,050.00",Yes
Communities & Local Government,DCLG,05/02/2014,Revenue Support grant payable,Localism,KINGSTON UPON THAMES,,,,,5000241380,,Grant Payable by Exchequer,KT1 1EU,"2,824,968.00",Yes
Communities & Local Government,DCLG,05/02/2014,Revenue Support grant payable,Localism,KIRKLEES MBC,,,,,5000241382,,Grant Payable by Exchequer,HD1 2YU,"18,185,000.00",Yes
Communities & Local Government,DCLG,05/02/2014,Revenue Support grant payable,Localism,KNOWSLEY MBC,,,,,5000241384,,Grant Payable by Exchequer,L36 9YZ,"15,770,066.00",Yes
Communities & Local Government,DCLG,05/02/2014,Revenue Support grant payable,Localism,LANCASHIRE COMBINED FIRE AUTHORITY,,,,230398732,5000241390,,Grant Payable by Exchequer,PR2 3LH,"3,706,513.00",Yes
Communities & Local Government,DCLG,05/02/2014,Revenue Support grant payable,Localism,LANCASHIRE COUNTY CNCL,,,,233136584,5000241388,,Grant Payable by Exchequer,PR1 8RD,"32,967,167.00",Yes
Communities & Local Government,DCLG,05/02/2014,Revenue Support grant payable,Localism,LANCASTER CITY CNCL,,,,228669990,5000241392,,Grant Payable by Exchequer,LA1 1PJ,"1,450,115.00",Yes
Communities & Local Government,DCLG,05/02/2014,Revenue Support grant payable,Localism,LEEDS CITY CNCL,,,,,5000241394,,Grant Payable by Exchequer,LS1 1JF,"37,447,867.00",Yes
Communities & Local Government,DCLG,05/02/2014,Revenue Support grant payable,Localism,LEICESTER CITY CNCL,,,,228219960,5000241396,,Grant Payable by Exchequer,LE1 6ZG,"25,612,898.00",Yes
Communities & Local Government,DCLG,05/02/2014,Revenue Support grant payable,Localism,LEICESTERSHIRE COUNTY CNCL,,,,423679836,5000241400,,Grant Payable by Exchequer,LE3 8RB,"5,078,058.00",Yes
Communities & Local Government,DCLG,05/02/2014,Revenue Support grant payable,Localism,LEICS LEICESTERSHIRE RUTLAND CFA,,,,,5000241398,,Grant Payable by Exchequer,LE3 8HD,"2,129,057.00",Yes
Communities & Local Government,DCLG,05/02/2014,Revenue Support grant payable,Localism,LEWES DC,,,,213090082,5000241402,,Grant Payable by Exchequer,BN7 2DQ,"449,135.00",Yes
Communities & Local Government,DCLG,05/02/2014,Revenue Support grant payable,Localism,LEWISHAM LONDON BOROUGH,,Large,,235653300,5000241404,,Grant Payable by Exchequer,SE6 4RU,"24,052,467.00",Yes
Communities & Local Government,DCLG,05/02/2014,Revenue Support grant payable,Localism,LICHFIELD DC,,,,236780086,5000241406,,Grant Payable by Exchequer,WS13 6YX,"465,575.00",Yes
Communities & Local Government,DCLG,05/02/2014,Revenue Support grant payable,Localism,LINCOLNSHIRE COUNTY CNCL,,,,,5000241410,,Grant Payable by Exchequer,LN1 1YT,"22,320,770.00",Yes
Communities & Local Government,DCLG,05/02/2014,Revenue Support grant payable,Localism,LIVERPOOL CITY COUNCIL,,,,,5000241412,,Grant Payable by Exchequer,L2 2DH,"44,667,230.00",Yes
Communities & Local Government,DCLG,05/02/2014,Revenue Support grant payable,Localism,LONDON BOROUGH OF HACKNEY,,,,225221597,5000241605,,Grant Payable by Exchequer,E8 4RU,"29,160,835.00",Yes
Communities & Local Government,DCLG,05/02/2014,Revenue Support grant payable,Localism,LONDON BOROUGH OF LAMBETH,,,,228216479,5000241386,,Grant Payable by Exchequer,SW2 1RL,"28,191,563.00",Yes
Communities & Local Government,DCLG,05/02/2014,Revenue Support grant payable,Localism,LONDON BOROUGH OF NEWHAM,,Large,,228454344,5000241459,,Grant Payable by Exchequer,E16 2QU,"29,274,882.00",Yes
Communities & Local Government,DCLG,05/02/2014,Revenue Support grant payable,Localism,LONDON BOROUGH OF REDBRIDGE,,,,211341417,5000241528,,Grant Payable by Exchequer,IG1 1NN,"11,754,018.00",Yes
Communities & Local Government,DCLG,05/02/2014,Revenue Support grant payable,Localism,LUTON BC,,,,365112155,5000241414,,Grant Payable by Exchequer,LU1 1DX,"11,519,069.00",Yes
Communities & Local Government,DCLG,05/02/2014,Revenue Support grant payable,Localism,MAIDSTONE BC,,,,293004214,5000241416,,Grant Payable by Exchequer,ME15 6JQ,"652,784.00",Yes
Communities & Local Government,DCLG,05/02/2014,Revenue Support grant payable,Localism,MALDON DC,,,,424668663,5000241418,,Grant Payable by Exchequer,CM9 7DL,"337,067.00",Yes
Communities & Local Government,DCLG,05/02/2014,Revenue Support grant payable,Localism,MALVERN HILLS DC,,,,227470424,5000241420,,Grant Payable by Exchequer,WR14 3AF,"402,147.00",Yes
Communities & Local Government,DCLG,05/02/2014,Revenue Support grant payable,Localism,MANCHESTER CITY CNCL,,,,211241393,5000241422,,Grant Payable by Exchequer,M60 2JR,"45,188,114.00",Yes
Communities & Local Government,DCLG,05/02/2014,Revenue Support grant payable,Localism,MANSFIELD DC,,,,237922968,5000241426,,Grant Payable by Exchequer,NG19 7BH,"943,366.00",Yes
Communities & Local Government,DCLG,05/02/2014,Revenue Support grant payable,Localism,MEDWAY COUNCIL,,,,210389746,5000241428,,Grant Payable by Exchequer,ME4 4TR,"10,604,611.00",Yes
Communities & Local Government,DCLG,05/02/2014,Revenue Support grant payable,Localism,MELTON BC,,,,346268340,5000241430,,Grant Payable by Exchequer,LE13 0UL,"313,801.00",Yes
Communities & Local Government,DCLG,05/02/2014,Revenue Support grant payable,Localism,MENDIP DISTRICT COUNCIL,,,,,5000241432,,Grant Payable by Exchequer,BA4 5BA,"686,968.00",Yes
Communities & Local Government,DCLG,05/02/2014,Revenue Support grant payable,Localism,MERSEYSIDE FIRE & RESCUE SERVICE,,,,210372331,5000241434,,Grant Payable by Exchequer,L30 4YD,"5,089,897.00",Yes
Communities & Local Government,DCLG,05/02/2014,Revenue Support grant payable,Localism,MERTON LB,,,,,5000241436,,Grant Payable by Exchequer,SM4 5DX,"7,201,178.00",Yes
Communities & Local Government,DCLG,05/02/2014,Revenue Support grant payable,Localism,MID DEVON DC,,,,213241137,5000241438,,Grant Payable by Exchequer,EX16 6PP,"523,087.00",Yes
Communities & Local Government,DCLG,05/02/2014,Revenue Support grant payable,Localism,MID SUFFOLK DC,,,,219028933,5000241440,,Grant Payable by Exchequer,IP6 8DL,"500,205.00",Yes
Communities & Local Government,DCLG,05/02/2014,Revenue Support grant payable,Localism,MID SUSSEX DC,,,,236675989,5000241442,,Grant Payable by Exchequer,RH16 1SS,"372,731.00",Yes
Communities & Local Government,DCLG,05/02/2014,Revenue Support grant payable,Localism,MIDDLESBROUGH BC,,,,,5000241444,,Grant Payable by Exchequer,TS1 9GA,"11,632,229.00",Yes
Communities & Local Government,DCLG,05/02/2014,Revenue Support grant payable,Localism,MILTON KEYNES BC,,,,506884659,5000241446,,Grant Payable by Exchequer,MK9 3EJ,"10,221,153.00",Yes
Communities & Local Government,DCLG,05/02/2014,Revenue Support grant payable,Localism,MOLE VALLEY DC,,,,225385772,5000241448,,Grant Payable by Exchequer,RH4 1SJ,"257,566.00",Yes
Communities & Local Government,DCLG,05/02/2014,Revenue Support grant payable,Localism,NEW FOREST DC,,,,,5000241452,,Grant Payable by Exchequer,SO41 9ZG,"800,484.00",Yes
Communities & Local Government,DCLG,05/02/2014,Revenue Support grant payable,Localism,NEWARK & SHERWOOD DC,,,,236186755,5000241453,,Grant Payable by Exchequer,NG23 5QX,"869,277.00",Yes
Communities & Local Government,DCLG,05/02/2014,Revenue Support grant payable,Localism,NEWCASTLE UNDER LYME BC,,,,229894373,5000241457,,Grant Payable by Exchequer,ST5 2AG,"944,375.00",Yes
Communities & Local Government,DCLG,05/02/2014,Revenue Support grant payable,Localism,NEWCASTLE UPON TYNE DC,,,,239154040,5000241455,,Grant Payable by Exchequer,NE99 1RD,"22,848,889.00",Yes
Communities & Local Government,DCLG,05/02/2014,Revenue Support grant payable,Localism,NORFOLK COUNTY COUNCIL,,,,232602789,5000241461,,Grant Payable by Exchequer,NR1 2DW,"26,971,469.00",Yes
Communities & Local Government,DCLG,05/02/2014,Revenue Support grant payable,Localism,NORTH DEVON DC,,,,,5000241463,,Grant Payable by Exchequer,EX31 1EA,"706,898.00",Yes
Communities & Local Government,DCLG,05/02/2014,Revenue Support grant payable,Localism,NORTH DORSET DC,,,,236185005,5000241465,,Grant Payable by Exchequer,DT11 7LL,"392,202.00",Yes
Communities & Local Government,DCLG,05/02/2014,Revenue Support grant payable,Localism,NORTH EAST DERBYSHIRE DC,,,,238879308,5000241450,,Grant Payable by Exchequer,S40 1LF,"616,275.00",Yes
Communities & Local Government,DCLG,05/02/2014,Revenue Support grant payable,Localism,NORTH EAST LINCOLN COUNCIL,,Public Bodies,,423962570,5000241467,,Grant Payable by Exchequer,DN35 8LN,"8,738,901.00",Yes
Communities & Local Government,DCLG,05/02/2014,Revenue Support grant payable,Localism,NORTH HERTS DC,,,,233593917,5000241469,,Grant Payable by Exchequer,SG6 3HN,"599,568.00",Yes
Communities & Local Government,DCLG,05/02/2014,Revenue Support grant payable,Localism,NORTH KESTEVEN DC,,,,,5000241471,,Grant Payable by Exchequer,NG34 7EF,"735,965.00",Yes
Communities & Local Government,DCLG,05/02/2014,Revenue Support grant payable,Localism,NORTH LINCOLNSHIRE DC,,Public Bodies,,221034841,5000241473,,Grant Payable by Exchequer,DN16 1AB,"7,295,894.00",Yes
Communities & Local Government,DCLG,05/02/2014,Revenue Support grant payable,Localism,NORTH NORFOLK DC,,,,239975964,5000241475,,Grant Payable by Exchequer,NR27 9EN,"762,320.00",Yes
Communities & Local Government,DCLG,05/02/2014,Revenue Support grant payable,Localism,NORTH SOMERSET DC,,,,,5000241477,,Grant Payable by Exchequer,BS23 1LL,"4,799,527.00",Yes
Communities & Local Government,DCLG,05/02/2014,Revenue Support grant payable,Localism,NORTH TYNESIDE MBC,,,,,5000241480,,Grant Payable by Exchequer,NE30 1AE,"11,416,594.00",Yes
Communities & Local Government,DCLG,05/02/2014,Revenue Support grant payable,Localism,NORTH WARWICKSHIRE BC,,,,,5000241481,,Grant Payable by Exchequer,CV9 1DE,"422,664.00",Yes
Communities & Local Government,DCLG,05/02/2014,Revenue Support grant payable,Localism,NORTH WEST LEICESTER DC,,,,232605782,5000241502,,Grant Payable by Exchequer,LE67 3FJ,"528,671.00",Yes
Communities & Local Government,DCLG,05/02/2014,Revenue Support grant payable,Localism,NORTH YORKSHIRE CC,,,,,5000241483,,Grant Payable by Exchequer,DL7 8AL,"5,557,495.00",Yes
Communities & Local Government,DCLG,05/02/2014,Revenue Support grant payable,Localism,NORTH YORKSHIRE FIRE & RESCUE AUTH,,,,423679778,5000241486,,Grant Payable by Exchequer,DL6 1AB,"1,232,488.00",Yes
Communities & Local Government,DCLG,05/02/2014,Revenue Support grant payable,Localism,NORTHAMPTON BOROUGH COUNCIL,,Large,,228310017,5000241487,,Grant Payable by Exchequer,NN4 4FF,"1,614,752.00",Yes
Communities & Local Government,DCLG,05/02/2014,Revenue Support grant payable,Localism,NORTHAMPTONSHIRE COUNTY COUNCIL,,Public Bodies,,385469184,5000241489,,Grant Payable by Exchequer,NN4 7DB,"16,010,004.00",Yes
Communities & Local Government,DCLG,05/02/2014,Revenue Support grant payable,Localism,NORTHUMBERLAND,,,,210308905,5000241719,,Grant Payable by Exchequer,NE61 2EF,"13,800,210.00",Yes
Communities & Local Government,DCLG,05/02/2014,Revenue Support grant payable,Localism,NORWICH CITY CNCL,,,,235981297,5000241491,,Grant Payable by Exchequer,NR2 1NH,"1,513,264.00",Yes
Communities & Local Government,DCLG,05/02/2014,Revenue Support grant payable,Localism,NOTTINGHAM CITY COUNCIL,,,,214495447,5000241493,,Grant Payable by Exchequer,M33 0DJ,"24,412,743.00",Yes
Communities & Local Government,DCLG,05/02/2014,Revenue Support grant payable,Localism,NOTTINGHAMSHIRE COUNTY CNCL,,,,,5000241496,,Grant Payable by Exchequer,NG1 4BU,"13,942,220.00",Yes
Communities & Local Government,DCLG,05/02/2014,Revenue Support grant payable,Localism,NOTTS & CITY NOTTINGHAM FIRE AUTH,,,,296814999,5000241498,,Grant Payable by Exchequer,NG5 8PD,"2,385,647.00",Yes
Communities & Local Government,DCLG,05/02/2014,Revenue Support grant payable,Localism,NUNEATON & BEDWORTH BC,,Large,,,5000241500,,Grant Payable by Exchequer,CV11 5AA,"872,583.00",Yes
Communities & Local Government,DCLG,05/02/2014,Revenue Support grant payable,Localism,OADBY & WIGSTON BC,,,,239831878,5000241504,,Grant Payable by Exchequer,LE8 2DR,"364,534.00",Yes
Communities & Local Government,DCLG,05/02/2014,Revenue Support grant payable,Localism,OLDHAM MBC,,,,213015574,5000241506,,Grant Payable by Exchequer,OL1 1UH,"15,314,418.00",Yes
Communities & Local Government,DCLG,05/02/2014,Revenue Support grant payable,Localism,OXFORD CITY CNCL,,,,236042586,5000241508,,Grant Payable by Exchequer,OX1 1DS,"1,582,334.00",Yes
Communities & Local Government,DCLG,05/02/2014,Revenue Support grant payable,Localism,OXFORDSHIRE CC,,,,228216438,5000241510,,Grant Payable by Exchequer,OX4 2GQ,"5,905,426.00",Yes
Communities & Local Government,DCLG,05/02/2014,Revenue Support grant payable,Localism,PENDLE BC,,,,548605328,5000241512,,Grant Payable by Exchequer,BB9 OLX,"1,029,149.00",Yes
Communities & Local Government,DCLG,05/02/2014,Revenue Support grant payable,Localism,PETERBOROUGH CITY CNCL,,,,,5000241514,,Grant Payable by Exchequer,PE1 1HG,"9,929,835.00",Yes
Communities & Local Government,DCLG,05/02/2014,Revenue Support grant payable,Localism,PLYMOUTH CITY COUNCIL,,Public Bodies,,236416095,5000241516,,Grant Payable by Exchequer,PL1 2AA,"13,788,131.00",Yes
Communities & Local Government,DCLG,05/02/2014,Revenue Support grant payable,Localism,POOLE BC,,,,,5000241518,,Grant Payable by Exchequer,BH15 2RU,"1,423,980.00",Yes
Communities & Local Government,DCLG,05/02/2014,Revenue Support grant payable,Localism,PORTSMOUTH CITY COUNCIL,,,,211183082,5000241520,,Grant Payable by Exchequer,PO1 2AR,"11,468,511.00",Yes
Communities & Local Government,DCLG,05/02/2014,Revenue Support grant payable,Localism,PRESTON BC,,,,232604124,5000241522,,Grant Payable by Exchequer,PR1 2RL,"1,405,330.00",Yes
Communities & Local Government,DCLG,05/02/2014,Revenue Support grant payable,Localism,PURBECK DC,,Public Bodies,,,5000241524,,Grant Payable by Exchequer,BH20 4PP,"254,200.00",Yes
Communities & Local Government,DCLG,05/02/2014,Revenue Support grant payable,Localism,READING BC,,,,210220399,5000241526,,Grant Payable by Exchequer,RG1 7TD,"6,751,298.00",Yes
Communities & Local Government,DCLG,05/02/2014,Revenue Support grant payable,Localism,REDCAR & CLEVELAND BOROUGH COUNCIL,,,,215175196,5000241530,,Grant Payable by Exchequer,TS6 9AR,"8,522,201.00",Yes
Communities & Local Government,DCLG,05/02/2014,Revenue Support grant payable,Localism,REDDITCH BC,,,,231421491,5000241532,,Grant Payable by Exchequer,B98 8AH,"521,505.00",Yes
Communities & Local Government,DCLG,05/02/2014,Revenue Support grant payable,Localism,REIGATE & BANSTEAD BC,,,,211313515,5000241534,,Grant Payable by Exchequer,RH2 OSH,"477,711.00",Yes
Communities & Local Government,DCLG,05/02/2014,Revenue Support grant payable,Localism,RIBBLE VALLEY BC,,,,232617894,5000241536,,Grant Payable by Exchequer,BB7 2RA,"320,127.00",Yes
Communities & Local Government,DCLG,05/02/2014,Revenue Support grant payable,Localism,RICHMONDSHIRE DC,,Large,,232245142,5000241538,,Grant Payable by Exchequer,DL10 4JX,"330,857.00",Yes
Communities & Local Government,DCLG,05/02/2014,Revenue Support grant payable,Localism,ROCHDALE MBC,,,,,5000241540,,Grant Payable by Exchequer,OL16 1LQ,"14,502,600.00",Yes
Communities & Local Government,DCLG,05/02/2014,Revenue Support grant payable,Localism,ROCHFORD DISTRICT COUNCIL,,,,387828767,5000241542,,Grant Payable by Exchequer,SS4 1BW,"347,997.00",Yes
Communities & Local Government,DCLG,05/02/2014,Revenue Support grant payable,Localism,ROSSENDALE BC,,,,237654020,5000241544,,Grant Payable by Exchequer,BB4 7LZ,"515,165.00",Yes
Communities & Local Government,DCLG,05/02/2014,Revenue Support grant payable,Localism,ROTHER DC,,,,,5000241546,,Grant Payable by Exchequer,TN39 3JX,"522,466.00",Yes
Communities & Local Government,DCLG,05/02/2014,Revenue Support grant payable,Localism,ROTHERHAM MBC,,,,211266937,5000241548,,Grant Payable by Exchequer,S65 1UF,"15,174,391.00",Yes
Communities & Local Government,DCLG,05/02/2014,Revenue Support grant payable,Localism,ROYAL BERKSHIRE FIRE AUTHORITY,,,,424872653,5000241385,,Grant Payable by Exchequer,RG30 4FS,"1,567,609.00",Yes
Communities & Local Government,DCLG,05/02/2014,Revenue Support grant payable,Localism,ROYAL BORO OF KENSINGTON & CHELSEA,,,,211124466,5000241368,,Grant Payable by Exchequer,W8 7NX,"12,463,273.00",Yes
Communities & Local Government,DCLG,05/02/2014,Revenue Support grant payable,Localism,RUGBY BC,,,,,5000241550,,Grant Payable by Exchequer,CV21 2LA,"570,662.00",Yes
Communities & Local Government,DCLG,05/02/2014,Revenue Support grant payable,Localism,RUNNYMEDE BOROUGH COUNCIL,,,,232225722,5000241552,,Grant Payable by Exchequer,KT15 2AH,"438,097.00",Yes
Communities & Local Government,DCLG,05/02/2014,Revenue Support grant payable,Localism,RUSHCLIFFE BOROUGH COUNCIL,,,,,5000241554,,Grant Payable by Exchequer,NG2 5FE,"524,427.00",Yes
Communities & Local Government,DCLG,05/02/2014,Revenue Support grant payable,Localism,RUSHMOOR BC,,,,232607606,5000241556,,Grant Payable by Exchequer,GU14 7JU,"562,762.00",Yes
Communities & Local Government,DCLG,05/02/2014,Revenue Support grant payable,Localism,RYEDALE DC,,,,,5000241558,,Grant Payable by Exchequer,YO17 0HH,"360,414.00",Yes
Communities & Local Government,DCLG,05/02/2014,Revenue Support grant payable,Localism,SALFORD CITY CNCL,,,,213180073,5000241560,,Grant Payable by Exchequer,M27 5AW,"17,167,566.00",Yes
Communities & Local Government,DCLG,05/02/2014,Revenue Support grant payable,Localism,SANDWELL MBC,,,,,5000241562,,Grant Payable by Exchequer,B69 3BS,"25,722,727.00",Yes
Communities & Local Government,DCLG,05/02/2014,Revenue Support grant payable,Localism,SCARBOROUGH BC,,Large,,,5000241564,,Grant Payable by Exchequer,YO11 2HG,"1,013,063.00",Yes
Communities & Local Government,DCLG,05/02/2014,Revenue Support grant payable,Localism,SEDGEMOOR DC,,,,211204011,5000241566,,Grant Payable by Exchequer,TA6 3AR,"898,079.00",Yes
Communities & Local Government,DCLG,05/02/2014,Revenue Support grant payable,Localism,SEFTON MBC,,,,232936125,5000241568,,Grant Payable by Exchequer,L20 3NQ,"14,283,334.00",Yes
Communities & Local Government,DCLG,05/02/2014,Revenue Support grant payable,Localism,SELBY DC,,,,239816721,5000241570,,Grant Payable by Exchequer,YO8 0SA,"581,151.00",Yes
Communities & Local Government,DCLG,05/02/2014,Revenue Support grant payable,Localism,SEVENOAKS DC,,,,236100913,5000241572,,Grant Payable by Exchequer,TN13 1HG,"400,912.00",Yes
Communities & Local Government,DCLG,05/02/2014,Revenue Support grant payable,Localism,SHEFFIELD CITY CNCL,,,,,5000241574,,Grant Payable by Exchequer,S1 1UR,"34,218,943.00",Yes
Communities & Local Government,DCLG,05/02/2014,Revenue Support grant payable,Localism,SHEPWAY DC,,,,235550878,5000241576,,Grant Payable by Exchequer,CT20 2QY,"820,966.00",Yes
Communities & Local Government,DCLG,05/02/2014,Revenue Support grant payable,Localism,SHROPSHIRE & WREKIN FIRE AUTHORITY,,,,424873610,5000241578,,Grant Payable by Exchequer,SY1 2HJ,"682,290.00",Yes
Communities & Local Government,DCLG,05/02/2014,Revenue Support grant payable,Localism,SHROPSHIRE COUNCIL,,Large,,217036490,5000241720,,Grant Payable by Exchequer,SY2 6ND,"8,887,306.00",Yes
Communities & Local Government,DCLG,05/02/2014,Revenue Support grant payable,Localism,SLOUGH BOROUGH COUNCIL,,,,211027123,5000241580,,Grant Payable by Exchequer,SL1 3UQ,"7,157,383.00",Yes
Communities & Local Government,DCLG,05/02/2014,Revenue Support grant payable,Localism,SOLIHULL MBC,,,,,5000241582,,Grant Payable by Exchequer,B91 3QR,"5,256,768.00",Yes
Communities & Local Government,DCLG,05/02/2014,Revenue Support grant payable,Localism,SOMERSET COUNTY CNCL,,,,211229406,5000241584,,Grant Payable by Exchequer,TA1 4DY,"8,744,701.00",Yes
Communities & Local Government,DCLG,05/02/2014,Revenue Support grant payable,Localism,SOUTH BUCKS DC,,,,221356624,5000241586,,Grant Payable by Exchequer,UB9 4LH,"192,376.00",Yes
Communities & Local Government,DCLG,05/02/2014,Revenue Support grant payable,Localism,SOUTH CAMBRIDGESHIRE DC,,,,,5000241588,,Grant Payable by Exchequer,CB3 6EA,"582,237.00",Yes
Communities & Local Government,DCLG,05/02/2014,Revenue Support grant payable,Localism,SOUTH DERBYSHIRE D C,,Public Bodies,,232612416,5000241590,,Grant Payable by Exchequer,DE11 0AH,"596,531.00",Yes
Communities & Local Government,DCLG,05/02/2014,Revenue Support grant payable,Localism,SOUTH GLOUCESTERSHIRE COUNCIL,,,,212834242,5000241592,,Grant Payable by Exchequer,BS15 2TR,"5,687,915.00",Yes
Communities & Local Government,DCLG,05/02/2014,Revenue Support grant payable,Localism,SOUTH HAMS DC,,,,236445342,5000241594,,Grant Payable by Exchequer,TQ9 5NE,"424,137.00",Yes
Communities & Local Government,DCLG,05/02/2014,Revenue Support grant payable,Localism,SOUTH HOLLAND,,,,236445383,5000241596,,Grant Payable by Exchequer,PE11 2XE,"845,722.00",Yes
Communities & Local Government,DCLG,05/02/2014,Revenue Support grant payable,Localism,SOUTH KESTEVEN DC,,,,227470747,5000241598,,Grant Payable by Exchequer,NG31 6PZ,"927,500.00",Yes
Communities & Local Government,DCLG,05/02/2014,Revenue Support grant payable,Localism,SOUTH LAKELAND DC,,,,236445466,5000241600,,Grant Payable by Exchequer,LA49 4DQ,"494,695.00",Yes
Communities & Local Government,DCLG,05/02/2014,Revenue Support grant payable,Localism,SOUTH NORFOLK DC,,,,232605717,5000241602,,Grant Payable by Exchequer,NR15 2XE,"686,555.00",Yes
Communities & Local Government,DCLG,05/02/2014,Revenue Support grant payable,Localism,SOUTH NORTHAMPTONSHIRE DC,,,,,5000241604,,Grant Payable by Exchequer,NN12 7AE,"414,781.00",Yes
Communities & Local Government,DCLG,05/02/2014,Revenue Support grant payable,Localism,SOUTH OXFORDSHIRE DC,,,,212296766,5000241606,,Grant Payable by Exchequer,OX10 8HQ,"521,633.00",Yes
Communities & Local Government,DCLG,05/02/2014,Revenue Support grant payable,Localism,SOUTH RIBBLE BOROUGH COUNCIL,,,,,5000241608,,Grant Payable by Exchequer,PR5 1DH,"516,096.00",Yes
Communities & Local Government,DCLG,05/02/2014,Revenue Support grant payable,Localism,SOUTH SOMERSET DC,,,,239850811,5000241610,,Grant Payable by Exchequer,BA20 2DS,"806,598.00",Yes
Communities & Local Government,DCLG,05/02/2014,Revenue Support grant payable,Localism,SOUTH STAFFORDSHIRE DC,,,,210305155,5000241612,,Grant Payable by Exchequer,WV8 1PX,"554,940.00",Yes
Communities & Local Government,DCLG,05/02/2014,Revenue Support grant payable,Localism,SOUTH TYNESIDE COUNCIL,,,,345736438,5000241614,,Grant Payable by Exchequer,NE33 2RL,"12,502,456.00",Yes
Communities & Local Government,DCLG,05/02/2014,Revenue Support grant payable,Localism,SOUTH YORKSHIRE FIRE & CD,,,,424872620,5000241616,,Grant Payable by Exchequer,S1 3FG,"3,962,119.00",Yes
Communities & Local Government,DCLG,05/02/2014,Revenue Support grant payable,Localism,SOUTHAMPTON CITY CNCL,,,,216927475,5000241618,,Grant Payable by Exchequer,SO14 7LY,"13,083,721.00",Yes
Communities & Local Government,DCLG,05/02/2014,Revenue Support grant payable,Localism,SOUTHEND ON SEA BC,,,,217067263,5000241619,,Grant Payable by Exchequer,SS2 6EP,"7,762,959.00",Yes
Communities & Local Government,DCLG,05/02/2014,Revenue Support grant payable,Localism,SOUTHWARK LB,,,,,5000241620,,Grant Payable by Exchequer,SE1P 5LX,"30,430,053.00",Yes
Communities & Local Government,DCLG,05/02/2014,Revenue Support grant payable,Localism,SPELTHORNE DC,,,,211177332,5000241622,,Grant Payable by Exchequer,TW18 1XB,"424,251.00",Yes
Communities & Local Government,DCLG,05/02/2014,Revenue Support grant payable,Localism,ST ALBANS CITY COUNCIL,,,,218692510,5000241624,,Grant Payable by Exchequer,AL1 3JE,"439,331.00",Yes
Communities & Local Government,DCLG,05/02/2014,Revenue Support grant payable,Localism,ST EDMUNDSBURY BC,,,,,5000241626,,Grant Payable by Exchequer,IP33 3YS,"554,190.00",Yes
Communities & Local Government,DCLG,05/02/2014,Revenue Support grant payable,Localism,ST HELENS MBC,,,,,5000241628,,Grant Payable by Exchequer,WA10 1HP,"10,924,772.00",Yes
Communities & Local Government,DCLG,05/02/2014,Revenue Support grant payable,Localism,STAFFORD BC,,,,227476934,5000241630,,Grant Payable by Exchequer,ST16 3AQ,"667,586.00",Yes
Communities & Local Government,DCLG,05/02/2014,Revenue Support grant payable,Localism,STAFFORDSHIRE  FIRE & RESCUE SERV,,,,232600577,5000241634,,Grant Payable by Exchequer,ST15 0BS,"2,115,630.00",Yes
Communities & Local Government,DCLG,05/02/2014,Revenue Support grant payable,Localism,STAFFORDSHIRE COUNTY CNCL,,,,,5000241632,,Grant Payable by Exchequer,ST16 2LH,"12,955,554.00",Yes
Communities & Local Government,DCLG,05/02/2014,Revenue Support grant payable,Localism,STAFFORDSHIRE MOORLANDS DC,,,,232749775,5000241636,,Grant Payable by Exchequer,ST13 6HQ,"619,841.00",Yes
Communities & Local Government,DCLG,05/02/2014,Revenue Support grant payable,Localism,STEVENAGE BC,,,,236440186,5000241638,,Grant Payable by Exchequer,SG1 1HN,"650,251.00",Yes
Communities & Local Government,DCLG,05/02/2014,Revenue Support grant payable,Localism,STOCKPORT MBC,,,,228706248,5000241640,,Grant Payable by Exchequer,SK1 3XE,"8,336,774.00",Yes
Communities & Local Government,DCLG,05/02/2014,Revenue Support grant payable,Localism,STOCKTON ON TEES BC,,,,,5000241642,,Grant Payable by Exchequer,TS23 2YS,"9,376,506.00",Yes
Communities & Local Government,DCLG,05/02/2014,Revenue Support grant payable,Localism,STOKE ON TRENT CITY COUNCIL,,,,216037890,5000241644,,Grant Payable by Exchequer,ST4 1RJ,"17,223,178.00",Yes
Communities & Local Government,DCLG,05/02/2014,Revenue Support grant payable,Localism,STRATFORD ON AVON DC,,,,227473881,5000241646,,Grant Payable by Exchequer,CV37 6HX,"543,362.00",Yes
Communities & Local Government,DCLG,05/02/2014,Revenue Support grant payable,Localism,STROUD DC,,,,,5000241648,,Grant Payable by Exchequer,GL5 4UB,"494,653.00",Yes
Communities & Local Government,DCLG,05/02/2014,Revenue Support grant payable,Localism,SUFFOLK COASTAL DC,,,,239933203,5000241650,,Grant Payable by Exchequer,IP12 1AU,"633,648.00",Yes
Communities & Local Government,DCLG,05/02/2014,Revenue Support grant payable,Localism,SUFFOLK COUNTY CNCL,,Public Bodies,,232767710,5000241649,,Grant Payable by Exchequer,IP4 2JP,"15,509,348.00",Yes
Communities & Local Government,DCLG,05/02/2014,Revenue Support grant payable,Localism,SUNDERLAND DC,,,,215599312,5000241651,,Grant Payable by Exchequer,SR2 7DN,"21,705,730.00",Yes
Communities & Local Government,DCLG,05/02/2014,Revenue Support grant payable,Localism,SURREY HEATH BC,,,,236445441,5000241652,,Grant Payable by Exchequer,GU15 3HD,"314,071.00",Yes
Communities & Local Government,DCLG,05/02/2014,Revenue Support grant payable,Localism,SUTTON LB,,,,,5000241653,,Grant Payable by Exchequer,SM1 1EA,"6,336,199.00",Yes
Communities & Local Government,DCLG,05/02/2014,Revenue Support grant payable,Localism,SWALE BC,,,,239842768,5000241654,,Grant Payable by Exchequer,ME10 3HT,"1,084,487.00",Yes
Communities & Local Government,DCLG,05/02/2014,Revenue Support grant payable,Localism,SWINDON BC,,,,458639697,5000241655,,Grant Payable by Exchequer,SN1 2JH,"5,618,188.00",Yes
Communities & Local Government,DCLG,05/02/2014,Revenue Support grant payable,Localism,TAMESIDE MBC,,,,212635875,5000241656,,Grant Payable by Exchequer,OL6 6DL,"13,306,741.00",Yes
Communities & Local Government,DCLG,05/02/2014,Revenue Support grant payable,Localism,TAMWORTH BOROUGH COUNCIL,,,,232612457,5000241657,,Grant Payable by Exchequer,B79 7BZ,"591,119.00",Yes
Communities & Local Government,DCLG,05/02/2014,Revenue Support grant payable,Localism,TANDRIDGE DC,,,,225481076,5000241658,,Grant Payable by Exchequer,RH8 0BT,"253,877.00",Yes
Communities & Local Government,DCLG,05/02/2014,Revenue Support grant payable,Localism,TAUNTON DEANE BC,,,,236185294,5000241659,,Grant Payable by Exchequer,TA1 1HE,"640,098.00",Yes
Communities & Local Government,DCLG,05/02/2014,Revenue Support grant payable,Localism,TEIGNBRIDGE DC,,,,236440475,5000241660,,Grant Payable by Exchequer,TQ12 4XX,"802,164.00",Yes
Communities & Local Government,DCLG,05/02/2014,Revenue Support grant payable,Localism,TELFORD & WREKIN DC,,,,230235801,5000241661,,Grant Payable by Exchequer,TF3 4LF,"9,156,769.00",Yes
Communities & Local Government,DCLG,05/02/2014,Revenue Support grant payable,Localism,TENDRING DC,,,,,5000241662,,Grant Payable by Exchequer,CO15 1SE,"1,278,774.00",Yes
Communities & Local Government,DCLG,05/02/2014,Revenue Support grant payable,Localism,TEST VALLEY BC,,Large,,225442698,5000241663,,Grant Payable by Exchequer,SP10 3AJ,"562,844.00",Yes
Communities & Local Government,DCLG,05/02/2014,Revenue Support grant payable,Localism,TEWKESBURY BC,,,,232740399,5000241664,,Grant Payable by Exchequer,GL20 5TT,"436,380.00",Yes
Communities & Local Government,DCLG,05/02/2014,Revenue Support grant payable,Localism,THANET DC,,,,232309369,5000241665,,Grant Payable by Exchequer,CT8 1XZ,"1,194,539.00",Yes
Communities & Local Government,DCLG,05/02/2014,Revenue Support grant payable,Localism,THREE RIVERS DC,,,,,5000241666,,Grant Payable by Exchequer,WD3 1RL,"399,461.00",Yes
Communities & Local Government,DCLG,05/02/2014,Revenue Support grant payable,Localism,THURROCK  BOROUGH COUNCIL,,,,,5000241667,,Grant Payable by Exchequer,RM17 6LT,"7,303,827.00",Yes
Communities & Local Government,DCLG,05/02/2014,Revenue Support grant payable,Localism,TONBRIDGE & MALLING BC,,,,,5000241668,,Grant Payable by Exchequer,ME19 6LZ,"460,929.00",Yes
Communities & Local Government,DCLG,05/02/2014,Revenue Support grant payable,Localism,TORBAY BC,,,,,5000241669,,Grant Payable by Exchequer,TQ1 3DR,"7,157,222.00",Yes
Communities & Local Government,DCLG,05/02/2014,Revenue Support grant payable,Localism,TORRIDGE DC,,Public Bodies,,,5000241670,,Grant Payable by Exchequer,EX39 2HT,"601,743.00",Yes
Communities & Local Government,DCLG,05/02/2014,Revenue Support grant payable,Localism,TOWER HAMLETS LB,,,,231315144,5000241671,,Grant Payable by Exchequer,E14 2BG,"29,288,354.00",Yes
Communities & Local Government,DCLG,05/02/2014,Revenue Support grant payable,Localism,TRAFFORD MBC,,,,,5000241672,,Grant Payable by Exchequer,M32 0YY,"8,010,093.00",Yes
Communities & Local Government,DCLG,05/02/2014,Revenue Support grant payable,Localism,TUNBRIDGE WELLS BC,,,,775221013,5000241673,,Grant Payable by Exchequer,TN1 1RS,"522,307.00",Yes
Communities & Local Government,DCLG,05/02/2014,Revenue Support grant payable,Localism,TYNE & WEAR FIRE AUTHORITY,,,,215599312,5000241674,,Grant Payable by Exchequer,SR2 7DN,"3,929,464.00",Yes
Communities & Local Government,DCLG,05/02/2014,Revenue Support grant payable,Localism,UTTLESFORD DC,,,,424423242,5000241675,,Grant Payable by Exchequer,CB11 4ER,"310,845.00",Yes
Communities & Local Government,DCLG,05/02/2014,Revenue Support grant payable,Localism,VALE OF WHITE HORSE DC,,,,,5000241676,,Grant Payable by Exchequer,OX14 3JH,"521,287.00",Yes
Communities & Local Government,DCLG,05/02/2014,Revenue Support grant payable,Localism,W YORKSHIRE FIRE & RESCUE AUTH,,,,236428595,5000241698,,Grant Payable by Exchequer,BD11 2DY,"6,252,636.00",Yes
Communities & Local Government,DCLG,05/02/2014,Revenue Support grant payable,Localism,WALSALL MBC,,,,212515585,5000241678,,Grant Payable by Exchequer,WS1 1TW,"17,670,839.00",Yes
Communities & Local Government,DCLG,05/02/2014,Revenue Support grant payable,Localism,WALTHAM FOREST LB,,Large,,,5000241679,,Grant Payable by Exchequer,E17 4JF,"16,582,233.00",Yes
Communities & Local Government,DCLG,05/02/2014,Revenue Support grant payable,Localism,WANDSWORTH LB,,,,,5000241680,,Grant Payable by Exchequer,SW18 2PU,"19,410,822.00",Yes
Communities & Local Government,DCLG,05/02/2014,Revenue Support grant payable,Localism,WARRINGTON BC,,,,,5000241681,,Grant Payable by Exchequer,WA1 1BN,"6,273,908.00",Yes
Communities & Local Government,DCLG,05/02/2014,Revenue Support grant payable,Localism,WARWICK,,,,,5000241682,,Grant Payable by Exchequer,CV32 4NW,"814,709.00",Yes
Communities & Local Government,DCLG,05/02/2014,Revenue Support grant payable,Localism,WARWICKSHIRE COUNTY CNCL,,,,210396290,5000241683,,Grant Payable by Exchequer,CV34 4RH,"5,260,367.00",Yes
Communities & Local Government,DCLG,05/02/2014,Revenue Support grant payable,Localism,WATFORD COUNCIL,,,,215498572,5000241684,,Grant Payable by Exchequer,WD17 3EX,"624,459.00",Yes
Communities & Local Government,DCLG,05/02/2014,Revenue Support grant payable,Localism,WAVENEY DISTRICT COUNCIL,,Large,,229740980,5000241685,,Grant Payable by Exchequer,NR32 1HS,"1,022,244.00",Yes
Communities & Local Government,DCLG,05/02/2014,Revenue Support grant payable,Localism,WAVERLEY BC,,Public Bodies,,236429064,5000241686,,Grant Payable by Exchequer,GU7 1HR,"348,438.00",Yes
Communities & Local Government,DCLG,05/02/2014,Revenue Support grant payable,Localism,WEALDEN DC,,,,232688697,5000241687,,Grant Payable by Exchequer,BN22 9LN,"513,766.00",Yes
Communities & Local Government,DCLG,05/02/2014,Revenue Support grant payable,Localism,WELLINGBOROUGH BOROUGH COUNCIL,,Large,,230851581,5000241688,,Grant Payable by Exchequer,NN8 1BP,"611,834.00",Yes
Communities & Local Government,DCLG,05/02/2014,Revenue Support grant payable,Localism,WELWYN HATFIELD COUNCIL,,,,210360804,5000241689,,Grant Payable by Exchequer,AL8 6AE,"582,914.00",Yes
Communities & Local Government,DCLG,05/02/2014,Revenue Support grant payable,Localism,WEST BERKSHIRE COUNCIL,,,,364809181,5000241690,,Grant Payable by Exchequer,RG14 2AF,"1,485,539.00",Yes
Communities & Local Government,DCLG,05/02/2014,Revenue Support grant payable,Localism,WEST DEVON BC,,,,234002095,5000241691,,Grant Payable by Exchequer,PL19 0BZ,"362,465.00",Yes
Communities & Local Government,DCLG,05/02/2014,Revenue Support grant payable,Localism,WEST DORSET DC,,,,424295350,5000241692,,Grant Payable by Exchequer,DT1 1UZ,"691,038.00",Yes
Communities & Local Government,DCLG,05/02/2014,Revenue Support grant payable,Localism,WEST LANCASHIRE BC,,,,232240978,5000241693,,Grant Payable by Exchequer,L39 2DF,"783,477.00",Yes
Communities & Local Government,DCLG,05/02/2014,Revenue Support grant payable,Localism,WEST LINDSEY DC,,,,227471026,5000241694,,Grant Payable by Exchequer,DN21 2NA,"714,450.00",Yes
Communities & Local Government,DCLG,05/02/2014,Revenue Support grant payable,Localism,WEST MIDLANDS FIRE & CIVIL DEFENCE,,,,232913731,5000241695,,Grant Payable by Exchequer,B4 7DE,"8,526,633.00",Yes
Communities & Local Government,DCLG,05/02/2014,Revenue Support grant payable,Localism,WEST OXFORDSHIRE DC,,,,210401379,5000241696,,Grant Payable by Exchequer,OX28 1NB,"507,249.00",Yes
Communities & Local Government,DCLG,05/02/2014,Revenue Support grant payable,Localism,WEST SOMERSET DC,,,,216015144,5000241697,,Grant Payable by Exchequer,TA4 4QA,"284,273.00",Yes
Communities & Local Government,DCLG,05/02/2014,Revenue Support grant payable,Localism,WESTMINSTER CITY CNCL,,,,229845706,5000241699,,Grant Payable by Exchequer,SW1E 6QP,"23,736,616.00",Yes
Communities & Local Government,DCLG,05/02/2014,Revenue Support grant payable,Localism,WEYMOUTH & PORTLAND BC,,,,735157948,5000241700,,Grant Payable by Exchequer,DT4 8TA,"448,521.00",Yes
Communities & Local Government,DCLG,05/02/2014,Revenue Support grant payable,Localism,WIGAN MBC,,,,,5000241701,,Grant Payable by Exchequer,WN1 1YD,"16,685,580.00",Yes
Communities & Local Government,DCLG,05/02/2014,Revenue Support grant payable,Localism,WILTSHIRE & SWINDON FIRE AUTHORITY,,,,232691089,5000241702,,Grant Payable by Exchequer,SN10 5PP,"947,583.00",Yes
Communities & Local Government,DCLG,05/02/2014,Revenue Support grant payable,Localism,WILTSHIRE COUNCIL,,,,211341656,5000241721,,Grant Payable by Exchequer,BA14 4DS,"5,701,214.00",Yes
Communities & Local Government,DCLG,05/02/2014,Revenue Support grant payable,Localism,WINCHESTER CITY CNCL,,,,228838280,5000241703,,Grant Payable by Exchequer,SO23 9LJ,"490,493.00",Yes
Communities & Local Government,DCLG,05/02/2014,Revenue Support grant payable,Localism,WIRRAL BOROUGH COUNCIL,,,,,5000241704,,Grant Payable by Exchequer,CH41 6BU,"19,254,075.00",Yes
Communities & Local Government,DCLG,05/02/2014,Revenue Support grant payable,Localism,WOKING BC,,,,211163449,5000241705,,Grant Payable by Exchequer,GU21 1YL,"469,506.00",Yes
Communities & Local Government,DCLG,05/02/2014,Revenue Support grant payable,Localism,WOLVERHAMPTON MBC,,,,229895453,5000241706,,Grant Payable by Exchequer,WV1 1RL,"20,139,766.00",Yes
Communities & Local Government,DCLG,05/02/2014,Revenue Support grant payable,Localism,WORCESTER CITY CNCL,,,,227419751,5000241707,,Grant Payable by Exchequer,WR1 2EZ,"661,053.00",Yes
Communities & Local Government,DCLG,05/02/2014,Revenue Support grant payable,Localism,WORCESTERSHIRE COUNTY COUNCIL,,,,230359643,5000241708,,Grant Payable by Exchequer,WR5 2NP,"5,210,509.00",Yes
Communities & Local Government,DCLG,05/02/2014,Revenue Support grant payable,Localism,WORTHING BC,,,,236429734,5000241709,,Grant Payable by Exchequer,BN11 1HB,"636,417.00",Yes
Communities & Local Government,DCLG,05/02/2014,Revenue Support grant payable,Localism,WYCHAVON DISTRICT COUNCIL,,,,232257139,5000241710,,Grant Payable by Exchequer,WR10 1PT,"626,892.00",Yes
Communities & Local Government,DCLG,05/02/2014,Revenue Support grant payable,Localism,WYCOMBE DC,,,,232683771,5000241711,,Grant Payable by Exchequer,HP11 1BB,"735,994.00",Yes
Communities & Local Government,DCLG,05/02/2014,Revenue Support grant payable,Localism,WYRE BC,,,,236646493,5000241712,,Grant Payable by Exchequer,FY6 7PU,"805,820.00",Yes
Communities & Local Government,DCLG,05/02/2014,Revenue Support grant payable,Localism,WYRE FOREST DISTRICT COUNCIL,,,,,5000241713,,Grant Payable by Exchequer,DY10 1DA,"672,027.00",Yes
Communities & Local Government,DCLG,05/02/2014,Revenue Support grant payable,Localism,YORK CITY CNCL,,,,,5000241478,,Grant Payable by Exchequer,YO1 1XH,"4,620,272.00",Yes
Communities & Local Government,DCLG,05/02/2014,Security,Finance & Corporate Services,SIEMENS FINANCIAL SERVICES LTD,,Large,,225115880,5106200800,Security,17 PCQ Rental-Security Equipment 2013/14,SL2 4JS,721,
Communities & Local Government,DCLG,05/02/2014,Software Licences,"Strategy, Communications and Private Office",BYTES SOFTWARE SERVICES,,Medium,,225273754,5106200799,Software,Microsoft OfficeProPlus 2013 SNGL MVL,KT17 1TS,792.07,
Communities & Local Government,DCLG,05/02/2014,Steady State Service Provision,Finance & Corporate Services,PRICEWATERHOUSECOOPERS,,Large,,230101714,5106200805,Business Process Outsourcing Services,Forecast and Budgeting Review,E14 9SQ,"23,942.40",
Communities & Local Government,DCLG,05/02/2014,Steady State Service Provision,Finance & Corporate Services,PRICEWATERHOUSECOOPERS,,Large,,230101714,5106200805,Business Process Outsourcing Services,Travel and Subsistence Extension Period,E14 9SQ,42.58,
Communities & Local Government,DCLG,05/02/2014,Web Services,"Strategy, Communications and Private Office",HELPFUL TECHNOLOGY LTD,,Micro,,216608694,5106200715,Managed / Outsourced Services,Right to buy website support,BR3 4EY,"8,820.00",
Communities & Local Government,DCLG,05/02/2014,Work In Progress Pre-Cert 40373 Spend,Neighbourhoods,BIORENEWABLES DEVELOPMENT CENTRE LT,,,,,7600007719,,Revenue Grant To Be Paid,YO10 5NY,"22,205.01",Yes
Communities & Local Government,DCLG,05/02/2014,Work In Progress Pre-Cert 40467 Spend,Neighbourhoods,WYKELAND PROPERTIES LTD,,,,,7600007720,,Capital Grant To Be Paid,HU1 1UU,"1,235.48",Yes
Communities & Local Government,DCLG,06/02/2014,Advertising,"Strategy, Communications and Private Office",ENTER HERE LLP,,Medium,,672098311,5106200856,Advertising,Fire Kills Marketing Campaign,EC1R 0JH,"12,400.00",
Communities & Local Government,DCLG,06/02/2014,Agency Staff,Finance & Corporate Services,REED SPECIALIST RECRUITMENT LTD,,Large,,288656960,5106200838,Contingent Labour,Planning Casework,NN1 1UE,359.1,
Communities & Local Government,DCLG,06/02/2014,Agency Staff,Neighbourhoods,CAPITA RESOURCING LTD,,Large,,215581006,5106200816,Contingent Labour,CPD 0492030 Capita MSP,SL6 1DP,"1,272.05",
Communities & Local Government,DCLG,06/02/2014,Agency Staff,Neighbourhoods,CAPITA RESOURCING LTD,,Large,,215581006,5106200817,Contingent Labour,Expenses,SL6 1DP,38.21,
Communities & Local Government,DCLG,06/02/2014,Agency Staff,Neighbourhoods,CAPITA RESOURCING LTD,,Large,,215581006,5106200817,Contingent Labour,ERFD NW Auditor,SL6 1DP,"1,399.20",
Communities & Local Government,DCLG,06/02/2014,Agency Staff,Neighbourhoods,CAPITA RESOURCING LTD,,Large,,215581006,5106200835,Contingent Labour,Interim Manager,SL6 1DP,"1,628.16",
Communities & Local Government,DCLG,06/02/2014,Capital Grants to Private Sect Non Profit,Neighbourhoods,TRIBAL EDUC'TN LTD-FLOW THROUGH FUN,,Medium,,,2100239064,,Payment to tribal for Empty Home Community Fund,BS2 8RR,"2,309,858.00",Yes
Communities & Local Government,DCLG,06/02/2014,Catering,Finance & Corporate Services,INTERSERVE (FM) LTD (AUTOGRAPH),,Large,,213632537,2100239463,Catering,Consolidated monthly catering Oct 2013,BS32 4NH,203.2,
Communities & Local Government,DCLG,06/02/2014,Catering,Localism,INTERSERVE (FM) LTD (AUTOGRAPH),,Large,,213632537,2100239463,Catering,Consolidated monthly catering Oct 2013,BS32 4NH,32.7,
Communities & Local Government,DCLG,06/02/2014,Catering,Localism,INTERSERVE (FM) LTD (AUTOGRAPH),,Large,,213632537,2100239463,Catering,Consolidated monthly catering Oct 2013,BS32 4NH,44,
Communities & Local Government,DCLG,06/02/2014,Catering,Localism,INTERSERVE (FM) LTD (AUTOGRAPH),,Large,,213632537,2100239463,Catering,Consolidated monthly catering Oct 2013,BS32 4NH,290.9,
Communities & Local Government,DCLG,06/02/2014,Catering,Localism,INTERSERVE (FM) LTD (AUTOGRAPH),,Large,,213632537,2100239463,Catering,Consolidated monthly catering Oct 2013,BS32 4NH,44,
Communities & Local Government,DCLG,06/02/2014,Catering,Localism,INTERSERVE (FM) LTD (AUTOGRAPH),,Large,,213632537,2100239463,Catering,Consolidated monthly catering Oct 2013,BS32 4NH,65.8,
Communities & Local Government,DCLG,06/02/2014,Catering,Localism,INTERSERVE (FM) LTD (AUTOGRAPH),,Large,,213632537,2100239463,Catering,Consolidated monthly catering Oct 2013,BS32 4NH,34.2,
Communities & Local Government,DCLG,06/02/2014,Catering,Localism,INTERSERVE (FM) LTD (AUTOGRAPH),,Large,,213632537,2100239463,Catering,Consolidated monthly catering Oct 2013,BS32 4NH,43.6,
Communities & Local Government,DCLG,06/02/2014,Catering,Localism,INTERSERVE (FM) LTD (AUTOGRAPH),,Large,,213632537,2100239463,Catering,Consolidated monthly catering Oct 2013,BS32 4NH,9,
Communities & Local Government,DCLG,06/02/2014,Catering,Localism,INTERSERVE (FM) LTD (AUTOGRAPH),,Large,,213632537,2100239463,Catering,Consolidated monthly catering Oct 2013,BS32 4NH,13.2,
Communities & Local Government,DCLG,06/02/2014,Catering,Localism,INTERSERVE (FM) LTD (AUTOGRAPH),,Large,,213632537,2100239463,Catering,Consolidated monthly catering Oct 2013,BS32 4NH,"1,352.00",
Communities & Local Government,DCLG,06/02/2014,Catering,Localism,INTERSERVE (FM) LTD (AUTOGRAPH),,Large,,213632537,2100239463,Catering,Consolidated monthly catering Oct 2013,BS32 4NH,47.5,
Communities & Local Government,DCLG,06/02/2014,Catering,Neighbourhoods,INTERSERVE (FM) LTD (AUTOGRAPH),,Large,,213632537,2100239463,Catering,Consolidated monthly catering Oct 2013,BS32 4NH,101.6,
Communities & Local Government,DCLG,06/02/2014,Catering,Neighbourhoods,INTERSERVE (FM) LTD (AUTOGRAPH),,Large,,213632537,2100239463,Catering,Consolidated monthly catering Oct 2013,BS32 4NH,59.3,
Communities & Local Government,DCLG,06/02/2014,Catering,Neighbourhoods,INTERSERVE (FM) LTD (AUTOGRAPH),,Large,,213632537,2100239463,Catering,Consolidated monthly catering Oct 2013,BS32 4NH,45.8,
Communities & Local Government,DCLG,06/02/2014,Catering,"Strategy, Communications and Private Office",INTERSERVE (FM) LTD (AUTOGRAPH),,Large,,213632537,2100239463,Catering,Consolidated monthly catering Oct 2013,BS32 4NH,15.4,
Communities & Local Government,DCLG,06/02/2014,Catering,Troubled Families,INTERSERVE (FM) LTD (AUTOGRAPH),,Large,,213632537,2100239463,Catering,Consolidated monthly catering Oct 2013,BS32 4NH,210,
Communities & Local Government,DCLG,06/02/2014,Courier Services,Finance & Corporate Services,SWISS POST SOLUTIONS,,Large,,,5106200869,Post & Courier,Mail Screening Service E H - 2013-14,TW10 6TP,"2,791.66",
Communities & Local Government,DCLG,06/02/2014,Electricity,Finance & Corporate Services,EDF ENERGY 1 LIMITED,,Large,,230840469,5106200872,Energy,Y&H Wakefeild Electricity 2013-14,PL3 5XQ,"10,410.50",
Communities & Local Government,DCLG,06/02/2014,Electricity,Finance & Corporate Services,EDF ENERGY 1 LIMITED,,Large,,230840469,5106200872,Energy,Y&H Wakefeild Electricity 2013-14 0% VAT,PL3 5XQ,17.73,
Communities & Local Government,DCLG,06/02/2014,Grant in Aid to NDPBs (non budget),Localism,VALUATION TRIBUNAL SERVICE,,,,211218366,2100239460,,,E1 1DU,"575,322.00",Yes
Communities & Local Government,DCLG,06/02/2014,Legal Fees,Finance & Corporate Services,TREASURY SOLICITOR,,Public Bodies,,215580680,2100239458,Legal,Legal Advice,WC2B 4TS,"60,000.00",
Communities & Local Government,DCLG,06/02/2014,Physical Storage,"Strategy, Communications and Private Office",WILLIAMS LEA LIMITED,,Large,,393456413,5106200876,Warehousing and Storage,Document Storage,W2 6LG,253.31,
Communities & Local Government,DCLG,06/02/2014,Printing,"Strategy, Communications and Private Office",WILLIAMS LEA LIMITED,,Large,,393456413,5106200858,Printing Services,Year 2 Print services,W2 6LG,"2,177.49",
Communities & Local Government,DCLG,06/02/2014,Printing,"Strategy, Communications and Private Office",WILLIAMS LEA LIMITED,,Large,,393456413,5106200876,Printing Services,Year 2 Print services - RtBuy,W2 6LG,"42,074.33",
Communities & Local Government,DCLG,06/02/2014,Printing,"Strategy, Communications and Private Office",WILLIAMS LEA LIMITED,,Large,,393456413,5106200876,Printing Services,Year 2 Print services (0% VAT),W2 6LG,77.95,
Communities & Local Government,DCLG,06/02/2014,Printing,"Strategy, Communications and Private Office",WILLIAMS LEA LIMITED,,Large,,393456413,5106200876,Printing Services,Year 3 Print services - Storage,W2 6LG,"1,518.73",
Communities & Local Government,DCLG,06/02/2014,Professional services,Finance & Corporate Services,E C HARRIS LLP,,Large,,,5106200829,Construction Service Providers,PAMU Com - 78 Proj Managr Lead 2 Marsham,N1 9AB,"17,160.00",
Communities & Local Government,DCLG,06/02/2014,Professional services,Finance & Corporate Services,E C HARRIS LLP,,Large,,,5106200830,Construction Service Providers,Com 37 - TFM Service Manager Support,N1 9AB,"3,360.00",
Communities & Local Government,DCLG,06/02/2014,Professional services,Finance & Corporate Services,E C HARRIS LLP,,Large,,,5106200831,Construction Service Providers,PAMU Com - 78 Proj Managr Lead 2 Marsham,N1 9AB,"16,380.00",
Communities & Local Government,DCLG,06/02/2014,Professional services,Finance & Corporate Services,E C HARRIS LLP,,Large,,,5106200832,Construction Service Providers,PAMU Com - 78 Proj Managr Lead 2 Marsham,N1 9AB,"12,870.00",
Communities & Local Government,DCLG,06/02/2014,Professional services,Finance & Corporate Services,E C HARRIS LLP,,Large,,,5106200859,Construction Service Providers,PAMU Com 77 - Forward Maint,N1 9AB,"9,581.59",
Communities & Local Government,DCLG,06/02/2014,Professional services,Finance & Corporate Services,GVA GRIMLEY LTD,,Large,,210158990,5106200733,Accommodation Services,Com 44 FSC - Mosedale House Repairs/Prep,B1 2JB,434.24,
Communities & Local Government,DCLG,06/02/2014,Professional services,Localism,VALUATION OFFICE AGENCY,,Public Bodies,,215253886,2100239461,Environmental Services,,W1B 5BU,"12,000,000.00",
Communities & Local Government,DCLG,06/02/2014,Steady State Service Provision,Neighbourhoods,LOCALITY,,Medium,,347998312,5106200873,Business Process Outsourcing Services,Direct Support,N1 6DR,"245,179.05",
Communities & Local Government,DCLG,06/02/2014,Steady State Service Provision,Neighbourhoods,NORTHUMBERLAND CC,,Large,,210308905,5106200855,Business Process Outsourcing Services,2013/14 expenses for RAWP secretarial services,NE61 2EF,"3,240.00",
Communities & Local Government,DCLG,06/02/2014,Training,Finance & Corporate Services,BADENOCH & CLARK,,Large,,227149267,5106200865,Development and Training,Coaching/Team Development Support,W1T 5AE,"2,000.00",
Communities & Local Government,DCLG,06/02/2014,Training,Finance & Corporate Services,FIRST INTUITION,,Micro,,210329853,5106200598,Development and Training,CIMA-Management Accounting Qualification,W1T 6AA,315.21,
Communities & Local Government,DCLG,06/02/2014,Training,Finance & Corporate Services,INSTITUTE OF INTERNAL AUDITORS,,Small,,292669967,5106200866,Development and Training,P3 Internal Audit Practice Revision,SW4 7BX,520,
Communities & Local Government,DCLG,06/02/2014,Training,Finance & Corporate Services,INSTITUTE OF INTERNAL AUDITORS,,Small,,292669967,5106200866,Development and Training,P3 Internal Audit Practice Tuition,SW4 7BX,"1,125.00",
Communities & Local Government,DCLG,06/02/2014,Training,Finance & Corporate Services,INSTITUTE OF INTERNAL AUDITORS,,Small,,292669967,5106200866,Development and Training,P5 Corp Gover & Risk Management Revision,SW4 7BX,520,
Communities & Local Government,DCLG,06/02/2014,Training,Finance & Corporate Services,INSTITUTE OF INTERNAL AUDITORS,,Small,,292669967,5106200866,Development and Training,P5 Corp Gover & Risk Management Tuition,SW4 7BX,"1,125.00",
Communities & Local Government,DCLG,06/02/2014,Training,Finance & Corporate Services,WISE OWL BUSINESS SOLUTIONS LTD,,Micro,,738553754,5106200798,Development and Training,Introduction to SQL training course,SK13 7WX,595,
Communities & Local Government,DCLG,06/02/2014,Training,Neighbourhoods,WHITEHALL & INDUSTRY GROUP,,Small,,385853957,5106200863,Development and Training,"Working of Brussels,Insight into the EU",SW1H 9EX,250,
Communities & Local Government,DCLG,06/02/2014,Training,Neighbourhoods,WHITEHALL & INDUSTRY GROUP,,Small,,385853957,5106200864,Development and Training,"Working of Brussels,Insight into the EU",SW1H 9EX,250,
Communities & Local Government,DCLG,06/02/2014,Vehicle Maintenance,Localism,BABCOCK CRITICAL SERVICES LTD,,Large,,641006945,5106200857,Fleet Management,Fixed cost 13/14,NG15 0DR,"448,523.88",
Communities & Local Government,DCLG,06/02/2014,Work In Progress Pre-Cert 40373 Spend,Neighbourhoods,CORNWALL COUNCIL,,,,,7600007723,,Revenue Grant To Be Paid,TR1 3AY,"35,727.72",Yes
Communities & Local Government,DCLG,06/02/2014,Work In Progress Pre-Cert 40373 Spend,Neighbourhoods,NORTHUMBERLAND COUNTY COUNCIL,,,,,7600007722,,Revenue Grant To Be Paid,NE61 2EF,"4,844.30",Yes
Communities & Local Government,DCLG,06/02/2014,Work In Progress Pre-Cert 40373 Spend,Neighbourhoods,ONE EAST MIDLANDS,,,,,7600007726,,Revenue Grant To Be Paid,NG1 3FB,"8,651.04",Yes
Communities & Local Government,DCLG,06/02/2014,Work In Progress Pre-Cert 40373 Spend,Neighbourhoods,SERCO REGIONAL SERVICES LTD,,,,,7600007724,,Revenue Grant To Be Paid,PL6 8BT,"61,202.51",Yes
Communities & Local Government,DCLG,06/02/2014,Work In Progress Pre-Cert 40373 Spend,Neighbourhoods,UNIVERSITY OF EXETER,,,,,7600007721,,Revenue Grant To Be Paid,EX4 4QJ,"371,169.24",Yes
Communities & Local Government,DCLG,06/02/2014,Work In Progress Pre-Cert 40373 Spend,Neighbourhoods,UNIVERSITY OF SUNDERLAND,,,,,7600007725,,Revenue Grant To Be Paid,SR1 3SD,"152,864.71",Yes
Communities & Local Government,DCLG,06/02/2014,Work In Progress Pre-Cert 40467 Spend,Neighbourhoods,HELLENS INVESTMENTS  (WASHINGTON) L,,,,,7600007728,,Capital Grant To Be Paid,NE38 8BG,"63,449.17",Yes
Communities & Local Government,DCLG,06/02/2014,Work In Progress Pre-Cert 40467 Spend,Neighbourhoods,TORBAY ECONOMIC DEVELOPMENT COMPANY,,,,,7600007727,,Capital Grant To Be Paid,TQ2 5QW,"1,033.97",Yes
Communities & Local Government,DCLG,06/02/2014,Work In Progress Pre-Cert 40467 Spend,Neighbourhoods,UNIVERSITY OF EXETER,,,,,7600007721,,Capital Grant To Be Paid,EX4 4QJ,"257,155.64",Yes
Communities & Local Government,DCLG,07/02/2014,Agency Staff,Finance & Corporate Services,REED SPECIALIST RECRUITMENT LTD,,Large,,288656960,5106200841,Contingent Labour,Planning Casework,NN1 1UE,362.69,
Communities & Local Government,DCLG,07/02/2014,Agency Staff,Finance & Corporate Services,REED SPECIALIST RECRUITMENT LTD,,Large,,288656960,5106200844,Contingent Labour,Procurement Specialist,NN1 1UE,"3,000.00",
Communities & Local Government,DCLG,07/02/2014,Agency Staff,Neighbourhoods,REED EMPLOYMENT SERVICES,,Large,,292193364,5106200839,Contingent Labour,Temporary staff on a time limited project,SW20 0BA,283.15,
Communities & Local Government,DCLG,07/02/2014,Agency Staff,Neighbourhoods,REED SPECIALIST RECRUITMENT LTD,,Large,,288656960,5106200840,Contingent Labour,Temporary staff on a time limited project,NN1 1UE,848.02,
Communities & Local Government,DCLG,07/02/2014,Agency Staff,Neighbourhoods,REED SPECIALIST RECRUITMENT LTD,,Large,,288656960,5106200842,Contingent Labour,Temporary staff on a time limited project,NN1 1UE,848.02,
Communities & Local Government,DCLG,07/02/2014,Agency Staff,Neighbourhoods,REED SPECIALIST RECRUITMENT LTD,,Large,,288656960,5106200852,Contingent Labour,Interim Manager,NN1 1UE,"1,004.22",
Communities & Local Government,DCLG,07/02/2014,Cap Grants to Local Authorities (DEL),Neighbourhoods,WARWICK DISTRICT COUNCIL,,Public Bodies,,239845720,2100239418,,Coventry & Warwickshire City Deal 13-14,CV32 5QS,"559,000.00",Yes
Communities & Local Government,DCLG,07/02/2014,Catering,Finance & Corporate Services,INTERSERVE (FM) LTD (AUTOGRAPH),,Large,,213632537,2100239507,Catering,Consolidated monthly catering Oct 2013,BS32 4NH,"1,713.35",
Communities & Local Government,DCLG,07/02/2014,Catering,Localism,MANCHESTER CITY COUNCIL,,,,211241393,5106200848,Catering,IT and support for digital media workshop in Manchester,M60 2JR,348.4,
Communities & Local Government,DCLG,07/02/2014,Current Grants to Non Profit Bodies,Localism,CFOA (NATIONAL RESILIANCE) LTD,,Small,,211512993,2100239416,,Payment to seconded staff - DT/TB/NC ESMCP,GL56 0RH,"128,262.54",Yes
Communities & Local Government,DCLG,07/02/2014,Electricity,Finance & Corporate Services,BRITISH INDEPENDENT UTILITIES,,Medium,,,5106200763,Energy,Utilities Revenue for RCCs,FY8 2NA,460.8,
Communities & Local Government,DCLG,07/02/2014,Electricity,Finance & Corporate Services,BRITISH INDEPENDENT UTILITIES,,Medium,,,5106200764,Energy,Utilities Revenue for RCCs,FY8 2NA,"1,728.00",
Communities & Local Government,DCLG,07/02/2014,Electricity,Finance & Corporate Services,BRITISH INDEPENDENT UTILITIES,,Medium,,,5106200890,Energy,Utilities Revenue for RCCs,FY8 2NA,483.12,
Communities & Local Government,DCLG,07/02/2014,Electricity,Finance & Corporate Services,BRITISH INDEPENDENT UTILITIES,,Medium,,,5106200891,Energy,Utilities Revenue for RCCs,FY8 2NA,529.1,
Communities & Local Government,DCLG,07/02/2014,Electricity,Finance & Corporate Services,BRITISH INDEPENDENT UTILITIES,,Medium,,,5106200893,Energy,Utilities Revenue for RCCs,FY8 2NA,529.1,
Communities & Local Government,DCLG,07/02/2014,Electricity,Finance & Corporate Services,BRITISH INDEPENDENT UTILITIES,,Medium,,,5106200895,Energy,Utilities Revenue for RCCs,FY8 2NA,483.12,
Communities & Local Government,DCLG,07/02/2014,Electricity,Finance & Corporate Services,BRITISH INDEPENDENT UTILITIES,,Medium,,,5106200901,Energy,Utilities Revenue for RCCs,FY8 2NA,460.8,
Communities & Local Government,DCLG,07/02/2014,Electricity,Finance & Corporate Services,EDF ENERGY 1 LIMITED,,Large,,230840469,5106200910,Energy,EoE Waterbeach Electricity 2013-14,PL3 5XQ,"2,211.59",
Communities & Local Government,DCLG,07/02/2014,Electricity,Finance & Corporate Services,EDF ENERGY 1 LIMITED,,Large,,230840469,5106200915,Energy,SW Taunton Electricity 2013-14,PL3 5XQ,"3,774.52",
Communities & Local Government,DCLG,07/02/2014,IT - Service Contracts,Finance & Corporate Services,PROCSERVE SHARED SERVICES LTD,,Large,,739834971,5106200920,Managed / Outsourced Services,32mths subscriptions Jul 2011-Jul 2014,SW1W 9SR,"6,176.64",
Communities & Local Government,DCLG,07/02/2014,Office Machinery (<5000),Finance & Corporate Services,BANNER BUSINESS SUPPLIES LTD,,Large,,236638362,5106200889,Office Machines,DELWEEKLY BANNER 8 DIGIT POCKET CALCULAT,NR3 1PD,1.66,
Communities & Local Government,DCLG,07/02/2014,Office Supplies,Finance & Corporate Services,BANNER BUSINESS SUPPLIES LTD,,Large,,236638362,5106200889,Office Supplies,DELWEEKLY Banner A4 Recycled Copier Pape,NR3 1PD,254.16,
Communities & Local Government,DCLG,07/02/2014,Office Supplies,Finance & Corporate Services,BANNER BUSINESS SUPPLIES LTD,,Large,,236638362,5106200889,Office Supplies,DELWEEKLY Banner A5 Recycled Notebook,NR3 1PD,6.38,
Communities & Local Government,DCLG,07/02/2014,Office Supplies,Finance & Corporate Services,BANNER BUSINESS SUPPLIES LTD,,Large,,236638362,5106200889,Office Supplies,DELWEEKLY Banner Fine Ballpoint Pen Blac,NR3 1PD,3,
Communities & Local Government,DCLG,07/02/2014,Office Supplies,Finance & Corporate Services,BANNER BUSINESS SUPPLIES LTD,,Large,,236638362,5106200889,Office Supplies,DELWEEKLY Banner Fine Ballpoint Pen Blue,NR3 1PD,1.6,
Communities & Local Government,DCLG,07/02/2014,Office Supplies,Finance & Corporate Services,BANNER BUSINESS SUPPLIES LTD,,Large,,236638362,5106200889,Office Supplies,DELWEEKLY Banner Paper On Board A4 2 Rin,NR3 1PD,24.2,
Communities & Local Government,DCLG,07/02/2014,Office Supplies,Finance & Corporate Services,BANNER BUSINESS SUPPLIES LTD,,Large,,236638362,5106200889,Office Supplies,DELWEEKLY COUNSEL NOTEBOOKS A4 96 PAGE R,NR3 1PD,9.43,
Communities & Local Government,DCLG,07/02/2014,Office Supplies,Finance & Corporate Services,BANNER BUSINESS SUPPLIES LTD,,Large,,236638362,5106200889,Office Supplies,DELWEEKLY SELF-STICK NOTES 76 X 76MM PAL,NR3 1PD,1.26,
Communities & Local Government,DCLG,07/02/2014,Office Supplies,Finance & Corporate Services,BANNER BUSINESS SUPPLIES LTD,,Large,,236638362,5106200889,Office Supplies,DELWEEKLY Stylo Stik Ballpoint Pen Black,NR3 1PD,2.03,
Communities & Local Government,DCLG,07/02/2014,Office Supplies,Finance & Corporate Services,BANNER BUSINESS SUPPLIES LTD,,Large,,236638362,5106200889,Office Supplies,DELWEEKLY Stylo Stik Ballpoint Pen Blue,NR3 1PD,2.03,
Communities & Local Government,DCLG,07/02/2014,Office Supplies,Neighbourhoods,BANNER BUSINESS SUPPLIES LTD,,Large,,236638362,5106200888,Office Supplies,DELWEEKLY Banner A4 Recycled Copier Pape,NR3 1PD,254.16,
Communities & Local Government,DCLG,07/02/2014,Professional services,Finance & Corporate Services,E C HARRIS LLP,,Large,,,5106200896,Construction Service Providers,FM Service Manager Support 12/1,N1 9AB,"27,731.84",
Communities & Local Government,DCLG,07/02/2014,Professional services,Localism,GOVT ACTUARYS DEPARTMENT,,Public Bodies,,233567432,5106199994,Financial,GAD acturial Advice for LGPS and Fire,EC4A 1AB,"91,989.09",
Communities & Local Government,DCLG,07/02/2014,Publicity,"Strategy, Communications and Private Office",GORKANA GROUP LTD,,Large,,210089876,5106200914,Advertising,Press cuttings,EC1Y 8QE,"2,427.97",
Communities & Local Government,DCLG,07/02/2014,Publicity,"Strategy, Communications and Private Office",PRESS ASSOCIATION,,Large,,217191704,5106200898,Advertising,Press Association - NewsWire service,DN14 7YH,"1,273.82",
Communities & Local Government,DCLG,07/02/2014,Software Licences,Finance & Corporate Services,ESRI (UK) LIMITED,,Large,,226271518,5106200846,Software,ESRI Production licence,HP21 7QG,"1,706.41",
Communities & Local Government,DCLG,07/02/2014,Software Licences,Finance & Corporate Services,SPECIALIST COMPUTER CENTRES PLC,,Large,,227720521,5106200899,Software,Dolphin Supernova Access Suite add user,B11 2LE,"1,737.14",
Communities & Local Government,DCLG,07/02/2014,Software Licences,Finance & Corporate Services,SPECIALIST COMPUTER CENTRES PLC,,Large,,227720521,5106200899,Software,Inspiration Mind Mapping singl licen V9,B11 2LE,237.82,
Communities & Local Government,DCLG,07/02/2014,Software Licences,Finance & Corporate Services,SPECIALIST COMPUTER CENTRES PLC,,Large,,227720521,5106200899,Software,Read & Write Gold TextHelp V11 single,B11 2LE,"1,346.40",
Communities & Local Government,DCLG,07/02/2014,Software Licences,Finance & Corporate Services,SPECIALIST COMPUTER CENTRES PLC,,Large,,227720521,5106200900,Software,Jaws Professional Windows upgrade V14,B11 2LE,"1,069.78",
Communities & Local Government,DCLG,07/02/2014,Software Licences,Finance & Corporate Services,SPECIALIST COMPUTER CENTRES PLC,,Large,,227720521,5106200900,Software,Olympus Sonority Audio Management,B11 2LE,116.04,
Communities & Local Government,DCLG,07/02/2014,Software Licences,Finance & Corporate Services,SPECIALIST COMPUTER CENTRES PLC,,Large,,227720521,5106200900,Software,RSI Guard Stretch Edition single user,B11 2LE,42.14,
Communities & Local Government,DCLG,07/02/2014,Software Licences,Finance & Corporate Services,SPECIALIST COMPUTER CENTRES PLC,,Large,,227720521,5106200900,Software,Read&Write Gold TextHelp upgrade V8toV11,B11 2LE,246.76,
Communities & Local Government,DCLG,07/02/2014,Software Licences,Finance & Corporate Services,SPECIALIST COMPUTER CENTRES PLC,,Large,,227720521,5106200900,Software,Read&Write Gold TextHelp upgrade V9toV11,B11 2LE,423.02,
Communities & Local Government,DCLG,07/02/2014,Software Licences,Finance & Corporate Services,SPECIALIST COMPUTER CENTRES PLC,,Large,,227720521,5106200900,Software,Zoomtext - Magnifier Reader upgrade V10,B11 2LE,203.5,
Communities & Local Government,DCLG,07/02/2014,Software Licences,Finance & Corporate Services,SPECIALIST COMPUTER CENTRES PLC,,Large,,227720521,5106200902,Software,Dolphin Supernova Access Suite Singl V13,B11 2LE,875.16,
Communities & Local Government,DCLG,07/02/2014,Software Licences,Finance & Corporate Services,SPECIALIST COMPUTER CENTRES PLC,,Large,,227720521,5106200902,Software,Dolphin Supernova Access Suite addit V13,B11 2LE,"1,737.14",
Communities & Local Government,DCLG,07/02/2014,Software Licences,Finance & Corporate Services,SPECIALIST COMPUTER CENTRES PLC,,Large,,227720521,5106200902,Software,Jaws Professional Licence Windows v14,B11 2LE,875.77,
Communities & Local Government,DCLG,07/02/2014,Software Licences,Finance & Corporate Services,SPECIALIST COMPUTER CENTRES PLC,,Large,,227720521,5106200902,Software,Read & Write Gold TextHelp V11 single us,B11 2LE,"2,019.60",
Communities & Local Government,DCLG,07/02/2014,Software Licences,Finance & Corporate Services,SPECIALIST COMPUTER CENTRES PLC,,Large,,227720521,5106200917,Software,Dragon Naturally SpeakingV12 Pro Licence,B11 2LE,"10,902.58",
Communities & Local Government,DCLG,07/02/2014,Training,Finance & Corporate Services,CAPITA BUSINESS SERVICES LTD,,Large,,215580993,5106200868,Development and Training,Commercial Capability Workshops,DL1 9HB,"1,463.41",
Communities & Local Government,DCLG,07/02/2014,Work In Progress Pre-Cert 40373 Spend,Neighbourhoods,UNIVERSITY COLLEGE FALMOUTH,,,,,7600007729,,Revenue Grant To Be Paid,TR11 4RH,"86,893.12",Yes
Communities & Local Government,DCLG,07/02/2014,Work In Progress Pre-Cert 40467 Spend,Neighbourhoods,ENGINEERED ARTS LTD,,,,,7600007730,,Capital Grant To Be Paid,TR10 9EW,"14,396.21",Yes
Communities & Local Government,DCLG,07/02/2014,Work In Progress Pre-Cert 40467 Spend,Neighbourhoods,LIVERPOOL CITY COUNCIL,,,,,2300002099,,Recovery of irregular payment,L2 2DH,"-48,812.29",Yes
Communities & Local Government,DCLG,07/02/2014,Work In Progress Pre-Cert 40467 Spend,Neighbourhoods,LIVERPOOL CITY COUNCIL,,,,,2300002102,,Recovery of irregular payment,L2 2DH,"-23,173.21",Yes
Communities & Local Government,DCLG,07/02/2014,Work In Progress Pre-Cert 40467 Spend,Neighbourhoods,REDSUN DEVELOPMENTS LTD,,,,,2100239541,,ERDF Project X01981PR,L2 7QS,"230,000.00",Yes
Communities & Local Government,DCLG,07/02/2014,Work In Progress Pre-Cert 40467 Spend,Neighbourhoods,REDSUN DEVELOPMENTS LTD,,,,,2300002031,,Clawback payment to the department which is to be amended,L2 7QS,"-230,000.00",Yes
Communities & Local Government,DCLG,07/02/2014,Work In Progress Pre-Cert 40467 Spend,Neighbourhoods,SALFORD CITY COUNCIL,,,,,2300002104,,Recovery of irregular payment,M27 5FJ,"-175,537.54",Yes
Communities & Local Government,DCLG,10/02/2014,Advertising,"Strategy, Communications and Private Office",ENTER HERE LLP,,Medium,,672098311,5106200944,Advertising,Fire Kills Viral Ad Network,EC1R 0JH,"1,000.00",
Communities & Local Government,DCLG,10/02/2014,Agency Staff,Finance & Corporate Services,ALLEN LANE FINANCIAL RECRUITMENT,,Medium,Yes,234388853,5106200935,Contingent Labour,Interim Accountant,,"2,277.65",
Communities & Local Government,DCLG,10/02/2014,Courier Services,Finance & Corporate Services,INTERSERVE (FACILITIES MANAGEMENT),,Large,,364834825,5106200929,Post & Courier,Eland House Mail 13-14,BS32 4NH,"7,886.12",
Communities & Local Government,DCLG,10/02/2014,Courier Services,Finance & Corporate Services,INTERSERVE (FACILITIES MANAGEMENT),,Large,,364834825,5106200929,Post & Courier,Rivergate Mail 13-14,BS32 4NH,"1,519.43",
Communities & Local Government,DCLG,10/02/2014,Domestic Services,Finance & Corporate Services,INTERSERVE (FACILITIES MANAGEMENT),,Large,,364834825,5106200929,Cleaning,Eland House Cleaning 13-14,BS32 4NH,"27,469.95",
Communities & Local Government,DCLG,10/02/2014,Domestic Services,Finance & Corporate Services,INTERSERVE (FACILITIES MANAGEMENT),,Large,,364834825,5106200929,Cleaning,TQH Cleaning 13-14,BS32 4NH,"9,032.52",
Communities & Local Government,DCLG,10/02/2014,Domestic Services,Finance & Corporate Services,INTERSERVE (FACILITIES MANAGEMENT),,Large,,364834825,5106200929,Cleaning,Hemel Hemp Cleaning 13-14,BS32 4NH,"2,185.31",
Communities & Local Government,DCLG,10/02/2014,Domestic Services,Finance & Corporate Services,INTERSERVE (FACILITIES MANAGEMENT),,Large,,364834825,5106200929,Cleaning,Rivergate Cleaning 13-14,BS32 4NH,"5,167.99",
Communities & Local Government,DCLG,10/02/2014,Domestic Services,Finance & Corporate Services,INTERSERVE (FACILITIES MANAGEMENT),,Large,,364834825,5106200929,Cleaning,Bridge House Cleaning 13-14,BS32 4NH,"3,029.46",
Communities & Local Government,DCLG,10/02/2014,Domestic Services,Finance & Corporate Services,INTERSERVE (FACILITIES MANAGEMENT),,Large,,364834825,5106200929,Cleaning,Citygate Cleaning 13-14,BS32 4NH,"3,046.41",
Communities & Local Government,DCLG,10/02/2014,Domestic Services,Finance & Corporate Services,INTERSERVE (FACILITIES MANAGEMENT),,Large,,364834825,5106200929,Cleaning,Queen Street Cleaning 13-14,BS32 4NH,"2,566.06",
Communities & Local Government,DCLG,10/02/2014,Domestic Services,Finance & Corporate Services,INTERSERVE (FACILITIES MANAGEMENT),,Large,,364834825,5106200929,Cleaning,5SPP Cleaning 13-14,BS32 4NH,"6,808.15",
Communities & Local Government,DCLG,10/02/2014,Domestic Services,Finance & Corporate Services,INTERSERVE (FACILITIES MANAGEMENT),,Large,,364834825,5106200929,Cleaning,Paradise Cleaning 13-14,BS32 4NH,"3,114.09",
Communities & Local Government,DCLG,10/02/2014,Facilities Management (ISD use only),Finance & Corporate Services,INTERSERVE (FACILITIES MANAGEMENT),,Large,,364834825,5106200929,Building Management,Eland House Off Site Management 13-14,BS32 4NH,"11,118.18",
Communities & Local Government,DCLG,10/02/2014,Facilities Management (ISD use only),Finance & Corporate Services,INTERSERVE (FACILITIES MANAGEMENT),,Large,,364834825,5106200929,Building Management,Eland House Reception 13-14,BS32 4NH,"4,902.61",
Communities & Local Government,DCLG,10/02/2014,Facilities Management (ISD use only),Finance & Corporate Services,INTERSERVE (FACILITIES MANAGEMENT),,Large,,364834825,5106200929,Building Management,TQH Off Site Management 13-14,BS32 4NH,"7,874.37",
Communities & Local Government,DCLG,10/02/2014,Facilities Management (ISD use only),Finance & Corporate Services,INTERSERVE (FACILITIES MANAGEMENT),,Large,,364834825,5106200929,Building Management,TQH On Site Management 13-14,BS32 4NH,"3,181.32",
Communities & Local Government,DCLG,10/02/2014,Facilities Management (ISD use only),Finance & Corporate Services,INTERSERVE (FACILITIES MANAGEMENT),,Large,,364834825,5106200929,Building Management,TQH Reception 13-14,BS32 4NH,"1,663.29",
Communities & Local Government,DCLG,10/02/2014,Facilities Management (ISD use only),Finance & Corporate Services,INTERSERVE (FACILITIES MANAGEMENT),,Large,,364834825,5106200929,Building Management,Hemel Hemp Off Site Management 13-14,BS32 4NH,877.78,
Communities & Local Government,DCLG,10/02/2014,Facilities Management (ISD use only),Finance & Corporate Services,INTERSERVE (FACILITIES MANAGEMENT),,Large,,364834825,5106200929,Building Management,Rivergate Off Site Management 13-14,BS32 4NH,"3,589.89",
Communities & Local Government,DCLG,10/02/2014,Facilities Management (ISD use only),Finance & Corporate Services,INTERSERVE (FACILITIES MANAGEMENT),,Large,,364834825,5106200929,Building Management,Rivergate Reception 13-14,BS32 4NH,"1,653.74",
Communities & Local Government,DCLG,10/02/2014,Facilities Management (ISD use only),Finance & Corporate Services,INTERSERVE (FACILITIES MANAGEMENT),,Large,,364834825,5106200929,Building Management,Bridge House Off Site Management 13-14,BS32 4NH,"1,733.80",
Communities & Local Government,DCLG,10/02/2014,Facilities Management (ISD use only),Finance & Corporate Services,INTERSERVE (FACILITIES MANAGEMENT),,Large,,364834825,5106200929,Building Management,Bridge House On Site Management 13-14,BS32 4NH,"3,611.43",
Communities & Local Government,DCLG,10/02/2014,Facilities Management (ISD use only),Finance & Corporate Services,INTERSERVE (FACILITIES MANAGEMENT),,Large,,364834825,5106200929,Building Management,Citygate Off Site Management 13-14,BS32 4NH,"2,946.06",
Communities & Local Government,DCLG,10/02/2014,Facilities Management (ISD use only),Finance & Corporate Services,INTERSERVE (FACILITIES MANAGEMENT),,Large,,364834825,5106200929,Building Management,Citygate On Site Management 13-14,BS32 4NH,"2,493.40",
Communities & Local Government,DCLG,10/02/2014,Facilities Management (ISD use only),Finance & Corporate Services,INTERSERVE (FACILITIES MANAGEMENT),,Large,,364834825,5106200929,Building Management,Citygate Reception 13-14,BS32 4NH,"1,589.29",
Communities & Local Government,DCLG,10/02/2014,Facilities Management (ISD use only),Finance & Corporate Services,INTERSERVE (FACILITIES MANAGEMENT),,Large,,364834825,5106200929,Building Management,Queen Street Off Site Management 13-14,BS32 4NH,"1,596.05",
Communities & Local Government,DCLG,10/02/2014,Facilities Management (ISD use only),Finance & Corporate Services,INTERSERVE (FACILITIES MANAGEMENT),,Large,,364834825,5106200929,Building Management,5SPP Off Site Management 13-14,BS32 4NH,"2,911.74",
Communities & Local Government,DCLG,10/02/2014,Facilities Management (ISD use only),Finance & Corporate Services,INTERSERVE (FACILITIES MANAGEMENT),,Large,,364834825,5106200929,Building Management,5SPP On Site Management 13-14,BS32 4NH,"2,989.01",
Communities & Local Government,DCLG,10/02/2014,Facilities Management (ISD use only),Finance & Corporate Services,INTERSERVE (FACILITIES MANAGEMENT),,Large,,364834825,5106200929,Building Management,5SPP Reception 13-14,BS32 4NH,"2,813.24",
Communities & Local Government,DCLG,10/02/2014,Facilities Management (ISD use only),Finance & Corporate Services,INTERSERVE (FACILITIES MANAGEMENT),,Large,,364834825,5106200929,Building Management,Pardise Off Site Management 13-14,BS32 4NH,"1,673.87",
Communities & Local Government,DCLG,10/02/2014,Fixed Maintenance,Finance & Corporate Services,INTERSERVE (FACILITIES MANAGEMENT),,Large,,364834825,5106200929,Environmental Services,Bridge House Grounds Maintenance 13-14,BS32 4NH,259.21,
Communities & Local Government,DCLG,10/02/2014,Fixed Maintenance,Finance & Corporate Services,INTERSERVE (FACILITIES MANAGEMENT),,Large,,364834825,5106200929,Environmental Services,Queen Street Grounds Maintenance 13-14,BS32 4NH,13.16,
Communities & Local Government,DCLG,10/02/2014,Fixed Maintenance,Finance & Corporate Services,INTERSERVE (FACILITIES MANAGEMENT),,Large,,364834825,5106200929,Construction Service Providers,Eland House Maintenance 13-14,BS32 4NH,"39,360.08",
Communities & Local Government,DCLG,10/02/2014,Fixed Maintenance,Finance & Corporate Services,INTERSERVE (FACILITIES MANAGEMENT),,Large,,364834825,5106200929,Construction Service Providers,TQH Maintenance 13-14,BS32 4NH,"6,027.81",
Communities & Local Government,DCLG,10/02/2014,Fixed Maintenance,Finance & Corporate Services,INTERSERVE (FACILITIES MANAGEMENT),,Large,,364834825,5106200929,Construction Service Providers,Hemel Hemp Maintenance 13-14,BS32 4NH,"5,359.95",
Communities & Local Government,DCLG,10/02/2014,Fixed Maintenance,Finance & Corporate Services,INTERSERVE (FACILITIES MANAGEMENT),,Large,,364834825,5106200929,Construction Service Providers,Rivergate Maintenance 13-14,BS32 4NH,"3,840.85",
Communities & Local Government,DCLG,10/02/2014,Fixed Maintenance,Finance & Corporate Services,INTERSERVE (FACILITIES MANAGEMENT),,Large,,364834825,5106200929,Construction Service Providers,Bridge House Maintenance 13-14,BS32 4NH,"4,987.45",
Communities & Local Government,DCLG,10/02/2014,Fixed Maintenance,Finance & Corporate Services,INTERSERVE (FACILITIES MANAGEMENT),,Large,,364834825,5106200929,Construction Service Providers,Citygate Maintenance 13-14,BS32 4NH,"3,585.11",
Communities & Local Government,DCLG,10/02/2014,Fixed Maintenance,Finance & Corporate Services,INTERSERVE (FACILITIES MANAGEMENT),,Large,,364834825,5106200929,Construction Service Providers,Queen Street Maintenance 13-14,BS32 4NH,"6,538.37",
Communities & Local Government,DCLG,10/02/2014,Fixed Maintenance,Finance & Corporate Services,INTERSERVE (FACILITIES MANAGEMENT),,Large,,364834825,5106200929,Construction Service Providers,5SPP Maintenance 13-14,BS32 4NH,"10,796.00",
Communities & Local Government,DCLG,10/02/2014,Fixed Maintenance,Finance & Corporate Services,INTERSERVE (FACILITIES MANAGEMENT),,Large,,364834825,5106200929,Construction Service Providers,Paradise Maintenance 13-14,BS32 4NH,"7,797.99",
Communities & Local Government,DCLG,10/02/2014,Grant in Aid to NDPBs (non budget),Localism,COMMISSION LOCAL ADMINISTRATION,,,,215271508,2100239462,,DCLG DEL Budget contribution for CLAE for 2013-14,SW1P 4QP,"795,000.00",Yes
Communities & Local Government,DCLG,10/02/2014,IT - Software Maintenance,Finance & Corporate Services,SAP (UK) LTD,,Large,,396951675,2100239593,Managed / Outsourced Services,To be matched off against C/N6007077199,TW14 8HD,"24,574.80",
Communities & Local Government,DCLG,10/02/2014,IT - Software Maintenance,Finance & Corporate Services,SAP (UK) LTD,,Large,,396951675,2100239594,Managed / Outsourced Services,To be matched off against C/N6007077200,TW14 8HD,"2,908.80",
Communities & Local Government,DCLG,10/02/2014,IT - Software Maintenance,Finance & Corporate Services,SAP (UK) LTD,,Large,,396951675,2100239595,Managed / Outsourced Services,To be matched off against C/N6007077201,TW14 8HD,"43,383.60",
Communities & Local Government,DCLG,10/02/2014,IT - Software Maintenance,Finance & Corporate Services,SAP (UK) LTD,,Large,,396951675,2300002109,Managed / Outsourced Services,To be matched off against Inv 6007071809,TW14 8HD,"-24,574.80",
Communities & Local Government,DCLG,10/02/2014,IT - Software Maintenance,Finance & Corporate Services,SAP (UK) LTD,,Large,,396951675,2300002110,Managed / Outsourced Services,To be matched off against Inv 6007071811,TW14 8HD,"-2,908.80",
Communities & Local Government,DCLG,10/02/2014,IT - Software Maintenance,Finance & Corporate Services,SAP (UK) LTD,,Large,,396951675,2300002111,Managed / Outsourced Services,To be matched off against Inv 6007071812,TW14 8HD,"-43,383.60",
Communities & Local Government,DCLG,10/02/2014,IT Consultancy,Finance & Corporate Services,GIANT PROFESSIONAL LIMITED,,,,,5106200711,Consultancy,Mincom & Impres to work under Connect,WC1A 1GG,"1,920.00",
Communities & Local Government,DCLG,10/02/2014,Photocopying,Finance & Corporate Services,INTERSERVE (FACILITIES MANAGEMENT),,Large,,364834825,5106200929,Operational Services,Eland House Reproduction 13-14,BS32 4NH,348.04,
Communities & Local Government,DCLG,10/02/2014,Photocopying,Finance & Corporate Services,INTERSERVE (FACILITIES MANAGEMENT),,Large,,364834825,5106200929,Operational Services,TQH Reproduction 13-14,BS32 4NH,"6,529.09",
Communities & Local Government,DCLG,10/02/2014,Photocopying,Finance & Corporate Services,INTERSERVE (FACILITIES MANAGEMENT),,Large,,364834825,5106200929,Operational Services,Hemel Hemp Reproduction 13-14,BS32 4NH,124.53,
Communities & Local Government,DCLG,10/02/2014,Photocopying,Finance & Corporate Services,INTERSERVE (FACILITIES MANAGEMENT),,Large,,364834825,5106200929,Operational Services,5SPP Reproduction 13-14,BS32 4NH,348.04,
Communities & Local Government,DCLG,10/02/2014,Rates,Localism,WESTMINSTER CITY COUNCIL,,Public Bodies,,229845706,2300001950,Non Addressable,Council tax for flat 311,SW1E 6QY,-978.01,
Communities & Local Government,DCLG,10/02/2014,Security,Finance & Corporate Services,INTERSERVE (FACILITIES MANAGEMENT),,Large,,364834825,5106200929,Security,Eland House Security 13-14,BS32 4NH,"19,761.04",
Communities & Local Government,DCLG,10/02/2014,Security,Finance & Corporate Services,INTERSERVE (FACILITIES MANAGEMENT),,Large,,364834825,5106200929,Security,TQH Security 13-14,BS32 4NH,"9,286.58",
Communities & Local Government,DCLG,10/02/2014,Security,Finance & Corporate Services,INTERSERVE (FACILITIES MANAGEMENT),,Large,,364834825,5106200929,Security,Hemel Hemp Security 13-14,BS32 4NH,"4,209.91",
Communities & Local Government,DCLG,10/02/2014,Security,Finance & Corporate Services,INTERSERVE (FACILITIES MANAGEMENT),,Large,,364834825,5106200929,Security,Rivergate Security 13-14,BS32 4NH,"6,764.25",
Communities & Local Government,DCLG,10/02/2014,Security,Finance & Corporate Services,INTERSERVE (FACILITIES MANAGEMENT),,Large,,364834825,5106200929,Security,Bridge House Security 13-14,BS32 4NH,"3,164.70",
Communities & Local Government,DCLG,10/02/2014,Security,Finance & Corporate Services,INTERSERVE (FACILITIES MANAGEMENT),,Large,,364834825,5106200929,Security,Citygate Security 13-14,BS32 4NH,"2,510.43",
Communities & Local Government,DCLG,10/02/2014,Security,Finance & Corporate Services,INTERSERVE (FACILITIES MANAGEMENT),,Large,,364834825,5106200929,Security,Queen Street Security 13-14,BS32 4NH,"2,321.36",
Communities & Local Government,DCLG,10/02/2014,Security,Finance & Corporate Services,INTERSERVE (FACILITIES MANAGEMENT),,Large,,364834825,5106200929,Security,5SPP Security 13-14,BS32 4NH,"4,747.65",
Communities & Local Government,DCLG,10/02/2014,Security,Finance & Corporate Services,INTERSERVE (FACILITIES MANAGEMENT),,Large,,364834825,5106200929,Security,Paradise Security 13-14,BS32 4NH,"2,114.36",
Communities & Local Government,DCLG,10/02/2014,Steady State Service Provision,Localism,MOTT MACDONALD LTD,,Large,,225250398,5106200923,Business Process Outsourcing Services,Core Service Period 1 (Jun 13-May 15),BN1 4FY,"26,950.00",
Communities & Local Government,DCLG,10/02/2014,Steady State Service Provision,Neighbourhoods,LOCALITY,,Medium,,347998312,5106200937,Business Process Outsourcing Services,Programme Delivery,N1 6DR,"31,368.20",
Communities & Local Government,DCLG,10/02/2014,Steady State Service Provision,Neighbourhoods,LOCALITY,,Medium,,347998312,5106200937,Business Process Outsourcing Services,Sharing And Learning,N1 6DR,"8,764.50",
Communities & Local Government,DCLG,10/02/2014,Telecoms equipment (non-capitalised),Finance & Corporate Services,DAMOVO UK LTD,,Large,,221481042,5106200945,Telecoms,Broadband Lines,RH12 4QP,59.92,
Communities & Local Government,DCLG,10/02/2014,Telecoms equipment (non-capitalised),Finance & Corporate Services,DAMOVO UK LTD,,Large,,221481042,5106200945,Telecoms,MPLS Circuit Charges 9 sites,RH12 4QP,"7,072.31",
Communities & Local Government,DCLG,10/02/2014,Telecoms equipment (non-capitalised),Finance & Corporate Services,DAMOVO UK LTD,,Large,,221481042,5106200945,Telecoms,Regional Hubs Mont5hly recurring and Lin,RH12 4QP,"11,532.82",
Communities & Local Government,DCLG,10/02/2014,Telecoms equipment (non-capitalised),Finance & Corporate Services,DAMOVO UK LTD,,Large,,221481042,5106200945,Telecoms,Telephone Support Services,RH12 4QP,"95,292.54",
Communities & Local Government,DCLG,10/02/2014,Waste Disposal and pest control,Finance & Corporate Services,INTERSERVE (FACILITIES MANAGEMENT),,Large,,364834825,5106200929,Waste Management Services,Eland House Waste 13-14,BS32 4NH,"3,244.34",
Communities & Local Government,DCLG,10/02/2014,Waste Disposal and pest control,Finance & Corporate Services,INTERSERVE (FACILITIES MANAGEMENT),,Large,,364834825,5106200929,Waste Management Services,TQH Waste 13-14,BS32 4NH,"1,301.76",
Communities & Local Government,DCLG,10/02/2014,Waste Disposal and pest control,Finance & Corporate Services,INTERSERVE (FACILITIES MANAGEMENT),,Large,,364834825,5106200929,Waste Management Services,Hemel Hemp Waste 13-14,BS32 4NH,267.48,
Communities & Local Government,DCLG,10/02/2014,Waste Disposal and pest control,Finance & Corporate Services,INTERSERVE (FACILITIES MANAGEMENT),,Large,,364834825,5106200929,Waste Management Services,Rivergate Waste 13-14,BS32 4NH,917.18,
Communities & Local Government,DCLG,10/02/2014,Waste Disposal and pest control,Finance & Corporate Services,INTERSERVE (FACILITIES MANAGEMENT),,Large,,364834825,5106200929,Waste Management Services,Bridge House Waste 13-14,BS32 4NH,516.3,
Communities & Local Government,DCLG,10/02/2014,Waste Disposal and pest control,Finance & Corporate Services,INTERSERVE (FACILITIES MANAGEMENT),,Large,,364834825,5106200929,Waste Management Services,Citygate Waste 13-14,BS32 4NH,868.7,
Communities & Local Government,DCLG,10/02/2014,Waste Disposal and pest control,Finance & Corporate Services,INTERSERVE (FACILITIES MANAGEMENT),,Large,,364834825,5106200929,Waste Management Services,Queen Street Waste 13-14,BS32 4NH,476.25,
Communities & Local Government,DCLG,10/02/2014,Waste Disposal and pest control,Finance & Corporate Services,INTERSERVE (FACILITIES MANAGEMENT),,Large,,364834825,5106200929,Waste Management Services,5SPP Waste 13-14,BS32 4NH,858.73,
Communities & Local Government,DCLG,10/02/2014,Waste Disposal and pest control,Finance & Corporate Services,INTERSERVE (FACILITIES MANAGEMENT),,Large,,364834825,5106200929,Waste Management Services,Paradise Waste 13-14,BS32 4NH,498.92,
Communities & Local Government,DCLG,10/02/2014,Work In Progress Pre-Cert 40373 Spend,Neighbourhoods,EAST MIDLANDS INCUBATION NETWORK (E,,Small,,,7600007731,,Revenue Grant To Be Paid,DE65 5GJ,"22,981.37",Yes
Communities & Local Government,DCLG,11/02/2014,Advertising,"Strategy, Communications and Private Office",M4C-DIVISION OF GROUPM UK LTD,,Large,,734728194,5106200973,Advertising,FIRE KILLS - Media Buying Non-VATable,WC1X 8RX,20.34,
Communities & Local Government,DCLG,11/02/2014,Advertising,"Strategy, Communications and Private Office",M4C-DIVISION OF GROUPM UK LTD,,Large,,734728194,5106200973,Advertising,FIRE KILLS - Media Buying VATable,WC1X 8RX,"24,409.98",
Communities & Local Government,DCLG,11/02/2014,Agency Staff,Neighbourhoods,REED EMPLOYMENT SERVICES,,Large,,292193364,5106200971,Contingent Labour,Temporary staff on a time limited project,SW20 0BA,809.1,
Communities & Local Government,DCLG,11/02/2014,Capital Grants to People Non Profit,Neighbourhoods,COALFIELDS REGENERATION TRUST,Yes,Small,,237444133,2100239596,,Capital - CRT claim for Q4 2013/14,S63 7WX,"30,000.00",Yes
Communities & Local Government,DCLG,11/02/2014,Catering,Finance & Corporate Services,INTERSERVE (FM) LTD (AUTOGRAPH),,Large,,213632537,2100239592,Catering,Consolidated monthly catering Nov 2013,BS32 4NH,"1,791.68",
Communities & Local Government,DCLG,11/02/2014,Current Grants to Non Profit Bodies,Neighbourhoods,COALFIELDS REGENERATION TRUST,Yes,Small,,237444133,2100239596,,Resource - CRT Claim for Q4 2013/14,S63 7WX,"220,000.00",Yes
Communities & Local Government,DCLG,11/02/2014,IT Consultancy,Finance & Corporate Services,GIANT PROFESSIONAL LIMITED,,,,,5106200743,Consultancy,Mincom & Impres to work under Connect,WC1A 1GG,"3,840.00",
Communities & Local Government,DCLG,11/02/2014,IT Consultancy,Finance & Corporate Services,GIANT PROFESSIONAL LIMITED,,,,,5106200744,Consultancy,Mincom & Impres to work under Connect,WC1A 1GG,"1,920.00",
Communities & Local Government,DCLG,11/02/2014,Legal Fees,Finance & Corporate Services,TREASURY SOLICITORS DEPT,,Public Bodies,,215580680,5106200976,Legal,Legal Advice,WC2B 4TS,"1,496.64",
Communities & Local Government,DCLG,11/02/2014,Legal Fees,Finance & Corporate Services,TREASURY SOLICITORS DEPT,,Public Bodies,,215580680,5106200977,Legal,Legal Advice,WC2B 4TS,594.95,
Communities & Local Government,DCLG,11/02/2014,Legal Fees,Finance & Corporate Services,TREASURY SOLICITORS DEPT,,Public Bodies,,215580680,5106200978,Legal,Legal Advice,WC2B 4TS,"2,527.74",
Communities & Local Government,DCLG,11/02/2014,Legal Fees,Finance & Corporate Services,TREASURY SOLICITORS DEPT,,Public Bodies,,215580680,5106200979,Legal,Legal Advice,WC2B 4TS,"82,802.36",
Communities & Local Government,DCLG,11/02/2014,Legal Fees,Finance & Corporate Services,TREASURY SOLICITORS DEPT,,Public Bodies,,215580680,5106200979,Legal,Legal Advice,WC2B 4TS,235,
Communities & Local Government,DCLG,11/02/2014,Research,Finance & Corporate Services,ECORYS UK LTD,,Medium,,,5106200984,Operational Services,Research - Troubled Families,B1 2RA,"20,179.20",
Communities & Local Government,DCLG,11/02/2014,Services provided by other Govt Orgs,Finance & Corporate Services,DEPT FOR EDUCATION,,Public Bodies,,237031612,5106200975,Business and Commercial Services,DCLG Security Vetting 2013-14,CF14 3UW,"1,211.58",Yes
Communities & Local Government,DCLG,11/02/2014,Services provided by other Govt Orgs,Localism,HM REVENUE & CUSTOMS,,,,,2100239589,Business and Commercial Services,Fire Service college GD161 Period 03 13,SS99 1AA,"18,439.80",Yes
Communities & Local Government,DCLG,11/02/2014,Steady State Service Provision,Neighbourhoods,CEL GROUP,,Medium,,394794614,5106200964,Business Process Outsourcing Services,Contract ext for national body for home improvement ,SK13 8HT,"69,756.08",
Communities & Local Government,DCLG,11/02/2014,Training,Finance & Corporate Services,CAPITA BUSINESS SERVICES LTD,,Large,,215580993,5106200950,Development and Training,Fast Stream: Personal Effectiveness and,DL1 9HB,355,
Communities & Local Government,DCLG,11/02/2014,Training,Finance & Corporate Services,CAPITA BUSINESS SERVICES LTD,,Large,,215580993,5106200951,Development and Training,Fast Stream: Developing Your Leadership,DL1 9HB,214,
Communities & Local Government,DCLG,11/02/2014,Training,Finance & Corporate Services,CAPITA BUSINESS SERVICES LTD,,Large,,215580993,5106200952,Development and Training,"Communication Skills for High Stress, Hi",DL1 9HB,228,
Communities & Local Government,DCLG,11/02/2014,Training,Finance & Corporate Services,CAPITA BUSINESS SERVICES LTD,,Large,,215580993,5106200957,Development and Training,Fast Stream: Personal Effectiveness & Em,DL1 9HB,355,
Communities & Local Government,DCLG,11/02/2014,Training,Finance & Corporate Services,CAPITA BUSINESS SERVICES LTD,,Large,,215580993,5106200961,Development and Training,Associaton for project management,DL1 9HB,615,
Communities & Local Government,DCLG,11/02/2014,Training,Finance & Corporate Services,CAPITA BUSINESS SERVICES LTD,,Large,,215580993,5106200980,Development and Training,Commercial Skills for Leaders Workshop,DL1 9HB,"7,044.00",
Communities & Local Government,DCLG,11/02/2014,Travel and Subsistence Account,Localism,CFOA (NATIONAL RESILIANCE) LTD,,Small,,211512993,5106200989,Business Travel,ESMCP Fire Service T&S,GL56 0RH,"2,523.55",
Communities & Local Government,DCLG,11/02/2014,Travel and Subsistence Account,Localism,CFOA (NATIONAL RESILIANCE) LTD,,Small,,211512993,5106200989,Business Travel,ESMCP Secondee's Expense-Dave Towler,GL56 0RH,"5,410.09",
Communities & Local Government,DCLG,11/02/2014,Travel and Subsistence Account,"Strategy, Communications and Private Office",DIAL A CAB,,Medium,,225338235,2100239590,Business Travel,Travel January 2014,N1 6AH,90.72,
Communities & Local Government,DCLG,11/02/2014,Travel and Subsistence Account,"Strategy, Communications and Private Office",DIAL A CAB,,Medium,,225338235,2100239590,Business Travel,Travel January 2014,N1 6AH,12.81,
Communities & Local Government,DCLG,11/02/2014,Travel and Subsistence Account,"Strategy, Communications and Private Office",DIAL A CAB,,Medium,,225338235,2100239590,Business Travel,Travel January 2014,N1 6AH,81.64,
Communities & Local Government,DCLG,11/02/2014,Travel and Subsistence Account,"Strategy, Communications and Private Office",DIAL A CAB,,Medium,,225338235,2100239590,Business Travel,Travel January 2014,N1 6AH,258.98,
Communities & Local Government,DCLG,11/02/2014,Vehicle Maintenance,Localism,BABCOCK CRITICAL SERVICES LTD,,Large,,641006945,5106200983,Fleet Management,Consumable 13/14,NG15 0DR,"31,916.30",
Communities & Local Government,DCLG,11/02/2014,Vehicle Maintenance,Localism,BABCOCK CRITICAL SERVICES LTD,,Large,,641006945,5106200985,Fleet Management,Unplanned Maintainance,NG15 0DR,"13,194.52",
Communities & Local Government,DCLG,11/02/2014,Water,Finance & Corporate Services,SEVERN TRENT WATER LTD,,Large,,234404465,5106200987,Operation of Water Supplies and Distribution,2013/14 St Philips B'ham Annual Water,CV3 9FJ,"1,092.73",
Communities & Local Government,DCLG,11/02/2014,Work In Progress Pre-Cert 40373 Spend,Neighbourhoods,CENTRAL LANCASHIRE UNIVERSITY,,,,,7600007735,,Revenue Grant To Be Paid,PR1 2HE,"42,615.25",Yes
Communities & Local Government,DCLG,11/02/2014,Work In Progress Pre-Cert 40373 Spend,Neighbourhoods,CENTRAL LANCASHIRE UNIVERSITY,,,,,7600007736,,Revenue Grant Clawback Offset,PR1 2HE,"-1,111.86",Yes
Communities & Local Government,DCLG,11/02/2014,Work In Progress Pre-Cert 40373 Spend,Neighbourhoods,CENTRAL LANCASHIRE UNIVERSITY,,,,,7600007736,,Revenue Grant To Be Paid,PR1 2HE,"133,338.30",Yes
Communities & Local Government,DCLG,11/02/2014,Work In Progress Pre-Cert 40373 Spend,Neighbourhoods,MERSEY MARTIME LTD,,Micro,,,7600007733,,Revenue Grant To Be Paid,CH41 5LH,"11,151.00",Yes
Communities & Local Government,DCLG,11/02/2014,Work In Progress Pre-Cert 40373 Spend,Neighbourhoods,REMADE SOUTH EAST,,Micro,,,7600007732,,Revenue Grant To Be Paid,ME1 1EW,"4,015.33",Yes
Communities & Local Government,DCLG,11/02/2014,Work In Progress Pre-Cert 40467 Spend,Neighbourhoods,INDIANA DEVELOPMENTS LLP,,Micro,,,7600007734,,Capital Grant To Be Paid,EX21 5PU,"64,438.02",Yes
Communities & Local Government,DCLG,12/02/2014,Advertising,"Strategy, Communications and Private Office",M4C-DIVISION OF GROUPM UK LTD,,Large,,734728194,5106200972,Advertising,RtB - Asbof fee,WC1X 8RX,32.23,
Communities & Local Government,DCLG,12/02/2014,Advertising,"Strategy, Communications and Private Office",M4C-DIVISION OF GROUPM UK LTD,,Large,,734728194,5106200972,Advertising,RtB - 2013/14 Digital Advertising Campaign,WC1X 8RX,"41,473.40",
Communities & Local Government,DCLG,12/02/2014,Agency Staff,Finance & Corporate Services,CAPITA RESOURCING LTD,,Large,,215581006,5106201005,Contingent Labour,Interim Manager (IAS),SL6 1DP,871.2,
Communities & Local Government,DCLG,12/02/2014,Agency Staff,Finance & Corporate Services,CAPITA RESOURCING LTD,,Large,,215581006,5106201006,Contingent Labour,Interim Manager,SL6 1DP,"2,862.00",
Communities & Local Government,DCLG,12/02/2014,Agency Staff,Finance & Corporate Services,MANPOWER UK LTD,,Large,,238500362,5106201043,Contingent Labour,Support Worker for staff member,UB8 1AB,268.32,
Communities & Local Government,DCLG,12/02/2014,Agency Staff,Finance & Corporate Services,MANPOWER UK LTD,,Large,,238500362,5106201043,Contingent Labour,Support Worker for staff member as RA,UB8 1AB,66.17,
Communities & Local Government,DCLG,12/02/2014,Agency Staff,Finance & Corporate Services,MANPOWER UK LTD,,Large,,238500362,5106201047,Contingent Labour,Support Worker for staff member,UB8 1AB,334.49,
Communities & Local Government,DCLG,12/02/2014,Agency Staff,Localism,CAPITA RESOURCING LTD,,Large,,215581006,5106201009,Contingent Labour,Interim Manager - Ext 02,SL6 1DP,"1,117.80",
Communities & Local Government,DCLG,12/02/2014,Agency Staff,Neighbourhoods,CAPITA RESOURCING LTD,,Large,,215581006,5106201007,Contingent Labour,Interim Manager,SL6 1DP,"1,590.00",
Communities & Local Government,DCLG,12/02/2014,Agency Staff,Neighbourhoods,CAPITA RESOURCING LTD,,Large,,215581006,5106201008,Contingent Labour,Interim Manager,SL6 1DP,"1,848.00",
Communities & Local Government,DCLG,12/02/2014,Agency Staff,Neighbourhoods,CAPITA RESOURCING LTD,,Large,,215581006,5106201010,Contingent Labour,Interim Manager - Ext 02,SL6 1DP,"7,200.00",
Communities & Local Government,DCLG,12/02/2014,Agency Staff,Neighbourhoods,CAPITA RESOURCING LTD,,Large,,215581006,5106201010,Contingent Labour,Interim Manager Expenses,SL6 1DP,600.3,
Communities & Local Government,DCLG,12/02/2014,Agency Staff,Neighbourhoods,CAPITA RESOURCING LTD,,Large,,215581006,5106201011,Contingent Labour,Interim Manager (Expenses),SL6 1DP,123.61,
Communities & Local Government,DCLG,12/02/2014,Agency Staff,Neighbourhoods,CAPITA RESOURCING LTD,,Large,,215581006,5106201011,Contingent Labour,Interim Manager (PAV Review Officer),SL6 1DP,"1,799.88",
Communities & Local Government,DCLG,12/02/2014,Agency Staff,Neighbourhoods,CAPITA RESOURCING LTD,,Large,,215581006,5106201012,Contingent Labour,Interim Manager,SL6 1DP,"1,628.16",
Communities & Local Government,DCLG,12/02/2014,Agency Staff,Neighbourhoods,CAPITA RESOURCING LTD,,Large,,215581006,5106201015,Contingent Labour,Interim Manager,SL6 1DP,"1,848.00",
Communities & Local Government,DCLG,12/02/2014,Agency Staff,Neighbourhoods,CAPITA RESOURCING LTD,,Large,,215581006,5106201016,Contingent Labour,CPD 0492030 Capita MSP,SL6 1DP,"1,484.20",
Communities & Local Government,DCLG,12/02/2014,Agency Staff,Neighbourhoods,CAPITA RESOURCING LTD,,Large,,215581006,5106201017,Contingent Labour,CPD 0492030 Capita MSP,SL6 1DP,92.32,
Communities & Local Government,DCLG,12/02/2014,Agency Staff,Neighbourhoods,CAPITA RESOURCING LTD,,Large,,215581006,5106201017,Contingent Labour,ERFD NW Auditor,SL6 1DP,"1,399.20",
Communities & Local Government,DCLG,12/02/2014,Agency Staff,Neighbourhoods,CAPITA RESOURCING LTD,,Large,,215581006,5106201018,Contingent Labour,Interim Manager,SL6 1DP,"6,996.00",
Communities & Local Government,DCLG,12/02/2014,Agency Staff,Neighbourhoods,CAPITA RESOURCING LTD,,Large,,215581006,5106201018,Contingent Labour,Interim Manager - Expenses,SL6 1DP,7.2,
Communities & Local Government,DCLG,12/02/2014,Agency Staff,Neighbourhoods,CAPITA RESOURCING LTD,,Large,,215581006,5106201042,Contingent Labour,Interim Manager,SL6 1DP,954,
Communities & Local Government,DCLG,12/02/2014,Agency Staff,Neighbourhoods,CAPITA RESOURCING LTD,,Large,,215581006,5106201042,Contingent Labour,Interim Manager (Ext 01),SL6 1DP,636,
Communities & Local Government,DCLG,12/02/2014,Central Share,Localism,OFFICE OF THE PAYMASTER GENERAL (NN,,,,239956253,2100239624,,BRR: Central Share Receipts,RH10 1UH,"868,838,812.00",
Communities & Local Government,DCLG,12/02/2014,Electricity,Finance & Corporate Services,BRITISH INDEPENDENT UTILITIES,,Medium,,,5106200995,Energy,Utilities Revenue for RCCs,FY8 2NA,460.8,
Communities & Local Government,DCLG,12/02/2014,IT - Service Contracts,Finance & Corporate Services,VERIZON UK LTD,,Large,,346786171,5106201039,Managed / Outsourced Services,Internet lease line for Interform (Data collection system),RG2 6DA,"1,241.18",
Communities & Local Government,DCLG,12/02/2014,IT - Software Maintenance,Finance & Corporate Services,METHODS CONSULTING LTD,,Medium,,505275578,5106201029,Managed / Outsourced Services,PIMS Development CCN03,WC2H 8AD,"1,273.74",
Communities & Local Government,DCLG,12/02/2014,Legal Fees,Neighbourhoods,PINSENT MASONS LLP,,Large,,215580626,5106200994,Legal,legal advice,EC1R 0ER,"3,152.46",
Communities & Local Government,DCLG,12/02/2014,NNDR Central List Receipts,Localism,OFFICE OF THE PAYMASTER GENERAL (NN,,,,239956253,2100239624,,Central List Receipts,RH10 1UH,"90,204,933.00",Yes
Communities & Local Government,DCLG,12/02/2014,Physical Storage,Finance & Corporate Services,IRON MOUNTAIN (UK) LIMITED,,Large,,290040211,5106201000,Warehousing and Storage,Offsite storage - tapes,EH54 7DF,408.68,
Communities & Local Government,DCLG,12/02/2014,Printing,"Strategy, Communications and Private Office",STATIONERY OFFICE LTD,,Large,,779375633,5106201021,Printing Services,Statutory Instruments  publication,NR3 1PD,160,
Communities & Local Government,DCLG,12/02/2014,Printing,"Strategy, Communications and Private Office",STATIONERY OFFICE LTD,,Large,,779375633,5106201021,Printing Services,VAT chargeable printing services,NR3 1PD,130,
Communities & Local Government,DCLG,12/02/2014,Publications,Finance & Corporate Services,SWETS INFORMATION SERVICES LTD,,Large,,216230292,5106201027,Learning and Development Materials,Journals supply 2013-14,OX14 1UQ,"1,004.08",
Communities & Local Government,DCLG,12/02/2014,Research,Finance & Corporate Services,SHEFFIELD HALLAM UNIVERSITY,,Large,,211278783,5106200996,Operational Services,Research - Housing Mobility Demonstration Project,S1 1WB,"20,000.00",
Communities & Local Government,DCLG,12/02/2014,Research,Neighbourhoods,BUILDING RESEARCH ESTABLISHMENT,,Large,,896495033,5106201032,Operational Services,Milestone 6-12,WD25 9XX,"19,623.60",
Communities & Local Government,DCLG,12/02/2014,Research,Neighbourhoods,BUILDING RESEARCH ESTABLISHMENT,,Large,,896495033,5106201034,Operational Services,Milestone 6-12,WD25 9XX,"19,623.60",
Communities & Local Government,DCLG,12/02/2014,Research,Neighbourhoods,BUILDING RESEARCH ESTABLISHMENT,,Large,,896495033,5106201035,Operational Services,Milestones 3-8 Call off Element 2014,WD25 9XX,"15,510.00",
Communities & Local Government,DCLG,12/02/2014,Steady State Service Provision,Localism,LOCALITY,,Medium,,347998312,5106201022,Business Process Outsourcing Services,Community Ownership of Assets - year 3,N1 6DR,"48,500.00",
Communities & Local Government,DCLG,12/02/2014,Steady State Service Provision,Neighbourhoods,TRIBAL EDUCATION-MANAGEMENT FEES,,Large,,221445146,5106201025,Business Process Outsourcing Services,Admin of Empty Homes Community Grant Programme,BS2 8RR,"7,446.00",
Communities & Local Government,DCLG,12/02/2014,Telecoms equipment (non-capitalised),"Strategy, Communications and Private Office",COLT TELECOMMUNICATIONS,,Large,,543775258,5106201044,Telecoms,Dark fibre - HoC to Eland house monthly,EC3A 7QN,500,
Communities & Local Government,DCLG,12/02/2014,Training,Finance & Corporate Services,INSTITUTE OF INTERNAL AUDITORS,,Small,,292669967,5106201051,Development and Training,P5 Corporate Governance & Risk Managemen,SW4 7BX,"1,645.00",
Communities & Local Government,DCLG,12/02/2014,Training,"Strategy, Communications and Private Office",MEDIA TRAINING LTD,,Small,,570206003,5106201001,Development and Training,Final Cut Pro Intro 12-14 Feb WG,WC1X 8QJ,675,
Communities & Local Government,DCLG,12/02/2014,Transitional Receipts,Localism,OFFICE OF THE PAYMASTER GENERAL (NN,,,,239956253,2100239624,,BRR: Transitional Protection Receipts,RH10 1UH,"1,854,781.00",
Communities & Local Government,DCLG,12/02/2014,Vehicle hire,"Strategy, Communications and Private Office",GOVERNMENT CAR & DESPATCH AGENCY,,Public Bodies,,,5106201049,Vehicle Hire and Lease,Duty Car 2- LT118,SW8 5AX,209,
Communities & Local Government,DCLG,12/02/2014,Vehicle hire,"Strategy, Communications and Private Office",GOVERNMENT CAR & DESPATCH AGENCY,,Public Bodies,,,5106201050,Vehicle Hire and Lease,Duty Car 1- LT206,SW8 5AX,418.5,
Communities & Local Government,DCLG,12/02/2014,Web Services,Neighbourhoods,BRAMBLE. CC,,Public Bodies,,221172856,5106201041,Managed / Outsourced Services,IT service contract extension to 2014,SE1 7SP,"-15,772.80",
Communities & Local Government,DCLG,12/02/2014,Web Services,Neighbourhoods,BRAMBLE. CC,,Public Bodies,,221172856,5106201048,Managed / Outsourced Services,IT service contract extension to 2014,SE1 7SP,"13,144.00",
Communities & Local Government,DCLG,12/02/2014,Work In Progress Pre-Cert 40373 Spend,Neighbourhoods,ASSOCIATION OF TOWN CENTRE MGT,,,,,7600007738,,Revenue Grant To Be Paid,SE1 0QH,721.79,Yes
Communities & Local Government,DCLG,12/02/2014,Work In Progress Pre-Cert 40373 Spend,Neighbourhoods,BRADFORD ENTERPRISE AGENCY LIMITED,,Micro,,,7600007739,,Revenue Grant To Be Paid,BD1 0AH,"2,869.62",Yes
Communities & Local Government,DCLG,12/02/2014,Work In Progress Pre-Cert 40373 Spend,Neighbourhoods,BRADFORD ENTERPRISE AGENCY LIMITED,,Micro,,,7600007740,,Revenue Grant To Be Paid,BD1 0AH,"6,164.92",Yes
Communities & Local Government,DCLG,12/02/2014,Work In Progress Pre-Cert 40373 Spend,Neighbourhoods,CAMBORNE POOL REDRUTH URC LTD,,,,,7600007746,,Revenue Grant To Be Paid,TR15 3PL,"150,768.70",Yes
Communities & Local Government,DCLG,12/02/2014,Work In Progress Pre-Cert 40373 Spend,Neighbourhoods,NBV (NOTTINGHAM BUSINESS VENTURE),,Small,,,7600007745,,Revenue Grant To Be Paid,NG7 7FN,"41,132.07",Yes
Communities & Local Government,DCLG,12/02/2014,Work In Progress Pre-Cert 40373 Spend,Neighbourhoods,NORFOLK & WAVENEY ENTERPRISE SERV'S,,Medium,,,7600007744,,Revenue Grant To Be Paid,NR2 1JH,"30,531.55",Yes
Communities & Local Government,DCLG,12/02/2014,Work In Progress Pre-Cert 40373 Spend,Neighbourhoods,SCARBOROUGH BOROUGH COUNCIL,,,,,7600007737,,Revenue Grant To Be Paid,YO11 2HG,"24,191.52",Yes
Communities & Local Government,DCLG,12/02/2014,Work In Progress Pre-Cert 40373 Spend,Neighbourhoods,YTKO LIMITED,,,,,7600007741,,Revenue Grant To Be Paid,CB4 2QH,"62,532.69",Yes
Communities & Local Government,DCLG,12/02/2014,Work In Progress Pre-Cert 40467 Spend,Neighbourhoods,MILLFIELDS COMMUNITY ECONOMIC DEV T,Yes,,,,7600007742,,Capital Grant To Be Paid,PL1 3HQ,"9,803.85",Yes
Communities & Local Government,DCLG,12/02/2014,Work In Progress Pre-Cert 40467 Spend,Neighbourhoods,SALFORD CITY COUNCIL,,,,,2300002100,,Recovery of irregular payment,M27 5FJ,"-4,350.14",Yes
Communities & Local Government,DCLG,12/02/2014,Work In Progress Pre-Cert 40467 Spend,Neighbourhoods,WARMSDALE LTD,,,,,7600007743,,Capital Grant To Be Paid,HU14 3JP,"50,581.01",Yes
Communities & Local Government,DCLG,13/02/2014,Cap Grants to Private Sector Companies,Neighbourhoods,BRADFORD MBC,,,,,2100239717,,RGF Q4 2013-14,BD1 1HX,"469,962.89",Yes
Communities & Local Government,DCLG,13/02/2014,Cap Grants to Private Sector Companies,Neighbourhoods,ENERGY COAST WEST CUMBRIA LTD,,Medium,,,2100239722,,RGF Q4 2013-14,CA24 3JZ,"67,988.00",Yes
Communities & Local Government,DCLG,13/02/2014,Cap Grants to Private Sector Companies,Neighbourhoods,FERGUSON POLYCOM LTD,,Medium,,,2100239720,,RGF Q4 2013-14,OL8 3RA,"35,059.00",Yes
Communities & Local Government,DCLG,13/02/2014,Cap Grants to Private Sector Companies,Neighbourhoods,GOSPORT BC,,,,239825078,2100239731,,RGF Q4 2013-14,PO12 1EB,"1,500,000.00",Yes
Communities & Local Government,DCLG,13/02/2014,Cap Grants to Private Sector Companies,Neighbourhoods,GOSPORT BC,,,,239825078,2100239732,,RGF Q4 2013-14,PO12 1EB,"730,000.00",Yes
Communities & Local Government,DCLG,13/02/2014,Cap Grants to Private Sector Companies,Neighbourhoods,GTR MANCHESTER COMBINED AUTHORITY,,Public Bodies,,,2100239724,,RGF Q4 2013-14,M60 2JR,"2,047,879.00",Yes
Communities & Local Government,DCLG,13/02/2014,Cap Grants to Private Sector Companies,Neighbourhoods,LIVERPOOL CITY COUNCIL,,Public Bodies,,228646113,2100239699,,RGF Q4 2013-14,L2 2DH,"709,695.00",Yes
Communities & Local Government,DCLG,13/02/2014,Cap Grants to Private Sector Companies,Neighbourhoods,LUCITE INTERNATIONAL UK LTD,,,,,2100239696,,RGF Q4 2013-14,BB3 1QB,"37,518.00",Yes
Communities & Local Government,DCLG,13/02/2014,Cap Grants to Private Sector Companies,Neighbourhoods,PHOENIX COURT BLACKBURN LTD,,Large,,,2100239721,,RGF Q4 2013-14,BB1 2LU,"145,539.00",Yes
Communities & Local Government,DCLG,13/02/2014,Cap Grants to Private Sector Companies,Neighbourhoods,PIRELLI TYRES LTD,,Large,,,2100239726,,RGF Q4 2013-14,DE13 0BH,"562,238.00",Yes
Communities & Local Government,DCLG,13/02/2014,Cap Grants to Private Sector Companies,Neighbourhoods,PORTSMOUTH NAVAL BASE PROP TRUST,,,,,2100239730,,RGF Q4 2013-14,PO1 3LJ,"139,904.00",Yes
Communities & Local Government,DCLG,13/02/2014,Cap Grants to Private Sector Companies,Neighbourhoods,QUARRYTECH LTD,,,,,2100239708,,RGF Q4 2013-14,BT70 1NJ,"469,333.00",Yes
Communities & Local Government,DCLG,13/02/2014,Cap Grants to Private Sector Companies,Neighbourhoods,REALLY USEFUL PRODUCTS LTD,,Medium,,,2100239704,,RGF Q4 2013-14,WF6 1TN,"143,288.00",Yes
Communities & Local Government,DCLG,13/02/2014,Cap Grants to Private Sector Companies,Neighbourhoods,SEVERN UNIVAL LTD,,Medium,,,2100239703,,RGF Q4 2013-14,HD1 3DY,69.61,Yes
Communities & Local Government,DCLG,13/02/2014,Cap Grants to Private Sector Companies,Neighbourhoods,SEW-EURODRIVE LTD,,,,,2100239719,,RGF Q4 2013-14,WF6 1QR,"60,907.00",Yes
Communities & Local Government,DCLG,13/02/2014,Cap Grants to Private Sector Companies,Neighbourhoods,SOUTHAMPTON CITY COUNCIL,,Public Bodies,,216927475,2100239729,,RGF Q4 2013-14,SO14 7LY,"1,203,082.94",Yes
Communities & Local Government,DCLG,13/02/2014,Cap Grants to Private Sector Companies,Neighbourhoods,TAMESIDE MBC,,Large,,212635875,2100239723,,RGF Q4 2013-14,OL6 6DL,"843,368.27",Yes
Communities & Local Government,DCLG,13/02/2014,Cap Grants to Private Sector Companies,Neighbourhoods,TYGAVAC ADVANCED MATERIALS LTD,,Small,,,2100239715,,RGF Q4 2013-14,OL16 5LX,"269,993.08",Yes
Communities & Local Government,DCLG,13/02/2014,Cap Grants to Private Sector Companies,Neighbourhoods,WAKEFIELD MDC,,Large,,347764511,2100239727,,RGF Q4 2013-14,WF1 1ZS,"1,176,637.00",Yes
Communities & Local Government,DCLG,13/02/2014,Current Grants to Non Profit Bodies,Neighbourhoods,BRADFORD MBC,,,,,2100239717,,RGF Q4 2013-14,BD1 1HX,"578,961.16",Yes
Communities & Local Government,DCLG,13/02/2014,Current Grants to Non Profit Bodies,Neighbourhoods,CROWN SPECIALITY PACKAGING UK LTD,,,,,2100239700,,RGF Q4 2013-14,OX12 9BP,"10,705.20",Yes
Communities & Local Government,DCLG,13/02/2014,Current Grants to Non Profit Bodies,Neighbourhoods,DEAFINITIONS LTD,Yes,,,,2100239728,,RGF Q4 2013-14,BD5 8PN,"164,678.05",Yes
Communities & Local Government,DCLG,13/02/2014,Current Grants to Non Profit Bodies,Neighbourhoods,FERGUSON POLYCOM LTD,,Medium,,,2100239720,,RGF Q4 2013-14,OL8 3RA,"2,501.00",Yes
Communities & Local Government,DCLG,13/02/2014,Current Grants to Non Profit Bodies,Neighbourhoods,LUCITE INTERNATIONAL UK LTD,,,,,2100239696,,RGF Q4 2013-14,BB3 1QB,"9,402.00",Yes
Communities & Local Government,DCLG,13/02/2014,Current Grants to Non Profit Bodies,Neighbourhoods,MANCHESTER CITY COUNCIL,,Large,,238004407,2100239698,,RGF Q4 2013-14,M60 2LA,"62,806.00",Yes
Communities & Local Government,DCLG,13/02/2014,Current Grants to Non Profit Bodies,Neighbourhoods,REDX PHARMA LTD,,,,,2100239711,,RGF Q4 2013-14,M2 3AW,"956,310.00",Yes
Communities & Local Government,DCLG,13/02/2014,Current Grants to Non Profit Bodies,Neighbourhoods,SEVERN UNIVAL LTD,,Medium,,,2100239703,,RGF Q4 2013-14,HD1 3DY,"43,374.92",Yes
Communities & Local Government,DCLG,13/02/2014,Current Grants to Non Profit Bodies,Neighbourhoods,SIEMENS T & D LIMITED,,,,,2100239705,,RGF Q4 2013-14,M20 2UR,"42,500.00",Yes
Communities & Local Government,DCLG,13/02/2014,Current Grants to Non Profit Bodies,Neighbourhoods,SURGICAL INNOVATIONS LTD,,Medium,,,2100239709,,RGF Q4 2013-14,LS16 6Q7,"70,979.00",Yes
Communities & Local Government,DCLG,13/02/2014,Current Grants to Non Profit Bodies,Neighbourhoods,UNILEVER UK CENTRAL RESOURCES,,,,,2100239718,,RGF Q4 2013-14,3133 AT,"1,228,252.00",Yes
Communities & Local Government,DCLG,13/02/2014,Electricity,Finance & Corporate Services,BRITISH INDEPENDENT UTILITIES,,Medium,,,5106201024,Energy,Utilities Revenue for RCCs,FY8 2NA,483.12,
Communities & Local Government,DCLG,13/02/2014,Electricity,Finance & Corporate Services,EDF ENERGY 1 LIMITED,,Large,,230840469,5106201069,Energy,Rivergate Electricity 2013-14,PL3 5XQ,"8,198.32",
Communities & Local Government,DCLG,13/02/2014,Electricity,Finance & Corporate Services,EDF ENERGY 1 LIMITED,,Large,,230840469,5106201069,Energy,Rivergate Electricity 2013-14(0%),PL3 5XQ,3,
Communities & Local Government,DCLG,13/02/2014,Electricity,Finance & Corporate Services,EDF ENERGY 1 LIMITED,,Large,,230840469,5106201070,Energy,Paradise Circus Electricity 2013-14,PL3 5XQ,"2,724.06",
Communities & Local Government,DCLG,13/02/2014,Electricity,Finance & Corporate Services,EDF ENERGY 1 LIMITED,,Large,,230840469,5106201070,Energy,Paradise Circus Electricity 2013-14  -0%,PL3 5XQ,1,
Communities & Local Government,DCLG,13/02/2014,Electricity,Finance & Corporate Services,EDF ENERGY 1 LIMITED,,Large,,230840469,5106201071,Energy,St Philips Place Electricity 2013-14,PL3 5XQ,"10,676.34",
Communities & Local Government,DCLG,13/02/2014,Electricity,Finance & Corporate Services,EDF ENERGY 1 LIMITED,,Large,,230840469,5106201071,Energy,St Philips Place Electricity 2013-14-0%,PL3 5XQ,3.97,
Communities & Local Government,DCLG,13/02/2014,IT Maintenance,Finance & Corporate Services,VOCA LINK,,Large,,217397207,5106201077,ICT Services,20% BACS sort code ISCD for SAP,WD3 1FX,420,
Communities & Local Government,DCLG,13/02/2014,Office Supplies,Localism,BANNER BUSINESS SUPPLIES LTD,,Large,,236638362,5106201059,Office Supplies,DELWEEKLY Banner A4 Recycled Copier Pape,NR3 1PD,254.16,
Communities & Local Government,DCLG,13/02/2014,Online Database Information Retrieval,Finance & Corporate Services,DANDY BOOKSELLERS LTD,,Small,,506732320,5106201058,ICT Services,Civil Service Year Book online 14-15,NW6 7UP,"1,200.00",
Communities & Local Government,DCLG,13/02/2014,Professional services,Finance & Corporate Services,GVA GRIMLEY LTD,,Large,,210158990,5106200990,Building Management,Com 95 - Disposal & Management of FSC,B1 2JB,"3,300.00",
Communities & Local Government,DCLG,13/02/2014,Professional services,Localism,GOVT ACTUARYS DEPARTMENT,,Public Bodies,,233567432,5106200574,Financial,GAD acturial Advice for LGPS and Fire,EC4A 1AB,"71,890.67",
Communities & Local Government,DCLG,13/02/2014,Professional services,Localism,GOVT ACTUARYS DEPARTMENT,,Public Bodies,,233567432,5106200717,Financial,GAD acturial Advice for LGPS and Fire,EC4A 1AB,"43,197.48",
Communities & Local Government,DCLG,13/02/2014,Training,Finance & Corporate Services,CAPITA BUSINESS SERVICES LTD,,Large,,215580993,5106201052,Development and Training,Commercial Capability Workshops,DL1 9HB,"1,463.41",
Communities & Local Government,DCLG,14/02/2014,Agency Staff,Finance & Corporate Services,REED SPECIALIST RECRUITMENT LTD,,Large,,288656960,5106201089,Contingent Labour,Procurement Specialist,NN1 1UE,"3,000.00",
Communities & Local Government,DCLG,14/02/2014,Agency Staff,Neighbourhoods,REED SPECIALIST RECRUITMENT LTD,,Large,,288656960,5106201088,Contingent Labour,Help to Buy Temp,NN1 1UE,932.5,
Communities & Local Government,DCLG,14/02/2014,Current (non AEF) Grants to Local Authorities,Finance & Corporate Services,DURHAM & DARLINGTON FIRE RESCUE SER,,Public Bodies,,424872851,2100239810,,Regional control centre grant,DH1 1TW,"149,608.75",Yes
Communities & Local Government,DCLG,14/02/2014,Current (non AEF) Grants to Local Authorities,Finance & Corporate Services,GREATER LONDON AUTHORITY,,Large,,225353416,2100239809,,Regional control centre grant,SE10 1AP,"142,073.90",Yes
Communities & Local Government,DCLG,14/02/2014,Current (non AEF) Grants to Local Authorities,Finance & Corporate Services,GREATER MANCHESTER FIRE & RESCUE,,Public Bodies,,424873172,2100239808,,Regional control centre grant,M27 8US,"158,883.00",Yes
Communities & Local Government,DCLG,14/02/2014,Current (non AEF) Grants to Local Authorities,Neighbourhoods,BARNSLEY MBC,,Public Bodies,,211178595,2100239628,,LEPS 13-14 BIS Capacity grant funding,S70 9GG,"26,800.00",Yes
Communities & Local Government,DCLG,14/02/2014,Current (non AEF) Grants to Local Authorities,Neighbourhoods,BATH & NE SOMERSET DC,,Large,,214502499,2100239629,,LEPS 13-14 BIS Capacity grant funding,BA1 5AW,"25,600.00",Yes
Communities & Local Government,DCLG,14/02/2014,Current (non AEF) Grants to Local Authorities,Neighbourhoods,BIRMINGHAM CITY COUNCIL,,Public Bodies,,228459434,2100239630,,LEPS 13-14 BIS Capacity grant funding,B1 1BB,"25,600.00",Yes
Communities & Local Government,DCLG,14/02/2014,Current (non AEF) Grants to Local Authorities,Neighbourhoods,BUCKINGHAMSHIRE CC (REVENUE),,,,,2100239631,,LEPS 13-14 BIS Capacity grant funding,HP20 1UD,"25,600.00",Yes
Communities & Local Government,DCLG,14/02/2014,Current (non AEF) Grants to Local Authorities,Neighbourhoods,CAMBRIDGESHIRE COUNTY COUNCIL,,Public Bodies,,210311121,2100239632,,LEPS 13-14 BIS Capacity grant funding,CB3 0AP,"25,600.00",Yes
Communities & Local Government,DCLG,14/02/2014,Current (non AEF) Grants to Local Authorities,Neighbourhoods,CHESHIRE EAST BOROUGH COUNCIL,,Public Bodies,,211229356,2100239633,,LEPS 13-14 BIS Capacity grant funding,CH1 1SE,"25,600.00",Yes
Communities & Local Government,DCLG,14/02/2014,Current (non AEF) Grants to Local Authorities,Neighbourhoods,COVENTRY CITY COUNCIL,,Large,,211313697,2100239634,,LEPS 13-14 BIS Capacity grant funding,CV1 5RQ,"25,600.00",Yes
Communities & Local Government,DCLG,14/02/2014,Current (non AEF) Grants to Local Authorities,Neighbourhoods,CUMBRIA COUNTY COUNCIL,,Public Bodies,,211316542,2100239635,,LEPS 13-14 BIS Capacity grant funding,CA3 8NA,"25,600.00",Yes
Communities & Local Government,DCLG,14/02/2014,Current (non AEF) Grants to Local Authorities,Neighbourhoods,DERBY CITY COUNCIL,,Large,,229641378,2100239636,,LEPS 13-14 BIS Capacity grant funding,DE1 2YL,"25,600.00",Yes
Communities & Local Government,DCLG,14/02/2014,Current (non AEF) Grants to Local Authorities,Neighbourhoods,GLOS LOCAL GOVT PENSION SCHEME,,Large,,211272067,2100239637,,4842.46,GL1 2TG,"4,842.46",Yes
Communities & Local Government,DCLG,14/02/2014,Current (non AEF) Grants to Local Authorities,Neighbourhoods,GREATER LONDON AUTHORITY,,Large,,,2100239638,,4842.46,SE1 2AA,"25,600.00",Yes
Communities & Local Government,DCLG,14/02/2014,Current (non AEF) Grants to Local Authorities,Neighbourhoods,GTR MANCHESTER COMBINED AUTHORITY,,Public Bodies,,,2100239639,,LEPS 13-14 BIS Capacity grant funding,M60 2JR,"25,600.00",Yes
Communities & Local Government,DCLG,14/02/2014,Current (non AEF) Grants to Local Authorities,Neighbourhoods,HAMPSHIRE COUNTY COUNCIL,,Public Bodies,,211325832,2100239640,,LEPS 13-14 BIS Capacity grant funding,SO23 8UB,"12,950.00",Yes
Communities & Local Government,DCLG,14/02/2014,Current (non AEF) Grants to Local Authorities,Neighbourhoods,HERTFORDSHIRE CC,,Public Bodies,,227470408,2100239641,,LEPS 13-14 BIS Capacity grant funding,SG13 8DQ,"6,602.50",Yes
Communities & Local Government,DCLG,14/02/2014,Current (non AEF) Grants to Local Authorities,Neighbourhoods,KINGSTON UPON HULL CITY COUNCIL,,Large,,217553044,2100239642,,LEPS 13-14 BIS Capacity grant funding,HU1 2AB,"25,600.00",Yes
Communities & Local Government,DCLG,14/02/2014,Current (non AEF) Grants to Local Authorities,Neighbourhoods,LANCASHIRE COUNTY COUNCIL,,Large,,233047435,2100239643,,LEPS 13-14 BIS Capacity grant funding,PR1 0LD,"25,600.00",Yes
Communities & Local Government,DCLG,14/02/2014,Current (non AEF) Grants to Local Authorities,Neighbourhoods,LEICESTER CITY COUNCIL,,Public Bodies,,228219960,2100239644,,LEPS 13-14 BIS Capacity grant funding,LE1 6ZG,"25,600.00",Yes
Communities & Local Government,DCLG,14/02/2014,Current (non AEF) Grants to Local Authorities,Neighbourhoods,LINCOLNSHIRE CC,,Public Bodies,,213279305,2100239645,,LEPS 13-14 BIS Capacity grant funding,LN1 1YQ,"25,600.00",Yes
Communities & Local Government,DCLG,14/02/2014,Current (non AEF) Grants to Local Authorities,Neighbourhoods,LUTON BOROUGH COUNCIL,,Public Bodies,,,2100239646,,LEPS 13-14 BIS Capacity grant funding,LU1 2RD,"14,251.16",Yes
Communities & Local Government,DCLG,14/02/2014,Current (non AEF) Grants to Local Authorities,Neighbourhoods,NORTH YORKSHIRE COUNTY COUNCIL,,Large,,,2100239647,,LEPS 13-14 BIS Capacity grant funding,DL7 8AH,"25,600.00",Yes
Communities & Local Government,DCLG,14/02/2014,Current (non AEF) Grants to Local Authorities,Neighbourhoods,OXFORDSHIRE CC,,,,,2100239648,,LEPS 13-14 BIS Capacity grant funding,OX1 1SD,"25,600.00",Yes
Communities & Local Government,DCLG,14/02/2014,Current (non AEF) Grants to Local Authorities,Neighbourhoods,PORTSMOUTH CITY COUNCIL,,Public Bodies,,211183082,2100239649,,LEPS 13-14 BIS Capacity grant funding,PO1 2BG,"18,532.50",Yes
Communities & Local Government,DCLG,14/02/2014,Current (non AEF) Grants to Local Authorities,Neighbourhoods,SHROPSHIRE UNITARY COUNCIL,,,,,2100239651,,LEPS 13-14 BIS Capacity grant funding,SY1 9DP,"25,800.00",Yes
Communities & Local Government,DCLG,14/02/2014,Current (non AEF) Grants to Local Authorities,Neighbourhoods,SOMERSET COUNTY COUNCIL,,,,211229406,2100239652,,LEPS 13-14 BIS Capacity grant funding,TA1 9GU,"24,750.00",Yes
Communities & Local Government,DCLG,14/02/2014,Current (non AEF) Grants to Local Authorities,Neighbourhoods,STOCKTON ON TEES BOROUGH COUNCIL,,Large,,211574327,2100239653,,LEPS 13-14 BIS Capacity grant funding,TS18 1LE,"25,600.00",Yes
Communities & Local Government,DCLG,14/02/2014,Current (non AEF) Grants to Local Authorities,Neighbourhoods,STOKE ON TRENT CITY COUNCIL,,,,232789425,2100239654,,LEPS 13-14 BIS Capacity grant funding,ST4 1RF,"25,600.00",Yes
Communities & Local Government,DCLG,14/02/2014,Current (non AEF) Grants to Local Authorities,Neighbourhoods,SUFFOLK COUNTY COUNCIL,,Large,,236445243,2100239655,,LEPS 13-14 BIS Capacity grant funding,IP1 2BX,"28,933.00",Yes
Communities & Local Government,DCLG,14/02/2014,Current (non AEF) Grants to Local Authorities,Neighbourhoods,SUNDERLAND CITY COUNCIL,,,,215599312,2100239656,,LEPS 13-14 BIS Capacity grant funding,SR2 7DN,"25,600.00",Yes
Communities & Local Government,DCLG,14/02/2014,Current (non AEF) Grants to Local Authorities,Neighbourhoods,WEST SUSSEX CC,,Public Bodies,,232198762,2100239657,,LEPS 13-14 BIS Capacity grant funding,DL98 1AD,"19,625.00",Yes
Communities & Local Government,DCLG,14/02/2014,Current (non AEF) Grants to Local Authorities,Neighbourhoods,WILTSHIRE COUNTY COUNCIL,,,,211341656,2100239658,,LEPS 13-14 BIS Capacity grant funding,BA14 4DS,"25,800.00",Yes
Communities & Local Government,DCLG,14/02/2014,Current (non AEF) Grants to Local Authorities,Neighbourhoods,WINDSOR & MAIDENHEAD,,,,227411998,2100239650,,LEPS 13-14 BIS Capacity grant funding,SL6 1RF,"25,600.00",Yes
Communities & Local Government,DCLG,14/02/2014,Current (non AEF) Grants to Local Authorities,Neighbourhoods,WORCESTERSHIRE COUNTY COUNCIL,,Public Bodies,,230359643,2100239659,,LEPS 13-14 BIS Capacity grant funding,WR5 2NP,"12,006.17",Yes
Communities & Local Government,DCLG,14/02/2014,Current Grants to Non Profit Bodies,Localism,FAITH ACTION,Yes,Medium,,,2100238199,,Community Based English Language Competition,RM8 3QS,"158,348.69",Yes
Communities & Local Government,DCLG,14/02/2014,Current Grants to Non Profit Bodies,Neighbourhoods,GLOUCESTER GROVE TENANT MANG ORG CI,,Micro,,,5000242995,,Right to Manage,SE15 6AD,"4,977.00",Yes
Communities & Local Government,DCLG,14/02/2014,Domestic Services,Finance & Corporate Services,AMEY COMMUNITY LTD,,Large,,,5106201087,Cleaning,2013-14 Lateral Cleaning,OX4 4DQ,"4,794.13",
Communities & Local Government,DCLG,14/02/2014,Domestic Services,Finance & Corporate Services,AMEY COMMUNITY LTD,,Large,,,5106201087,Cleaning,2013-14 Lateral General Waste Provision,OX4 4DQ,645.65,
Communities & Local Government,DCLG,14/02/2014,Electricity,Finance & Corporate Services,EDF ENERGY 1 LIMITED,,Large,,230840469,5106201074,Energy,Eland House Electricity 2013-14,PL3 5XQ,"39,055.27",
Communities & Local Government,DCLG,14/02/2014,Electricity,Finance & Corporate Services,EDF ENERGY 1 LIMITED,,Large,,230840469,5106201074,Energy,Eland House Electricity 2013-14 (0%),PL3 5XQ,0.02,
Communities & Local Government,DCLG,14/02/2014,Electricity,Finance & Corporate Services,EDF ENERGY 1 LIMITED,,Large,,230840469,5106201098,Energy,Queen St Electricty 2013-14,PL3 5XQ,"1,967.63",
Communities & Local Government,DCLG,14/02/2014,Electricity,Finance & Corporate Services,EDF ENERGY 1 LIMITED,,Large,,230840469,5106201098,Energy,Queen St Electricty 2013-14  - 0%,PL3 5XQ,0.65,
Communities & Local Government,DCLG,14/02/2014,Electricity,Finance & Corporate Services,EDF ENERGY 1 LIMITED,,Large,,230840469,5106201099,Energy,Bridge House Electricity 2013-14,PL3 5XQ,"6,535.07",
Communities & Local Government,DCLG,14/02/2014,Electricity,Finance & Corporate Services,EDF ENERGY 1 LIMITED,,Large,,230840469,5106201099,Energy,Bridge House Electricity 2013-14 - 0%,PL3 5XQ,2.42,
Communities & Local Government,DCLG,14/02/2014,Facilities Management (ISD use only),Finance & Corporate Services,AMEY COMMUNITY LTD,,Large,,,5106201087,Building Management,2013-14 Lateral Asset & Prop Management,OX4 4DQ,186.2,
Communities & Local Government,DCLG,14/02/2014,Facilities Management (ISD use only),Finance & Corporate Services,AMEY COMMUNITY LTD,,Large,,,5106201087,Building Management,2013-14 Lateral Estate Service,OX4 4DQ,"1,969.85",
Communities & Local Government,DCLG,14/02/2014,Facilities Management (ISD use only),Finance & Corporate Services,AMEY COMMUNITY LTD,,Large,,,5106201087,Building Management,2013-14 Lateral General Requirements,OX4 4DQ,"4,896.25",
Communities & Local Government,DCLG,14/02/2014,Facilities Management (ISD use only),Finance & Corporate Services,AMEY COMMUNITY LTD,,Large,,,5106201087,Building Management,2013-14 Lateral Helpdesk,OX4 4DQ,842.15,
Communities & Local Government,DCLG,14/02/2014,Facilities Management (ISD use only),Finance & Corporate Services,AMEY COMMUNITY LTD,,Large,,,5106201087,Building Management,2013-14 Lateral Porterage Services,OX4 4DQ,24.8,
Communities & Local Government,DCLG,14/02/2014,Facilities Management (ISD use only),Finance & Corporate Services,AMEY COMMUNITY LTD,,Large,,,5106201087,Building Management,2013-14 Lateral X-Ray devices,OX4 4DQ,55.08,
Communities & Local Government,DCLG,14/02/2014,Facilities Management (ISD use only),Finance & Corporate Services,AMEY COMMUNITY LTD,,Large,,,5106201102,Building Management,2013-14 Lateral Variable Maint,OX4 4DQ,"4,179.15",
Communities & Local Government,DCLG,14/02/2014,Fixed Maintenance,Finance & Corporate Services,AMEY COMMUNITY LTD,,Large,,,5106201087,Environmental Services,2013-14 Lateral Grounds &Gardens,OX4 4DQ,181.26,
Communities & Local Government,DCLG,14/02/2014,Security,Finance & Corporate Services,AMEY COMMUNITY LTD,,Large,,,5106201087,Security,2013-14 Lateral Reception Services,OX4 4DQ,"1,119.88",
Communities & Local Government,DCLG,14/02/2014,Security,Finance & Corporate Services,AMEY COMMUNITY LTD,,Large,,,5106201087,Security,2013-14 Lateral Security Services,OX4 4DQ,"1,644.02",
Communities & Local Government,DCLG,14/02/2014,Services provided by other Govt Orgs,Neighbourhoods,VALUATION OFFICE AGENCY,,Public Bodies,,215253886,5106201093,Business and Commercial Services,RTB VOA Valuation 13/14,W1B 5BU,"59,053.55",Yes
Communities & Local Government,DCLG,14/02/2014,Steady State Service Provision,Finance & Corporate Services,ORDNANCE SURVEY,,Public Bodies,,424275621,5106200974,Business Process Outsourcing Services,Research - Land Change Use Statistics ,SO16 0AS,"78,000.00",
Communities & Local Government,DCLG,14/02/2014,Waste Disposal and pest control,Finance & Corporate Services,AMEY COMMUNITY LTD,,Large,,,5106201087,Environmental Services,2013-14 Lateral Pest Control Services,OX4 4DQ,45.66,
Communities & Local Government,DCLG,14/02/2014,Waste Disposal and pest control,Finance & Corporate Services,AMEY COMMUNITY LTD,,Large,,,5106201087,Waste Management Services,2013-14 Lateral Waste Management,OX4 4DQ,490.79,
Communities & Local Government,DCLG,14/02/2014,Work In Progress Pre-Cert 40373 Spend,Neighbourhoods,LINCONSHIRE COUNTY COUNCIL,,Large,,,7600007753,,Revenue Grant To Be Paid,LN1 1YT,"11,655.97",Yes
Communities & Local Government,DCLG,14/02/2014,Work In Progress Pre-Cert 40373 Spend,Neighbourhoods,NORTHUMBERLAND COUNTY COUNCIL,,,,,7600007747,,Revenue Grant To Be Paid,NE61 2EF,"2,994.66",Yes
Communities & Local Government,DCLG,14/02/2014,Work In Progress Pre-Cert 40373 Spend,Neighbourhoods,NORTHUMBERLAND COUNTY COUNCIL,,,,,7600007748,,Revenue Grant To Be Paid,NE61 2EF,"4,367.81",Yes
Communities & Local Government,DCLG,14/02/2014,Work In Progress Pre-Cert 40373 Spend,Neighbourhoods,NORTHUMBERLAND COUNTY COUNCIL,,,,,7600007749,,Revenue Grant To Be Paid,NE61 2EF,"35,023.19",Yes
Communities & Local Government,DCLG,14/02/2014,Work In Progress Pre-Cert 40373 Spend,Neighbourhoods,NORTHUMBERLAND COUNTY COUNCIL,,,,,7600007752,,Revenue Grant To Be Paid,NE61 2EF,"45,838.72",Yes
Communities & Local Government,DCLG,14/02/2014,Work In Progress Pre-Cert 40373 Spend,Neighbourhoods,SES,,,,,7600007750,,Revenue Grant To Be Paid,SR1 8EL,"7,456.80",Yes
Communities & Local Government,DCLG,14/02/2014,Work In Progress Pre-Cert 40467 Spend,Neighbourhoods,MILLFIELDS COMMUNITY ECONOMIC DEV T,Yes,,,,7600007751,,Capital Grant To Be Paid,PL1 3HQ,"51,348.32",Yes
Communities & Local Government,DCLG,17/02/2014,Agency Staff,Finance & Corporate Services,SQUARE ONE RESOURCES LTD,,Medium,,491410288,5106201104,Contingent Labour,SAP Support until closedown,EC2A 2AD,"2,858.82",
Communities & Local Government,DCLG,17/02/2014,Cap Grants to Private Sector Companies,Neighbourhoods,BOC LTD,,Large,,,2100239697,,RGF - Q4 2013-14,M28 2UP,"330,000.00",Yes
Communities & Local Government,DCLG,17/02/2014,Cap Grants to Private Sector Companies,Neighbourhoods,BRUNTON SHAW UK,,Medium,,,2100239688,,RGF - Q4 2013-14,S80 3ES,"20,242.88",Yes
Communities & Local Government,DCLG,17/02/2014,Cap Grants to Private Sector Companies,Neighbourhoods,BURNLEY BC,,,,,2100239736,,RGF - Q4 2013-14,BB11 2DS,"5,520,173.00",Yes
Communities & Local Government,DCLG,17/02/2014,Cap Grants to Private Sector Companies,Neighbourhoods,CALSONIC KANSEI SUNDERLAND LTD,,,,,2100239712,,"RGF Q4, 2013/14",SR4 9EW,"1,013,453.00",Yes
Communities & Local Government,DCLG,17/02/2014,Cap Grants to Private Sector Companies,Neighbourhoods,CERAM RESEARCH LIMITED,,Medium,,,2100239687,,RGF - Q4 2013-14,ST4 7LQ,"1,035,080.00",Yes
Communities & Local Government,DCLG,17/02/2014,Cap Grants to Private Sector Companies,Neighbourhoods,CONNOR SOLUTIONS LIMITED,,Medium,,,2100239701,,"RGF Q4, 2013/14",DH4 5NL,"200,000.00",Yes
Communities & Local Government,DCLG,17/02/2014,Cap Grants to Private Sector Companies,Neighbourhoods,DARCHEM ENGINEERING LIMITED,,,,,2100239706,,"RGF Q4, 2013/14",TS21 1LB,"289,290.00",Yes
Communities & Local Government,DCLG,17/02/2014,Cap Grants to Private Sector Companies,Neighbourhoods,DONCASTER MBC,,Large,,218042997,2100239733,,RGF - Q4 2013-14,DN1 3QA,"6,399,014.35",Yes
Communities & Local Government,DCLG,17/02/2014,Cap Grants to Private Sector Companies,Neighbourhoods,DUCO LIMITED,,Large,,,2100239714,,"RGF Q4, 2013/14",NE6 3NL,"600,000.00",Yes
Communities & Local Government,DCLG,17/02/2014,Cap Grants to Private Sector Companies,Neighbourhoods,HINCKLEY &  BOSWORTH BOROUGH COUNCI,,Large,,,2100239692,,RGF - Q4 2013-14,LE10 1BZ,"1,521,620.00",Yes
Communities & Local Government,DCLG,17/02/2014,Cap Grants to Private Sector Companies,Neighbourhoods,HYDRAM ENGINEERING LTD,,,,,2100239707,,"RGF Q4, 2013/14",DL17 0SG,"98,275.00",Yes
Communities & Local Government,DCLG,17/02/2014,Cap Grants to Private Sector Companies,Neighbourhoods,INTERNATIONAL PIPELINE PRODUCTS LTD,,,,,2100239702,,"RGF Q4, 2013/14",DL10 7JH,"23,673.00",Yes
Communities & Local Government,DCLG,17/02/2014,Cap Grants to Private Sector Companies,Neighbourhoods,JCB SERVICE,,Large,,,2100239685,,RGF - Q4 2013-14,ST14 5JP,"719,970.00",Yes
Communities & Local Government,DCLG,17/02/2014,Cap Grants to Private Sector Companies,Neighbourhoods,JOHN HARRISON (STOCKTON) LTD,,,,,2100239725,,"RGF Q4, 2013/14",TS17 9NT,"57,500.00",Yes
Communities & Local Government,DCLG,17/02/2014,Cap Grants to Private Sector Companies,Neighbourhoods,LUTON BOROUGH COUNCIL,,Public Bodies,,,2100239682,,RGF - Q4 2013-14,LU1 2RD,"9,863,000.00",Yes
Communities & Local Government,DCLG,17/02/2014,Cap Grants to Private Sector Companies,Neighbourhoods,MULBERRY COMPANY (DESIGN) LTD,,Large,,,2100239686,,RGF - Q4 2013-14,BA3 4EH,"29,538.00",Yes
Communities & Local Government,DCLG,17/02/2014,Cap Grants to Private Sector Companies,Neighbourhoods,NDC POLYTHENES LTD,,Small,,,2100239691,,RGF - Q4 2013-14,DY2 0XQ,"17,504.85",Yes
Communities & Local Government,DCLG,17/02/2014,Cap Grants to Private Sector Companies,Neighbourhoods,PROPELLER (GB) LIMITED,,Small,,,2100239716,,"RGF Q4, 2013/14",NE11 0PZ,"56,914.00",Yes
Communities & Local Government,DCLG,17/02/2014,Cap Grants to Private Sector Companies,Neighbourhoods,RESPONSIVE ENGINEERING GROUP LTD,,,,,2100239710,,"RGF Q4, 2013/14",NE11 0SH,"45,634.80",Yes
Communities & Local Government,DCLG,17/02/2014,Cap Grants to Private Sector Companies,Neighbourhoods,SHEFFIELD UNIVERSITY,,,,,2100239735,,RGF - Q4 2013-14,S1 2LX,"5,618,100.00",Yes
Communities & Local Government,DCLG,17/02/2014,Cap Grants to Private Sector Companies,Neighbourhoods,SOUTH DEVON COLLEGE,,Large,,,2100239690,,RGF - Q4 2013-14,TQ4 7EJ,"32,838.70",Yes
Communities & Local Government,DCLG,17/02/2014,Cap Grants to Private Sector Companies,Neighbourhoods,STEELITE INTERNATIONAL PLC,,Large,,,2100239694,,RGF - Q4 2013-14,ST6 3RB,"1,301,364.00",Yes
Communities & Local Government,DCLG,17/02/2014,Cap Grants to Private Sector Companies,Neighbourhoods,THOMAS DUDLEY LTD,,,,,2100239683,,RGF - Q4 2013-14,DY1 4SN,"68,256.56",Yes
Communities & Local Government,DCLG,17/02/2014,Cap Grants to Private Sector Companies,Neighbourhoods,UK HISTORIC BUILDING PRESERVATION T,Yes,Small,,,2100239695,,RGF - Q4 2013-14,SW1W 0QP,"307,613.00",Yes
Communities & Local Government,DCLG,17/02/2014,Cap Grants to Private Sector Companies,Neighbourhoods,UNIPRES (UK) LTD,,Large,,,2100239713,,"RGF Q4, 2013/14",NE38 8LP,"107,715.00",Yes
Communities & Local Government,DCLG,17/02/2014,Cap Grants to Private Sector Companies,Neighbourhoods,WAKEFIELD MDC,,Large,,347764511,2100239734,,RGF - Q4 2013-14,WF1 1ZS,"6,276,279.00",Yes
Communities & Local Government,DCLG,17/02/2014,Current (non AEF) Grants to Local Authorities,Neighbourhoods,ADUR DC,,,,227472891,5000242634,,New Homes Bonus Scheme,BN11 1HB,"38,226.00",Yes
Communities & Local Government,DCLG,17/02/2014,Current (non AEF) Grants to Local Authorities,Neighbourhoods,ALLERDALE BC,,,,218146780,5000242635,,New Homes Bonus Scheme,CA14 2RS,"26,829.00",Yes
Communities & Local Government,DCLG,17/02/2014,Current (non AEF) Grants to Local Authorities,Neighbourhoods,AMBER VALLEY BC,,,,,5000242636,,New Homes Bonus Scheme,DE5 3WZ,"73,633.00",Yes
Communities & Local Government,DCLG,17/02/2014,Current (non AEF) Grants to Local Authorities,Neighbourhoods,ARUN DC,,,,211217668,5000242490,,New Homes Bonus Scheme,BN17 5LF,"172,096.00",Yes
Communities & Local Government,DCLG,17/02/2014,Current (non AEF) Grants to Local Authorities,Neighbourhoods,ASHFIELD DC,,,,235415296,5000242637,,New Homes Bonus Scheme,NG17 8DA,"114,175.00",Yes
Communities & Local Government,DCLG,17/02/2014,Current (non AEF) Grants to Local Authorities,Neighbourhoods,ASHFORD BC,,,,229467071,5000242491,,New Homes Bonus Scheme,TN23 1PL,"202,548.00",Yes
Communities & Local Government,DCLG,17/02/2014,Current (non AEF) Grants to Local Authorities,Neighbourhoods,AYLESBURY VALE DC(HSG),,,,396710709,5000242492,,New Homes Bonus Scheme,HP19 8FF,"275,357.00",Yes
Communities & Local Government,DCLG,17/02/2014,Current (non AEF) Grants to Local Authorities,Neighbourhoods,BABERGH DC,,,,232618405,5000242493,,New Homes Bonus Scheme,IP7 6SJ,"71,317.00",Yes
Communities & Local Government,DCLG,17/02/2014,Current (non AEF) Grants to Local Authorities,Neighbourhoods,BARKING & DAGENHAM LB (HSG),,,,217142293,5000242494,,New Homes Bonus Scheme,RM10 7BY,"205,428.00",Yes
Communities & Local Government,DCLG,17/02/2014,Current (non AEF) Grants to Local Authorities,Neighbourhoods,BARNET LBC,,,,211049507,5000242638,,New Homes Bonus Scheme,NW4 4BG,"515,163.00",Yes
Communities & Local Government,DCLG,17/02/2014,Current (non AEF) Grants to Local Authorities,Neighbourhoods,BARNSLEY MBC,,,,211178595,5000242639,,New Homes Bonus Scheme,S70 2AQ,"287,796.00",Yes
Communities & Local Government,DCLG,17/02/2014,Current (non AEF) Grants to Local Authorities,Neighbourhoods,BARROW BC,,,,295632913,5000242640,,New Homes Bonus Scheme,LA14 2LD,"15,818.00",Yes
Communities & Local Government,DCLG,17/02/2014,Current (non AEF) Grants to Local Authorities,Neighbourhoods,BASILDON BOROUGH COUNCIL,,,,,5000242641,,New Homes Bonus Scheme,SS14 0DF,"141,693.00",Yes
Communities & Local Government,DCLG,17/02/2014,Current (non AEF) Grants to Local Authorities,Neighbourhoods,BASINGSTOKE & DEANE BC,,,,228328506,5000242642,,New Homes Bonus Scheme,RG21 2AJ,"294,915.00",Yes
Communities & Local Government,DCLG,17/02/2014,Current (non AEF) Grants to Local Authorities,Neighbourhoods,BASSETLAW DC (HSG),,,,,5000242495,,New Homes Bonus Scheme,S80 2AH,"74,249.00",Yes
Communities & Local Government,DCLG,17/02/2014,Current (non AEF) Grants to Local Authorities,Neighbourhoods,BATH & NE SOMERSET DC (HSG),,,,214502499,5000242496,,New Homes Bonus Scheme,BA1 5AW,"164,783.00",Yes
Communities & Local Government,DCLG,17/02/2014,Current (non AEF) Grants to Local Authorities,Neighbourhoods,BEDFORD UNITARY AUTHORITY,,,,225682160,5000242839,,New Homes Bonus Scheme,MK40 1SJ,"310,613.00",Yes
Communities & Local Government,DCLG,17/02/2014,Current (non AEF) Grants to Local Authorities,Neighbourhoods,BEXLEY LB (HSG),,,,,5000242497,,New Homes Bonus Scheme,DA8 1TL,"165,552.00",Yes
Communities & Local Government,DCLG,17/02/2014,Current (non AEF) Grants to Local Authorities,Neighbourhoods,BIRMINGHAM CITY CNCL,,,,213780559,5000242643,,New Homes Bonus Scheme,B2 2AJ,"855,893.00",Yes
Communities & Local Government,DCLG,17/02/2014,Current (non AEF) Grants to Local Authorities,Neighbourhoods,BLABY DC (HSG),,,,,5000242498,,New Homes Bonus Scheme,LE9 5EP,"65,049.00",Yes
Communities & Local Government,DCLG,17/02/2014,Current (non AEF) Grants to Local Authorities,Neighbourhoods,BLACKBURN WITH DARWEN BC,,,,,5000242644,,New Homes Bonus Scheme,BB1 7DY,"31,819.00",Yes
Communities & Local Government,DCLG,17/02/2014,Current (non AEF) Grants to Local Authorities,Neighbourhoods,BLACKPOOL BC,,,,,5000242645,,New Homes Bonus Scheme,FY1 1NA,"116,302.00",Yes
Communities & Local Government,DCLG,17/02/2014,Current (non AEF) Grants to Local Authorities,Neighbourhoods,BOLSOVER DC,,,,235516523,5000242646,,New Homes Bonus Scheme,S44 6NF,"40,028.00",Yes
Communities & Local Government,DCLG,17/02/2014,Current (non AEF) Grants to Local Authorities,Neighbourhoods,BOLTON MBC,,,,,5000242647,,New Homes Bonus Scheme,BL1 1RU,"200,415.00",Yes
Communities & Local Government,DCLG,17/02/2014,Current (non AEF) Grants to Local Authorities,Neighbourhoods,BOSTON BC,,,,236417713,5000242499,,New Homes Bonus Scheme,PE21 8QR,"52,650.00",Yes
Communities & Local Government,DCLG,17/02/2014,Current (non AEF) Grants to Local Authorities,Neighbourhoods,BOURNEMOUTH DC,,,,,5000242648,,New Homes Bonus Scheme,BH2 6EB,"220,614.00",Yes
Communities & Local Government,DCLG,17/02/2014,Current (non AEF) Grants to Local Authorities,Neighbourhoods,BRACKNELL FOREST DC,,,,236184867,5000242649,,New Homes Bonus Scheme,RG12 1AQ,"163,273.00",Yes
Communities & Local Government,DCLG,17/02/2014,Current (non AEF) Grants to Local Authorities,Neighbourhoods,BRADFORD MBC,,,,,5000242650,,New Homes Bonus Scheme,BD1 1HX,"472,250.00",Yes
Communities & Local Government,DCLG,17/02/2014,Current (non AEF) Grants to Local Authorities,Neighbourhoods,BRAINTREE DC,,,,226941730,5000242500,,New Homes Bonus Scheme,CM7 6HB,"132,310.00",Yes
Communities & Local Government,DCLG,17/02/2014,Current (non AEF) Grants to Local Authorities,Neighbourhoods,BRECKLAND DC,,,,232611384,5000242501,,New Homes Bonus Scheme,NR19 1EE,"92,316.00",Yes
Communities & Local Government,DCLG,17/02/2014,Current (non AEF) Grants to Local Authorities,Neighbourhoods,BRENT LB (HSG),,,,,5000242502,,New Homes Bonus Scheme,HA9 9HD,"440,775.00",Yes
Communities & Local Government,DCLG,17/02/2014,Current (non AEF) Grants to Local Authorities,Neighbourhoods,BRENTWOOD BC,,,,227473188,5000242651,,New Homes Bonus Scheme,CM15 8AY,"66,563.00",Yes
Communities & Local Government,DCLG,17/02/2014,Current (non AEF) Grants to Local Authorities,Neighbourhoods,BRIGHTON & HOVE CITY COUNCIL,,,,228455218,5000242652,,New Homes Bonus Scheme,BN3 2SR,"165,916.00",Yes
Communities & Local Government,DCLG,17/02/2014,Current (non AEF) Grants to Local Authorities,Neighbourhoods,BRISTOL CITY CNCL (HSG),,,,211103882,5000242503,,New Homes Bonus Scheme,BS99 7BL,"607,516.00",Yes
Communities & Local Government,DCLG,17/02/2014,Current (non AEF) Grants to Local Authorities,Neighbourhoods,BROADLAND DC,,Large,,219737785,5000242504,,New Homes Bonus Scheme,NR7 0DU,"63,205.00",Yes
Communities & Local Government,DCLG,17/02/2014,Current (non AEF) Grants to Local Authorities,Neighbourhoods,BROMLEY LB,,,,211331954,5000242653,,New Homes Bonus Scheme,BR1 3UH,"297,742.00",Yes
Communities & Local Government,DCLG,17/02/2014,Current (non AEF) Grants to Local Authorities,Neighbourhoods,BROMSGROVE DC,,,,236654745,5000242505,,New Homes Bonus Scheme,B60 1AA,"57,302.00",Yes
Communities & Local Government,DCLG,17/02/2014,Current (non AEF) Grants to Local Authorities,Neighbourhoods,BROXBOURNE BC,,Public Bodies,,239931918,5000242654,,New Homes Bonus Scheme,EN8 9XG,"73,178.00",Yes
